Workbook

Sheet Introduction
D2: Electricity Transmission Network Service Provider
C3: Operational Performance Data
B6: Introduction
C11: This workbook contains operational performance data for electricity transmission businesses in the National Energy Market (NEM). The charts and data are presented for a range of financial and network operational performance measures.
C12: Interpretation
C13: The data covers the regulatory years from 2006 to 2022. It is reported on an end of year basis. All transmission businesses report on a financial year basis, hence the label 2015 refers to data collected for the year ending 30 June 2015 (or 31 March 2015 for AusNet (T)). Exceptions to this are tables 6,7 and 8, which are reported on a calendar year basis, in line with STPIS reporting timeframes. All financial values have been converted to June 2022 dollars (or March 2022 dollars for AusNet (T)).
C16: Sources
C17: Data is classified as actual or forecast data. Actual data is generally sourced from individual annual responses to regulatory information notices (RINs), including economic benchmarking and category analysis RINs, or historical data provided at the time of regulatory determinations. The RIN responses of the transmission businesses are available on the AER website. Forecast data is generally sourced from the final regulatory determinations made by the AER for each of the businesses, updated for decisions by the Australian Competition Tribunal, and other allowed adjustments. Detailed data sources are listed in each of the worksheets.
C19: VERSION RECORD
C21: Version | D21: Publication date | F21: Data range/updates
C22: 8 | D22: 21 July 2023 | F22: Financial years | H22: 2005-06 to 2021-22 | J22: Data updates
C23: 7 | D23: 7 July 2023 | F23: Financial years | H23: 2005-06 to 2021-22 | J23: Data as at 30 June 2022
C24: 6 | D24: July 2022 | F24: Financial years | H24: 2005-06 to 2020-21 | J24: Data as at 30 June 2021
C25: 5 | D25: 2021-09-22 | F25: Financial years | H25: 2005-06 to 2019-20 | J25: Data as at 30 June 2020
C26: 4 | D26: 2020-09-01 | F26: Financial years | H26: 2005-06 to 2018-19 | J26: Data as at June 2020
C27: 3 | D27: Jul 2019 | F27: Financial years | H27: 2005-06 to 2017-18 | J27: Data as at 27 June 2019
C28: 2 | D28: Aug 2018 | F28: Financial years | H28: 2005-06 to 2016-17 | J28: Amended Opex data to remove Easement Tax for AusNet (T)
C29: 1 | D29: Feb 2018 | F29: Financial years | H29: 2005-06 to 2016-17

Sheet Contents
H3: Electricity Transmission Network Service Provider
B4: Operational Performance Data
B6: Contents
C13: 1. Revenue
C14: 2. Regulated asset base - closing
C15: 3. Capital expenditure
C16: 4. Capital expenditure by driver
C17: 5. Operating expenditure
C18: 6. Reliability - outage evetns
C19: 7. Reliability - outage duration
C20: 8. Reliabilty - market impact
C21: 9. Maximum demand
C22: 10 . Energy delivered
C23: 11. Circuit length

Sheet Dashboard
F3: Transmission total
G6: Summary statistics
H9: 2022 | I9: 5 year trend
G10: Actual revenue from customers | H10: ="$"&TEXT(Calculations!U10,"#,##0")&"m" -> $2,459m
G11: Budgeted revenue from customers | H11: ="$"&TEXT(Calculations!U11,"#,##0")&"m" -> $2,584m
G12: Actual closing RAB | H12: ="$"&TEXT(Calculations!U12,"#,##0")&"m" -> $22,828m
G13: Forecast closing RAB | H13: ="$"&TEXT(Calculations!U13,"#,##0")&"m" -> $23,811m
G14: Actual annual capex | H14: ="$"&TEXT(Calculations!U14,"#,##0")&"m" -> $1,250m
G15: Forecast annual capex | H15: ="$"&TEXT(Calculations!U15,"#,##0")&"m" -> $2,148m
G16: Actual annual opex | H16: ="$"&TEXT(Calculations!U16,"#,##0")&"m" -> $617m
G17: Forecast annual opex | H17: ="$"&TEXT(Calculations!U17,"#,##0")&"m" -> $658m
G18: Loss of supply events | H18: =TEXT(Calculations!T18,"0")&" events" -> 5 events
G19: Average outage duration | H19: =IF(Calculations!T19>0,TEXT(Calculations!T19,"0")&" minutes","not reported") -> not reported
G20: Market impact indicator | H20: =IF(Calculations!T20>0,TEXT(Calculations!T20,"0.0%"),"not reported") -> not reported
G21: Maximum demand | H21: =IF(Calculations!U21>0,(TEXT(Calculations!U21,"000")&"MW"),"not reported") -> not reported
G22: Energy delivered (Individual) | H22: =IF($F$3="Transmission Total","n/a", TEXT(Calculations!U22,"0,00")&" GWh") -> n/a
G23: Energy delivered (Transmission total) | H23: =IF($F$3="Transmission Total",TEXT(Calculations!U23,"0,00")&" GWh","n/a") -> 170,661 GWh
G24: Circuit length - total | H24: =TEXT(Calculations!U24,"0,00")&"km" -> 43,118km
G25: Circuit length - overhead | H25: =TEXT(Calculations!U25,"0,00")&"km" -> 42,931km
G26: Circuit length - underground | H26: =TEXT(Calculations!U26,"0,0")&"km" -> 186km
C32: Financials
C34: Annual revenue | J34: Closing RAB
C62: Expenditure
C64: Opex | H64: Capex By Driver | Q64: Capex
C92: Service Performance
C95: Reliability - outage events | H95: =IF($F$3="transmission total", "", "Reliability - outage duration") ->  | Q95: =IF($F$3="Transmission total", "", "Market impact") -> 
C96: =IF(Calculations!S18<>"", "",IFERROR(Calculations!S18,"No Data for 2020")) ->  | H96: =IF(Calculations!S19<>"", "",IFERROR(Calculations!S19,"No Data for 2020")) ->  | Q96: =IF(Calculations!S20<>"", "",IFERROR(Calculations!S20,"No Data for 2020")) -> 
C122: Network Descriptors
C125: Energy delivered | H125: Circuit Length | Q125: =IF($F$3="Transmission total", "", "Maximum demand") -> 
C126: =IF(F3="Transmission total", "No data for Transmission total - Maximum demand", "") -> No data for Transmission total - Maximum demand

Sheet Calculations (hidden)
D3: Calculations
D5: Summary statistics
D7: Match | E7: =Dashboard!F3 -> Transmission total
E9: 2006 | F9: 2007 | G9: 2008 | H9: 2009 | I9: 2010 | J9: 2011 | K9: 2012 | L9: 2013 | M9: 2014 | N9: 2015 | O9: 2016 | P9: 2017 | Q9: 2018 | R9: 2019 | S9: 2020 | T9: 2021 | U9: 2022
D10: Actual revenue from customers | E10: =IFERROR(INDEX('New data sheet'!$F:$K,MATCH($D10&E$9,'New data sheet'!$L:$L,0),MATCH($E$7,'New data sheet'!$F$6:$K$6,0)),"") -> 1898.867468 | F10: =IFERROR(INDEX('New data sheet'!$F:$K,MATCH($D10&F$9,'New data sheet'!$L:$L,0),MATCH($E$7,'New data sheet'!$F$6:$K$6,0)),"") -> 1963.741979 | G10: =IFERROR(INDEX('New data sheet'!$F:$K,MATCH($D10&G$9,'New data sheet'!$L:$L,0),MATCH($E$7,'New data sheet'!$F$6:$K$6,0)),"") -> 2045.073511 | H10: =IFERROR(INDEX('New data sheet'!$F:$K,MATCH($D10&H$9,'New data sheet'!$L:$L,0),MATCH($E$7,'New data sheet'!$F$6:$K$6,0)),"") -> 2193.270469 | I10: =IFERROR(INDEX('New data sheet'!$F:$K,MATCH($D10&I$9,'New data sheet'!$L:$L,0),MATCH($E$7,'New data sheet'!$F$6:$K$6,0)),"") -> 2519.866494 | J10: =IFERROR(INDEX('New data sheet'!$F:$K,MATCH($D10&J$9,'New data sheet'!$L:$L,0),MATCH($E$7,'New data sheet'!$F$6:$K$6,0)),"") -> 2790.879926 | K10: =IFERROR(INDEX('New data sheet'!$F:$K,MATCH($D10&K$9,'New data sheet'!$L:$L,0),MATCH($E$7,'New data sheet'!$F$6:$K$6,0)),"") -> 2991.864695 | L10: =IFERROR(INDEX('New data sheet'!$F:$K,MATCH($D10&L$9,'New data sheet'!$L:$L,0),MATCH($E$7,'New data sheet'!$F$6:$K$6,0)),"") -> 3104.589568 | M10: =IFERROR(INDEX('New data sheet'!$F:$K,MATCH($D10&M$9,'New data sheet'!$L:$L,0),MATCH($E$7,'New data sheet'!$F$6:$K$6,0)),"") -> 2928.568644 | N10: =IFERROR(INDEX('New data sheet'!$F:$K,MATCH($D10&N$9,'New data sheet'!$L:$L,0),MATCH($E$7,'New data sheet'!$F$6:$K$6,0)),"") -> 2929.418179 | O10: =IFERROR(INDEX('New data sheet'!$F:$K,MATCH($D10&O$9,'New data sheet'!$L:$L,0),MATCH($E$7,'New data sheet'!$F$6:$K$6,0)),"") -> 2908.05559 | P10: =IFERROR(INDEX('New data sheet'!$F:$K,MATCH($D10&P$9,'New data sheet'!$L:$L,0),MATCH($E$7,'New data sheet'!$F$6:$K$6,0)),"") -> 2936.093919 | Q10: =IFERROR(INDEX('New data sheet'!$F:$K,MATCH($D10&Q$9,'New data sheet'!$L:$L,0),MATCH($E$7,'New data sheet'!$F$6:$K$6,0)),"") -> 2448.703327 | R10: =IFERROR(INDEX('New data sheet'!$F:$K,MATCH($D10&R$9,'New data sheet'!$L:$L,0),MATCH($E$7,'New data sheet'!$F$6:$K$6,0)),"") -> 2279.00495 | S10: =IFERROR(INDEX('New data sheet'!$F:$K,MATCH($D10&S$9,'New data sheet'!$L:$L,0),MATCH($E$7,'New data sheet'!$F$6:$K$6,0)),"") -> 2337.70925 | T10: =IFERROR(INDEX('New data sheet'!$F:$K,MATCH($D10&T$9,'New data sheet'!$L:$L,0),MATCH($E$7,'New data sheet'!$F$6:$K$6,0)),"") -> 2398.121487 | U10: =IFERROR(INDEX('New data sheet'!$F:$K,MATCH($D10&U$9,'New data sheet'!$L:$L,0),MATCH($E$7,'New data sheet'!$F$6:$K$6,0)),"") -> 2458.796857
D11: Budgeted revenue from Customers | E11: =IFERROR(INDEX('New data sheet'!$F:$K,MATCH($D11&E$9,'New data sheet'!$L:$L,0),MATCH($E$7,'New data sheet'!$F$6:$K$6,0)),"") ->  | F11: =IFERROR(INDEX('New data sheet'!$F:$K,MATCH($D11&F$9,'New data sheet'!$L:$L,0),MATCH($E$7,'New data sheet'!$F$6:$K$6,0)),"") ->  | G11: =IFERROR(INDEX('New data sheet'!$F:$K,MATCH($D11&G$9,'New data sheet'!$L:$L,0),MATCH($E$7,'New data sheet'!$F$6:$K$6,0)),"") ->  | H11: =IFERROR(INDEX('New data sheet'!$F:$K,MATCH($D11&H$9,'New data sheet'!$L:$L,0),MATCH($E$7,'New data sheet'!$F$6:$K$6,0)),"") ->  | I11: =IFERROR(INDEX('New data sheet'!$F:$K,MATCH($D11&I$9,'New data sheet'!$L:$L,0),MATCH($E$7,'New data sheet'!$F$6:$K$6,0)),"") ->  | J11: =IFERROR(INDEX('New data sheet'!$F:$K,MATCH($D11&J$9,'New data sheet'!$L:$L,0),MATCH($E$7,'New data sheet'!$F$6:$K$6,0)),"") ->  | K11: =IFERROR(INDEX('New data sheet'!$F:$K,MATCH($D11&K$9,'New data sheet'!$L:$L,0),MATCH($E$7,'New data sheet'!$F$6:$K$6,0)),"") ->  | L11: =IFERROR(INDEX('New data sheet'!$F:$K,MATCH($D11&L$9,'New data sheet'!$L:$L,0),MATCH($E$7,'New data sheet'!$F$6:$K$6,0)),"") ->  | M11: =IFERROR(INDEX('New data sheet'!$F:$K,MATCH($D11&M$9,'New data sheet'!$L:$L,0),MATCH($E$7,'New data sheet'!$F$6:$K$6,0)),"") ->  | N11: =IFERROR(INDEX('New data sheet'!$F:$K,MATCH($D11&N$9,'New data sheet'!$L:$L,0),MATCH($E$7,'New data sheet'!$F$6:$K$6,0)),"") -> 3027.767553 | O11: =IFERROR(INDEX('New data sheet'!$F:$K,MATCH($D11&O$9,'New data sheet'!$L:$L,0),MATCH($E$7,'New data sheet'!$F$6:$K$6,0)),"") -> 3108.530165 | P11: =IFERROR(INDEX('New data sheet'!$F:$K,MATCH($D11&P$9,'New data sheet'!$L:$L,0),MATCH($E$7,'New data sheet'!$F$6:$K$6,0)),"") -> 3071.909468 | Q11: =IFERROR(INDEX('New data sheet'!$F:$K,MATCH($D11&Q$9,'New data sheet'!$L:$L,0),MATCH($E$7,'New data sheet'!$F$6:$K$6,0)),"") -> 2551.315551 | R11: =IFERROR(INDEX('New data sheet'!$F:$K,MATCH($D11&R$9,'New data sheet'!$L:$L,0),MATCH($E$7,'New data sheet'!$F$6:$K$6,0)),"") -> 2311.880084 | S11: =IFERROR(INDEX('New data sheet'!$F:$K,MATCH($D11&S$9,'New data sheet'!$L:$L,0),MATCH($E$7,'New data sheet'!$F$6:$K$6,0)),"") -> 2461.508725 | T11: =IFERROR(INDEX('New data sheet'!$F:$K,MATCH($D11&T$9,'New data sheet'!$L:$L,0),MATCH($E$7,'New data sheet'!$F$6:$K$6,0)),"") -> 2539.060212 | U11: =IFERROR(INDEX('New data sheet'!$F:$K,MATCH($D11&U$9,'New data sheet'!$L:$L,0),MATCH($E$7,'New data sheet'!$F$6:$K$6,0)),"") -> 2583.903762
D12: Actual closing RAB | E12: =IFERROR(INDEX('New data sheet'!$F:$K,MATCH($D12&E$9,'New data sheet'!$L:$L,0),MATCH($E$7,'New data sheet'!$F$6:$K$6,0)),"") -> 14281.72418 | F12: =IFERROR(INDEX('New data sheet'!$F:$K,MATCH($D12&F$9,'New data sheet'!$L:$L,0),MATCH($E$7,'New data sheet'!$F$6:$K$6,0)),"") -> 15461.66152 | G12: =IFERROR(INDEX('New data sheet'!$F:$K,MATCH($D12&G$9,'New data sheet'!$L:$L,0),MATCH($E$7,'New data sheet'!$F$6:$K$6,0)),"") -> 16939.65383 | H12: =IFERROR(INDEX('New data sheet'!$F:$K,MATCH($D12&H$9,'New data sheet'!$L:$L,0),MATCH($E$7,'New data sheet'!$F$6:$K$6,0)),"") -> 18209.14893 | I12: =IFERROR(INDEX('New data sheet'!$F:$K,MATCH($D12&I$9,'New data sheet'!$L:$L,0),MATCH($E$7,'New data sheet'!$F$6:$K$6,0)),"") -> 19057.7176 | J12: =IFERROR(INDEX('New data sheet'!$F:$K,MATCH($D12&J$9,'New data sheet'!$L:$L,0),MATCH($E$7,'New data sheet'!$F$6:$K$6,0)),"") -> 19883.27771 | K12: =IFERROR(INDEX('New data sheet'!$F:$K,MATCH($D12&K$9,'New data sheet'!$L:$L,0),MATCH($E$7,'New data sheet'!$F$6:$K$6,0)),"") -> 20952.00667 | L12: =IFERROR(INDEX('New data sheet'!$F:$K,MATCH($D12&L$9,'New data sheet'!$L:$L,0),MATCH($E$7,'New data sheet'!$F$6:$K$6,0)),"") -> 21902.56503 | M12: =IFERROR(INDEX('New data sheet'!$F:$K,MATCH($D12&M$9,'New data sheet'!$L:$L,0),MATCH($E$7,'New data sheet'!$F$6:$K$6,0)),"") -> 22768.91708 | N12: =IFERROR(INDEX('New data sheet'!$F:$K,MATCH($D12&N$9,'New data sheet'!$L:$L,0),MATCH($E$7,'New data sheet'!$F$6:$K$6,0)),"") -> 22680.91899 | O12: =IFERROR(INDEX('New data sheet'!$F:$K,MATCH($D12&O$9,'New data sheet'!$L:$L,0),MATCH($E$7,'New data sheet'!$F$6:$K$6,0)),"") -> 22546.59637 | P12: =IFERROR(INDEX('New data sheet'!$F:$K,MATCH($D12&P$9,'New data sheet'!$L:$L,0),MATCH($E$7,'New data sheet'!$F$6:$K$6,0)),"") -> 22440.72982 | Q12: =IFERROR(INDEX('New data sheet'!$F:$K,MATCH($D12&Q$9,'New data sheet'!$L:$L,0),MATCH($E$7,'New data sheet'!$F$6:$K$6,0)),"") -> 22315.6483 | R12: =IFERROR(INDEX('New data sheet'!$F:$K,MATCH($D12&R$9,'New data sheet'!$L:$L,0),MATCH($E$7,'New data sheet'!$F$6:$K$6,0)),"") -> 22196.69331 | S12: =IFERROR(INDEX('New data sheet'!$F:$K,MATCH($D12&S$9,'New data sheet'!$L:$L,0),MATCH($E$7,'New data sheet'!$F$6:$K$6,0)),"") -> 22136.39737 | T12: =IFERROR(INDEX('New data sheet'!$F:$K,MATCH($D12&T$9,'New data sheet'!$L:$L,0),MATCH($E$7,'New data sheet'!$F$6:$K$6,0)),"") -> 22552.49433 | U12: =IFERROR(INDEX('New data sheet'!$F:$K,MATCH($D12&U$9,'New data sheet'!$L:$L,0),MATCH($E$7,'New data sheet'!$F$6:$K$6,0)),"") -> 22827.69802
D13: Forecast closing RAB | E13: =IFERROR(INDEX('New data sheet'!$F:$K,MATCH($D13&E$9,'New data sheet'!$L:$L,0),MATCH($E$7,'New data sheet'!$F$6:$K$6,0)),"") -> 14545.96283 | F13: =IFERROR(INDEX('New data sheet'!$F:$K,MATCH($D13&F$9,'New data sheet'!$L:$L,0),MATCH($E$7,'New data sheet'!$F$6:$K$6,0)),"") -> 14725.53533 | G13: =IFERROR(INDEX('New data sheet'!$F:$K,MATCH($D13&G$9,'New data sheet'!$L:$L,0),MATCH($E$7,'New data sheet'!$F$6:$K$6,0)),"") -> 16876.04922 | H13: =IFERROR(INDEX('New data sheet'!$F:$K,MATCH($D13&H$9,'New data sheet'!$L:$L,0),MATCH($E$7,'New data sheet'!$F$6:$K$6,0)),"") -> 18324.65092 | I13: =IFERROR(INDEX('New data sheet'!$F:$K,MATCH($D13&I$9,'New data sheet'!$L:$L,0),MATCH($E$7,'New data sheet'!$F$6:$K$6,0)),"") -> 19647.6204 | J13: =IFERROR(INDEX('New data sheet'!$F:$K,MATCH($D13&J$9,'New data sheet'!$L:$L,0),MATCH($E$7,'New data sheet'!$F$6:$K$6,0)),"") -> 20843.968 | K13: =IFERROR(INDEX('New data sheet'!$F:$K,MATCH($D13&K$9,'New data sheet'!$L:$L,0),MATCH($E$7,'New data sheet'!$F$6:$K$6,0)),"") -> 21921.5607 | L13: =IFERROR(INDEX('New data sheet'!$F:$K,MATCH($D13&L$9,'New data sheet'!$L:$L,0),MATCH($E$7,'New data sheet'!$F$6:$K$6,0)),"") -> 23046.06939 | M13: =IFERROR(INDEX('New data sheet'!$F:$K,MATCH($D13&M$9,'New data sheet'!$L:$L,0),MATCH($E$7,'New data sheet'!$F$6:$K$6,0)),"") -> 23967.05786 | N13: =IFERROR(INDEX('New data sheet'!$F:$K,MATCH($D13&N$9,'New data sheet'!$L:$L,0),MATCH($E$7,'New data sheet'!$F$6:$K$6,0)),"") -> 23760.20017 | O13: =IFERROR(INDEX('New data sheet'!$F:$K,MATCH($D13&O$9,'New data sheet'!$L:$L,0),MATCH($E$7,'New data sheet'!$F$6:$K$6,0)),"") -> 24210.93801 | P13: =IFERROR(INDEX('New data sheet'!$F:$K,MATCH($D13&P$9,'New data sheet'!$L:$L,0),MATCH($E$7,'New data sheet'!$F$6:$K$6,0)),"") -> 24528.40811 | Q13: =IFERROR(INDEX('New data sheet'!$F:$K,MATCH($D13&Q$9,'New data sheet'!$L:$L,0),MATCH($E$7,'New data sheet'!$F$6:$K$6,0)),"") -> 22685.92025 | R13: =IFERROR(INDEX('New data sheet'!$F:$K,MATCH($D13&R$9,'New data sheet'!$L:$L,0),MATCH($E$7,'New data sheet'!$F$6:$K$6,0)),"") -> 22325.72081 | S13: =IFERROR(INDEX('New data sheet'!$F:$K,MATCH($D13&S$9,'New data sheet'!$L:$L,0),MATCH($E$7,'New data sheet'!$F$6:$K$6,0)),"") -> 22322.02298 | T13: =IFERROR(INDEX('New data sheet'!$F:$K,MATCH($D13&T$9,'New data sheet'!$L:$L,0),MATCH($E$7,'New data sheet'!$F$6:$K$6,0)),"") -> 22626.43983 | U13: =IFERROR(INDEX('New data sheet'!$F:$K,MATCH($D13&U$9,'New data sheet'!$L:$L,0),MATCH($E$7,'New data sheet'!$F$6:$K$6,0)),"") -> 23811.29442
D14: Actual annual capex | E14: =IFERROR(INDEX('New data sheet'!$F:$K,MATCH($D14&E$9,'New data sheet'!$L:$L,0),MATCH($E$7,'New data sheet'!$F$6:$K$6,0)),"") -> 969.9354515 | F14: =IFERROR(INDEX('New data sheet'!$F:$K,MATCH($D14&F$9,'New data sheet'!$L:$L,0),MATCH($E$7,'New data sheet'!$F$6:$K$6,0)),"") -> 1069.54111 | G14: =IFERROR(INDEX('New data sheet'!$F:$K,MATCH($D14&G$9,'New data sheet'!$L:$L,0),MATCH($E$7,'New data sheet'!$F$6:$K$6,0)),"") -> 1822.281032 | H14: =IFERROR(INDEX('New data sheet'!$F:$K,MATCH($D14&H$9,'New data sheet'!$L:$L,0),MATCH($E$7,'New data sheet'!$F$6:$K$6,0)),"") -> 1926.815686 | I14: =IFERROR(INDEX('New data sheet'!$F:$K,MATCH($D14&I$9,'New data sheet'!$L:$L,0),MATCH($E$7,'New data sheet'!$F$6:$K$6,0)),"") -> 1568.494154 | J14: =IFERROR(INDEX('New data sheet'!$F:$K,MATCH($D14&J$9,'New data sheet'!$L:$L,0),MATCH($E$7,'New data sheet'!$F$6:$K$6,0)),"") -> 1566.15129 | K14: =IFERROR(INDEX('New data sheet'!$F:$K,MATCH($D14&K$9,'New data sheet'!$L:$L,0),MATCH($E$7,'New data sheet'!$F$6:$K$6,0)),"") -> 1736.046005 | L14: =IFERROR(INDEX('New data sheet'!$F:$K,MATCH($D14&L$9,'New data sheet'!$L:$L,0),MATCH($E$7,'New data sheet'!$F$6:$K$6,0)),"") -> 1700.886855 | M14: =IFERROR(INDEX('New data sheet'!$F:$K,MATCH($D14&M$9,'New data sheet'!$L:$L,0),MATCH($E$7,'New data sheet'!$F$6:$K$6,0)),"") -> 1346.812204 | N14: =IFERROR(INDEX('New data sheet'!$F:$K,MATCH($D14&N$9,'New data sheet'!$L:$L,0),MATCH($E$7,'New data sheet'!$F$6:$K$6,0)),"") -> 806.3236738 | O14: =IFERROR(INDEX('New data sheet'!$F:$K,MATCH($D14&O$9,'New data sheet'!$L:$L,0),MATCH($E$7,'New data sheet'!$F$6:$K$6,0)),"") -> 802.3882071 | P14: =IFERROR(INDEX('New data sheet'!$F:$K,MATCH($D14&P$9,'New data sheet'!$L:$L,0),MATCH($E$7,'New data sheet'!$F$6:$K$6,0)),"") -> 765.4847248 | Q14: =IFERROR(INDEX('New data sheet'!$F:$K,MATCH($D14&Q$9,'New data sheet'!$L:$L,0),MATCH($E$7,'New data sheet'!$F$6:$K$6,0)),"") -> 804.9655377 | R14: =IFERROR(INDEX('New data sheet'!$F:$K,MATCH($D14&R$9,'New data sheet'!$L:$L,0),MATCH($E$7,'New data sheet'!$F$6:$K$6,0)),"") -> 815.1997815 | S14: =IFERROR(INDEX('New data sheet'!$F:$K,MATCH($D14&S$9,'New data sheet'!$L:$L,0),MATCH($E$7,'New data sheet'!$F$6:$K$6,0)),"") -> 927.1889328 | T14: =IFERROR(INDEX('New data sheet'!$F:$K,MATCH($D14&T$9,'New data sheet'!$L:$L,0),MATCH($E$7,'New data sheet'!$F$6:$K$6,0)),"") -> 1420.945785 | U14: =IFERROR(INDEX('New data sheet'!$F:$K,MATCH($D14&U$9,'New data sheet'!$L:$L,0),MATCH($E$7,'New data sheet'!$F$6:$K$6,0)),"") -> 1249.881342
D15: Forecast annual capex | E15: =IFERROR(INDEX('New data sheet'!$F:$K,MATCH($D15&E$9,'New data sheet'!$L:$L,0),MATCH($E$7,'New data sheet'!$F$6:$K$6,0)),"") -> 852.5352548 | F15: =IFERROR(INDEX('New data sheet'!$F:$K,MATCH($D15&F$9,'New data sheet'!$L:$L,0),MATCH($E$7,'New data sheet'!$F$6:$K$6,0)),"") -> 809.6377397 | G15: =IFERROR(INDEX('New data sheet'!$F:$K,MATCH($D15&G$9,'New data sheet'!$L:$L,0),MATCH($E$7,'New data sheet'!$F$6:$K$6,0)),"") -> 1764.933635 | H15: =IFERROR(INDEX('New data sheet'!$F:$K,MATCH($D15&H$9,'New data sheet'!$L:$L,0),MATCH($E$7,'New data sheet'!$F$6:$K$6,0)),"") -> 1731.313844 | I15: =IFERROR(INDEX('New data sheet'!$F:$K,MATCH($D15&I$9,'New data sheet'!$L:$L,0),MATCH($E$7,'New data sheet'!$F$6:$K$6,0)),"") -> 1911.993851 | J15: =IFERROR(INDEX('New data sheet'!$F:$K,MATCH($D15&J$9,'New data sheet'!$L:$L,0),MATCH($E$7,'New data sheet'!$F$6:$K$6,0)),"") -> 1961.932057 | K15: =IFERROR(INDEX('New data sheet'!$F:$K,MATCH($D15&K$9,'New data sheet'!$L:$L,0),MATCH($E$7,'New data sheet'!$F$6:$K$6,0)),"") -> 1858.806219 | L15: =IFERROR(INDEX('New data sheet'!$F:$K,MATCH($D15&L$9,'New data sheet'!$L:$L,0),MATCH($E$7,'New data sheet'!$F$6:$K$6,0)),"") -> 1902.974083 | M15: =IFERROR(INDEX('New data sheet'!$F:$K,MATCH($D15&M$9,'New data sheet'!$L:$L,0),MATCH($E$7,'New data sheet'!$F$6:$K$6,0)),"") -> 1771.110874 | N15: =IFERROR(INDEX('New data sheet'!$F:$K,MATCH($D15&N$9,'New data sheet'!$L:$L,0),MATCH($E$7,'New data sheet'!$F$6:$K$6,0)),"") -> 1189.751456 | O15: =IFERROR(INDEX('New data sheet'!$F:$K,MATCH($D15&O$9,'New data sheet'!$L:$L,0),MATCH($E$7,'New data sheet'!$F$6:$K$6,0)),"") -> 1391.183576 | P15: =IFERROR(INDEX('New data sheet'!$F:$K,MATCH($D15&P$9,'New data sheet'!$L:$L,0),MATCH($E$7,'New data sheet'!$F$6:$K$6,0)),"") -> 1305.339573 | Q15: =IFERROR(INDEX('New data sheet'!$F:$K,MATCH($D15&Q$9,'New data sheet'!$L:$L,0),MATCH($E$7,'New data sheet'!$F$6:$K$6,0)),"") -> 765.1168489 | R15: =IFERROR(INDEX('New data sheet'!$F:$K,MATCH($D15&R$9,'New data sheet'!$L:$L,0),MATCH($E$7,'New data sheet'!$F$6:$K$6,0)),"") -> 780.7340557 | S15: =IFERROR(INDEX('New data sheet'!$F:$K,MATCH($D15&S$9,'New data sheet'!$L:$L,0),MATCH($E$7,'New data sheet'!$F$6:$K$6,0)),"") -> 1033.361495 | T15: =IFERROR(INDEX('New data sheet'!$F:$K,MATCH($D15&T$9,'New data sheet'!$L:$L,0),MATCH($E$7,'New data sheet'!$F$6:$K$6,0)),"") -> 1281.584198 | U15: =IFERROR(INDEX('New data sheet'!$F:$K,MATCH($D15&U$9,'New data sheet'!$L:$L,0),MATCH($E$7,'New data sheet'!$F$6:$K$6,0)),"") -> 2147.536013
D16: Actual annual opex | E16: =IFERROR(INDEX('New data sheet'!$F:$K,MATCH($D16&E$9,'New data sheet'!$L:$L,0),MATCH($E$7,'New data sheet'!$F$6:$K$6,0)),"") -> 563.413594 | F16: =IFERROR(INDEX('New data sheet'!$F:$K,MATCH($D16&F$9,'New data sheet'!$L:$L,0),MATCH($E$7,'New data sheet'!$F$6:$K$6,0)),"") -> 574.8161067 | G16: =IFERROR(INDEX('New data sheet'!$F:$K,MATCH($D16&G$9,'New data sheet'!$L:$L,0),MATCH($E$7,'New data sheet'!$F$6:$K$6,0)),"") -> 575.9241592 | H16: =IFERROR(INDEX('New data sheet'!$F:$K,MATCH($D16&H$9,'New data sheet'!$L:$L,0),MATCH($E$7,'New data sheet'!$F$6:$K$6,0)),"") -> 594.758003 | I16: =IFERROR(INDEX('New data sheet'!$F:$K,MATCH($D16&I$9,'New data sheet'!$L:$L,0),MATCH($E$7,'New data sheet'!$F$6:$K$6,0)),"") -> 623.9003067 | J16: =IFERROR(INDEX('New data sheet'!$F:$K,MATCH($D16&J$9,'New data sheet'!$L:$L,0),MATCH($E$7,'New data sheet'!$F$6:$K$6,0)),"") -> 598.554427 | K16: =IFERROR(INDEX('New data sheet'!$F:$K,MATCH($D16&K$9,'New data sheet'!$L:$L,0),MATCH($E$7,'New data sheet'!$F$6:$K$6,0)),"") -> 620.6359179 | L16: =IFERROR(INDEX('New data sheet'!$F:$K,MATCH($D16&L$9,'New data sheet'!$L:$L,0),MATCH($E$7,'New data sheet'!$F$6:$K$6,0)),"") -> 604.4149775 | M16: =IFERROR(INDEX('New data sheet'!$F:$K,MATCH($D16&M$9,'New data sheet'!$L:$L,0),MATCH($E$7,'New data sheet'!$F$6:$K$6,0)),"") -> 655.606355 | N16: =IFERROR(INDEX('New data sheet'!$F:$K,MATCH($D16&N$9,'New data sheet'!$L:$L,0),MATCH($E$7,'New data sheet'!$F$6:$K$6,0)),"") -> 663.259212 | O16: =IFERROR(INDEX('New data sheet'!$F:$K,MATCH($D16&O$9,'New data sheet'!$L:$L,0),MATCH($E$7,'New data sheet'!$F$6:$K$6,0)),"") -> 676.741439 | P16: =IFERROR(INDEX('New data sheet'!$F:$K,MATCH($D16&P$9,'New data sheet'!$L:$L,0),MATCH($E$7,'New data sheet'!$F$6:$K$6,0)),"") -> 673.389881 | Q16: =IFERROR(INDEX('New data sheet'!$F:$K,MATCH($D16&Q$9,'New data sheet'!$L:$L,0),MATCH($E$7,'New data sheet'!$F$6:$K$6,0)),"") -> 594.7524726 | R16: =IFERROR(INDEX('New data sheet'!$F:$K,MATCH($D16&R$9,'New data sheet'!$L:$L,0),MATCH($E$7,'New data sheet'!$F$6:$K$6,0)),"") -> 605.4856099 | S16: =IFERROR(INDEX('New data sheet'!$F:$K,MATCH($D16&S$9,'New data sheet'!$L:$L,0),MATCH($E$7,'New data sheet'!$F$6:$K$6,0)),"") -> 600.1530953 | T16: =IFERROR(INDEX('New data sheet'!$F:$K,MATCH($D16&T$9,'New data sheet'!$L:$L,0),MATCH($E$7,'New data sheet'!$F$6:$K$6,0)),"") -> 604.3608936 | U16: =IFERROR(INDEX('New data sheet'!$F:$K,MATCH($D16&U$9,'New data sheet'!$L:$L,0),MATCH($E$7,'New data sheet'!$F$6:$K$6,0)),"") -> 616.7901359
D17: Forecast annual opex | E17: =IFERROR(INDEX('New data sheet'!$F:$K,MATCH($D17&E$9,'New data sheet'!$L:$L,0),MATCH($E$7,'New data sheet'!$F$6:$K$6,0)),"") -> 545.2699923 | F17: =IFERROR(INDEX('New data sheet'!$F:$K,MATCH($D17&F$9,'New data sheet'!$L:$L,0),MATCH($E$7,'New data sheet'!$F$6:$K$6,0)),"") -> 542.935647 | G17: =IFERROR(INDEX('New data sheet'!$F:$K,MATCH($D17&G$9,'New data sheet'!$L:$L,0),MATCH($E$7,'New data sheet'!$F$6:$K$6,0)),"") -> 602.7807686 | H17: =IFERROR(INDEX('New data sheet'!$F:$K,MATCH($D17&H$9,'New data sheet'!$L:$L,0),MATCH($E$7,'New data sheet'!$F$6:$K$6,0)),"") -> 602.1518991 | I17: =IFERROR(INDEX('New data sheet'!$F:$K,MATCH($D17&I$9,'New data sheet'!$L:$L,0),MATCH($E$7,'New data sheet'!$F$6:$K$6,0)),"") -> 674.5861051 | J17: =IFERROR(INDEX('New data sheet'!$F:$K,MATCH($D17&J$9,'New data sheet'!$L:$L,0),MATCH($E$7,'New data sheet'!$F$6:$K$6,0)),"") -> 661.5312426 | K17: =IFERROR(INDEX('New data sheet'!$F:$K,MATCH($D17&K$9,'New data sheet'!$L:$L,0),MATCH($E$7,'New data sheet'!$F$6:$K$6,0)),"") -> 674.7303292 | L17: =IFERROR(INDEX('New data sheet'!$F:$K,MATCH($D17&L$9,'New data sheet'!$L:$L,0),MATCH($E$7,'New data sheet'!$F$6:$K$6,0)),"") -> 699.0597209 | M17: =IFERROR(INDEX('New data sheet'!$F:$K,MATCH($D17&M$9,'New data sheet'!$L:$L,0),MATCH($E$7,'New data sheet'!$F$6:$K$6,0)),"") -> 715.1093854 | N17: =IFERROR(INDEX('New data sheet'!$F:$K,MATCH($D17&N$9,'New data sheet'!$L:$L,0),MATCH($E$7,'New data sheet'!$F$6:$K$6,0)),"") -> 673.426517 | O17: =IFERROR(INDEX('New data sheet'!$F:$K,MATCH($D17&O$9,'New data sheet'!$L:$L,0),MATCH($E$7,'New data sheet'!$F$6:$K$6,0)),"") -> 684.2792192 | P17: =IFERROR(INDEX('New data sheet'!$F:$K,MATCH($D17&P$9,'New data sheet'!$L:$L,0),MATCH($E$7,'New data sheet'!$F$6:$K$6,0)),"") -> 702.9281278 | Q17: =IFERROR(INDEX('New data sheet'!$F:$K,MATCH($D17&Q$9,'New data sheet'!$L:$L,0),MATCH($E$7,'New data sheet'!$F$6:$K$6,0)),"") -> 667.8848068 | R17: =IFERROR(INDEX('New data sheet'!$F:$K,MATCH($D17&R$9,'New data sheet'!$L:$L,0),MATCH($E$7,'New data sheet'!$F$6:$K$6,0)),"") -> 655.2479032 | S17: =IFERROR(INDEX('New data sheet'!$F:$K,MATCH($D17&S$9,'New data sheet'!$L:$L,0),MATCH($E$7,'New data sheet'!$F$6:$K$6,0)),"") -> 640.9970402 | T17: =IFERROR(INDEX('New data sheet'!$F:$K,MATCH($D17&T$9,'New data sheet'!$L:$L,0),MATCH($E$7,'New data sheet'!$F$6:$K$6,0)),"") -> 646.8643554 | U17: =IFERROR(INDEX('New data sheet'!$F:$K,MATCH($D17&U$9,'New data sheet'!$L:$L,0),MATCH($E$7,'New data sheet'!$F$6:$K$6,0)),"") -> 657.8874325
D18: Loss of supply events | E18: =IFERROR(INDEX('New data sheet'!$F:$K,MATCH($D18&E$9,'New data sheet'!$L:$L,0),MATCH($E$7,'New data sheet'!$F$6:$K$6,0)),"") -> 29 | F18: =IFERROR(INDEX('New data sheet'!$F:$K,MATCH($D18&F$9,'New data sheet'!$L:$L,0),MATCH($E$7,'New data sheet'!$F$6:$K$6,0)),"") -> 20 | G18: =IFERROR(INDEX('New data sheet'!$F:$K,MATCH($D18&G$9,'New data sheet'!$L:$L,0),MATCH($E$7,'New data sheet'!$F$6:$K$6,0)),"") -> 15 | H18: =IFERROR(INDEX('New data sheet'!$F:$K,MATCH($D18&H$9,'New data sheet'!$L:$L,0),MATCH($E$7,'New data sheet'!$F$6:$K$6,0)),"") -> 23 | I18: =IFERROR(INDEX('New data sheet'!$F:$K,MATCH($D18&I$9,'New data sheet'!$L:$L,0),MATCH($E$7,'New data sheet'!$F$6:$K$6,0)),"") -> 25 | J18: =IFERROR(INDEX('New data sheet'!$F:$K,MATCH($D18&J$9,'New data sheet'!$L:$L,0),MATCH($E$7,'New data sheet'!$F$6:$K$6,0)),"") -> 25 | K18: =IFERROR(INDEX('New data sheet'!$F:$K,MATCH($D18&K$9,'New data sheet'!$L:$L,0),MATCH($E$7,'New data sheet'!$F$6:$K$6,0)),"") -> 23 | L18: =IFERROR(INDEX('New data sheet'!$F:$K,MATCH($D18&L$9,'New data sheet'!$L:$L,0),MATCH($E$7,'New data sheet'!$F$6:$K$6,0)),"") -> 27 | M18: =IFERROR(INDEX('New data sheet'!$F:$K,MATCH($D18&M$9,'New data sheet'!$L:$L,0),MATCH($E$7,'New data sheet'!$F$6:$K$6,0)),"") -> 20 | N18: =IFERROR(INDEX('New data sheet'!$F:$K,MATCH($D18&N$9,'New data sheet'!$L:$L,0),MATCH($E$7,'New data sheet'!$F$6:$K$6,0)),"") -> 13 | O18: =IFERROR(INDEX('New data sheet'!$F:$K,MATCH($D18&O$9,'New data sheet'!$L:$L,0),MATCH($E$7,'New data sheet'!$F$6:$K$6,0)),"") -> 13 | P18: =IFERROR(INDEX('New data sheet'!$F:$K,MATCH($D18&P$9,'New data sheet'!$L:$L,0),MATCH($E$7,'New data sheet'!$F$6:$K$6,0)),"") -> 15 | Q18: =IFERROR(INDEX('New data sheet'!$F:$K,MATCH($D18&Q$9,'New data sheet'!$L:$L,0),MATCH($E$7,'New data sheet'!$F$6:$K$6,0)),"") -> 8 | R18: =IFERROR(INDEX('New data sheet'!$F:$K,MATCH($D18&R$9,'New data sheet'!$L:$L,0),MATCH($E$7,'New data sheet'!$F$6:$K$6,0)),"") -> 10 | S18: =IFERROR(INDEX('New data sheet'!$F:$K,MATCH($D18&S$9,'New data sheet'!$L:$L,0),MATCH($E$7,'New data sheet'!$F$6:$K$6,0)),"") -> 13 | T18: =IFERROR(INDEX('New data sheet'!$F:$K,MATCH($D18&T$9,'New data sheet'!$L:$L,0),MATCH($E$7,'New data sheet'!$F$6:$K$6,0)),"") -> 5 | U18: =IFERROR(INDEX('New data sheet'!$F:$K,MATCH($D18&U$9,'New data sheet'!$L:$L,0),MATCH($E$7,'New data sheet'!$F$6:$K$6,0)),"") -> 
D19: Average outage duration | E19: =IFERROR(INDEX('New data sheet'!$F:$K,MATCH($D19&E$9,'New data sheet'!$L:$L,0),MATCH($E$7,'New data sheet'!$F$6:$K$6,0)),"") -> 0 | F19: =IFERROR(INDEX('New data sheet'!$F:$K,MATCH($D19&F$9,'New data sheet'!$L:$L,0),MATCH($E$7,'New data sheet'!$F$6:$K$6,0)),"") -> 0 | G19: =IFERROR(INDEX('New data sheet'!$F:$K,MATCH($D19&G$9,'New data sheet'!$L:$L,0),MATCH($E$7,'New data sheet'!$F$6:$K$6,0)),"") -> 0 | H19: =IFERROR(INDEX('New data sheet'!$F:$K,MATCH($D19&H$9,'New data sheet'!$L:$L,0),MATCH($E$7,'New data sheet'!$F$6:$K$6,0)),"") -> 0 | I19: =IFERROR(INDEX('New data sheet'!$F:$K,MATCH($D19&I$9,'New data sheet'!$L:$L,0),MATCH($E$7,'New data sheet'!$F$6:$K$6,0)),"") -> 0 | J19: =IFERROR(INDEX('New data sheet'!$F:$K,MATCH($D19&J$9,'New data sheet'!$L:$L,0),MATCH($E$7,'New data sheet'!$F$6:$K$6,0)),"") -> 0 | K19: =IFERROR(INDEX('New data sheet'!$F:$K,MATCH($D19&K$9,'New data sheet'!$L:$L,0),MATCH($E$7,'New data sheet'!$F$6:$K$6,0)),"") -> 0 | L19: =IFERROR(INDEX('New data sheet'!$F:$K,MATCH($D19&L$9,'New data sheet'!$L:$L,0),MATCH($E$7,'New data sheet'!$F$6:$K$6,0)),"") -> 0 | M19: =IFERROR(INDEX('New data sheet'!$F:$K,MATCH($D19&M$9,'New data sheet'!$L:$L,0),MATCH($E$7,'New data sheet'!$F$6:$K$6,0)),"") -> 0 | N19: =IFERROR(INDEX('New data sheet'!$F:$K,MATCH($D19&N$9,'New data sheet'!$L:$L,0),MATCH($E$7,'New data sheet'!$F$6:$K$6,0)),"") -> 0 | O19: =IFERROR(INDEX('New data sheet'!$F:$K,MATCH($D19&O$9,'New data sheet'!$L:$L,0),MATCH($E$7,'New data sheet'!$F$6:$K$6,0)),"") -> 0 | P19: =IFERROR(INDEX('New data sheet'!$F:$K,MATCH($D19&P$9,'New data sheet'!$L:$L,0),MATCH($E$7,'New data sheet'!$F$6:$K$6,0)),"") -> 0 | Q19: =IFERROR(INDEX('New data sheet'!$F:$K,MATCH($D19&Q$9,'New data sheet'!$L:$L,0),MATCH($E$7,'New data sheet'!$F$6:$K$6,0)),"") -> 0 | R19: =IFERROR(INDEX('New data sheet'!$F:$K,MATCH($D19&R$9,'New data sheet'!$L:$L,0),MATCH($E$7,'New data sheet'!$F$6:$K$6,0)),"") -> 0 | S19: =IFERROR(INDEX('New data sheet'!$F:$K,MATCH($D19&S$9,'New data sheet'!$L:$L,0),MATCH($E$7,'New data sheet'!$F$6:$K$6,0)),"") -> 0 | T19: =IFERROR(INDEX('New data sheet'!$F:$K,MATCH($D19&T$9,'New data sheet'!$L:$L,0),MATCH($E$7,'New data sheet'!$F$6:$K$6,0)),"") -> 0 | U19: =IFERROR(INDEX('New data sheet'!$F:$K,MATCH($D19&U$9,'New data sheet'!$L:$L,0),MATCH($E$7,'New data sheet'!$F$6:$K$6,0)),"") -> 
D20: Market impact indicator | E20: =IFERROR(INDEX('New data sheet'!$F:$K,MATCH($D20&E$9,'New data sheet'!$L:$L,0),MATCH($E$7,'New data sheet'!$F$6:$K$6,0)),"") -> 0 | F20: =IFERROR(INDEX('New data sheet'!$F:$K,MATCH($D20&F$9,'New data sheet'!$L:$L,0),MATCH($E$7,'New data sheet'!$F$6:$K$6,0)),"") -> 0 | G20: =IFERROR(INDEX('New data sheet'!$F:$K,MATCH($D20&G$9,'New data sheet'!$L:$L,0),MATCH($E$7,'New data sheet'!$F$6:$K$6,0)),"") -> 0 | H20: =IFERROR(INDEX('New data sheet'!$F:$K,MATCH($D20&H$9,'New data sheet'!$L:$L,0),MATCH($E$7,'New data sheet'!$F$6:$K$6,0)),"") -> 0 | I20: =IFERROR(INDEX('New data sheet'!$F:$K,MATCH($D20&I$9,'New data sheet'!$L:$L,0),MATCH($E$7,'New data sheet'!$F$6:$K$6,0)),"") -> 0 | J20: =IFERROR(INDEX('New data sheet'!$F:$K,MATCH($D20&J$9,'New data sheet'!$L:$L,0),MATCH($E$7,'New data sheet'!$F$6:$K$6,0)),"") -> 0 | K20: =IFERROR(INDEX('New data sheet'!$F:$K,MATCH($D20&K$9,'New data sheet'!$L:$L,0),MATCH($E$7,'New data sheet'!$F$6:$K$6,0)),"") -> 0 | L20: =IFERROR(INDEX('New data sheet'!$F:$K,MATCH($D20&L$9,'New data sheet'!$L:$L,0),MATCH($E$7,'New data sheet'!$F$6:$K$6,0)),"") -> 0 | M20: =IFERROR(INDEX('New data sheet'!$F:$K,MATCH($D20&M$9,'New data sheet'!$L:$L,0),MATCH($E$7,'New data sheet'!$F$6:$K$6,0)),"") -> 0 | N20: =IFERROR(INDEX('New data sheet'!$F:$K,MATCH($D20&N$9,'New data sheet'!$L:$L,0),MATCH($E$7,'New data sheet'!$F$6:$K$6,0)),"") -> 0 | O20: =IFERROR(INDEX('New data sheet'!$F:$K,MATCH($D20&O$9,'New data sheet'!$L:$L,0),MATCH($E$7,'New data sheet'!$F$6:$K$6,0)),"") -> 0 | P20: =IFERROR(INDEX('New data sheet'!$F:$K,MATCH($D20&P$9,'New data sheet'!$L:$L,0),MATCH($E$7,'New data sheet'!$F$6:$K$6,0)),"") -> 0 | Q20: =IFERROR(INDEX('New data sheet'!$F:$K,MATCH($D20&Q$9,'New data sheet'!$L:$L,0),MATCH($E$7,'New data sheet'!$F$6:$K$6,0)),"") -> 0 | R20: =IFERROR(INDEX('New data sheet'!$F:$K,MATCH($D20&R$9,'New data sheet'!$L:$L,0),MATCH($E$7,'New data sheet'!$F$6:$K$6,0)),"") -> 0 | S20: =IFERROR(INDEX('New data sheet'!$F:$K,MATCH($D20&S$9,'New data sheet'!$L:$L,0),MATCH($E$7,'New data sheet'!$F$6:$K$6,0)),"") -> 0 | T20: =IFERROR(INDEX('New data sheet'!$F:$K,MATCH($D20&T$9,'New data sheet'!$L:$L,0),MATCH($E$7,'New data sheet'!$F$6:$K$6,0)),"") -> 0 | U20: =IFERROR(INDEX('New data sheet'!$F:$K,MATCH($D20&U$9,'New data sheet'!$L:$L,0),MATCH($E$7,'New data sheet'!$F$6:$K$6,0)),"") -> 
D21: Maximum demand (MW) | E21: =IFERROR(INDEX('New data sheet'!$F:$K,MATCH($D21&E$9,'New data sheet'!$L:$L,0),MATCH($E$7,'New data sheet'!$F$6:$K$6,0)),"") -> 0 | F21: =IFERROR(INDEX('New data sheet'!$F:$K,MATCH($D21&F$9,'New data sheet'!$L:$L,0),MATCH($E$7,'New data sheet'!$F$6:$K$6,0)),"") -> 0 | G21: =IFERROR(INDEX('New data sheet'!$F:$K,MATCH($D21&G$9,'New data sheet'!$L:$L,0),MATCH($E$7,'New data sheet'!$F$6:$K$6,0)),"") -> 0 | H21: =IFERROR(INDEX('New data sheet'!$F:$K,MATCH($D21&H$9,'New data sheet'!$L:$L,0),MATCH($E$7,'New data sheet'!$F$6:$K$6,0)),"") -> 0 | I21: =IFERROR(INDEX('New data sheet'!$F:$K,MATCH($D21&I$9,'New data sheet'!$L:$L,0),MATCH($E$7,'New data sheet'!$F$6:$K$6,0)),"") -> 0 | J21: =IFERROR(INDEX('New data sheet'!$F:$K,MATCH($D21&J$9,'New data sheet'!$L:$L,0),MATCH($E$7,'New data sheet'!$F$6:$K$6,0)),"") -> 0 | K21: =IFERROR(INDEX('New data sheet'!$F:$K,MATCH($D21&K$9,'New data sheet'!$L:$L,0),MATCH($E$7,'New data sheet'!$F$6:$K$6,0)),"") -> 0 | L21: =IFERROR(INDEX('New data sheet'!$F:$K,MATCH($D21&L$9,'New data sheet'!$L:$L,0),MATCH($E$7,'New data sheet'!$F$6:$K$6,0)),"") -> 0 | M21: =IFERROR(INDEX('New data sheet'!$F:$K,MATCH($D21&M$9,'New data sheet'!$L:$L,0),MATCH($E$7,'New data sheet'!$F$6:$K$6,0)),"") -> 0 | N21: =IFERROR(INDEX('New data sheet'!$F:$K,MATCH($D21&N$9,'New data sheet'!$L:$L,0),MATCH($E$7,'New data sheet'!$F$6:$K$6,0)),"") -> 0 | O21: =IFERROR(INDEX('New data sheet'!$F:$K,MATCH($D21&O$9,'New data sheet'!$L:$L,0),MATCH($E$7,'New data sheet'!$F$6:$K$6,0)),"") -> 0 | P21: =IFERROR(INDEX('New data sheet'!$F:$K,MATCH($D21&P$9,'New data sheet'!$L:$L,0),MATCH($E$7,'New data sheet'!$F$6:$K$6,0)),"") -> 0 | Q21: =IFERROR(INDEX('New data sheet'!$F:$K,MATCH($D21&Q$9,'New data sheet'!$L:$L,0),MATCH($E$7,'New data sheet'!$F$6:$K$6,0)),"") -> 0 | R21: =IFERROR(INDEX('New data sheet'!$F:$K,MATCH($D21&R$9,'New data sheet'!$L:$L,0),MATCH($E$7,'New data sheet'!$F$6:$K$6,0)),"") -> 0 | S21: =IFERROR(INDEX('New data sheet'!$F:$K,MATCH($D21&S$9,'New data sheet'!$L:$L,0),MATCH($E$7,'New data sheet'!$F$6:$K$6,0)),"") -> 0 | T21: =IFERROR(INDEX('New data sheet'!$F:$K,MATCH($D21&T$9,'New data sheet'!$L:$L,0),MATCH($E$7,'New data sheet'!$F$6:$K$6,0)),"") -> 0 | U21: =IFERROR(INDEX('New data sheet'!$F:$K,MATCH($D21&U$9,'New data sheet'!$L:$L,0),MATCH($E$7,'New data sheet'!$F$6:$K$6,0)),"") -> 0
D22: Energy delivered (GWh) - including energy delivered to other transmission networks | E22: =IFERROR(INDEX('New data sheet'!$F:$K,MATCH($D22&E$9,'New data sheet'!$L:$L,0),MATCH($E$7,'New data sheet'!$F$6:$K$6,0)),"") -> 0 | F22: =IFERROR(INDEX('New data sheet'!$F:$K,MATCH($D22&F$9,'New data sheet'!$L:$L,0),MATCH($E$7,'New data sheet'!$F$6:$K$6,0)),"") -> 0 | G22: =IFERROR(INDEX('New data sheet'!$F:$K,MATCH($D22&G$9,'New data sheet'!$L:$L,0),MATCH($E$7,'New data sheet'!$F$6:$K$6,0)),"") -> 0 | H22: =IFERROR(INDEX('New data sheet'!$F:$K,MATCH($D22&H$9,'New data sheet'!$L:$L,0),MATCH($E$7,'New data sheet'!$F$6:$K$6,0)),"") -> 0 | I22: =IFERROR(INDEX('New data sheet'!$F:$K,MATCH($D22&I$9,'New data sheet'!$L:$L,0),MATCH($E$7,'New data sheet'!$F$6:$K$6,0)),"") -> 0 | J22: =IFERROR(INDEX('New data sheet'!$F:$K,MATCH($D22&J$9,'New data sheet'!$L:$L,0),MATCH($E$7,'New data sheet'!$F$6:$K$6,0)),"") -> 0 | K22: =IFERROR(INDEX('New data sheet'!$F:$K,MATCH($D22&K$9,'New data sheet'!$L:$L,0),MATCH($E$7,'New data sheet'!$F$6:$K$6,0)),"") -> 0 | L22: =IFERROR(INDEX('New data sheet'!$F:$K,MATCH($D22&L$9,'New data sheet'!$L:$L,0),MATCH($E$7,'New data sheet'!$F$6:$K$6,0)),"") -> 0 | M22: =IFERROR(INDEX('New data sheet'!$F:$K,MATCH($D22&M$9,'New data sheet'!$L:$L,0),MATCH($E$7,'New data sheet'!$F$6:$K$6,0)),"") -> 0 | N22: =IFERROR(INDEX('New data sheet'!$F:$K,MATCH($D22&N$9,'New data sheet'!$L:$L,0),MATCH($E$7,'New data sheet'!$F$6:$K$6,0)),"") -> 0 | O22: =IFERROR(INDEX('New data sheet'!$F:$K,MATCH($D22&O$9,'New data sheet'!$L:$L,0),MATCH($E$7,'New data sheet'!$F$6:$K$6,0)),"") -> 0 | P22: =IFERROR(INDEX('New data sheet'!$F:$K,MATCH($D22&P$9,'New data sheet'!$L:$L,0),MATCH($E$7,'New data sheet'!$F$6:$K$6,0)),"") -> 0 | Q22: =IFERROR(INDEX('New data sheet'!$F:$K,MATCH($D22&Q$9,'New data sheet'!$L:$L,0),MATCH($E$7,'New data sheet'!$F$6:$K$6,0)),"") -> 0 | R22: =IFERROR(INDEX('New data sheet'!$F:$K,MATCH($D22&R$9,'New data sheet'!$L:$L,0),MATCH($E$7,'New data sheet'!$F$6:$K$6,0)),"") -> 0 | S22: =IFERROR(INDEX('New data sheet'!$F:$K,MATCH($D22&S$9,'New data sheet'!$L:$L,0),MATCH($E$7,'New data sheet'!$F$6:$K$6,0)),"") -> 0 | T22: =IFERROR(INDEX('New data sheet'!$F:$K,MATCH($D22&T$9,'New data sheet'!$L:$L,0),MATCH($E$7,'New data sheet'!$F$6:$K$6,0)),"") -> 0 | U22: =IFERROR(INDEX('New data sheet'!$F:$K,MATCH($D22&U$9,'New data sheet'!$L:$L,0),MATCH($E$7,'New data sheet'!$F$6:$K$6,0)),"") -> 0
D23: Energy delivered (GWh) - excluding energy delivered to other transmission networks | E23: =IFERROR(INDEX('New data sheet'!$F:$K,MATCH($D23&E$9,'New data sheet'!$L:$L,0),MATCH($E$7,'New data sheet'!$F$6:$K$6,0)),"") -> 182631.4989 | F23: =IFERROR(INDEX('New data sheet'!$F:$K,MATCH($D23&F$9,'New data sheet'!$L:$L,0),MATCH($E$7,'New data sheet'!$F$6:$K$6,0)),"") -> 186176.6668 | G23: =IFERROR(INDEX('New data sheet'!$F:$K,MATCH($D23&G$9,'New data sheet'!$L:$L,0),MATCH($E$7,'New data sheet'!$F$6:$K$6,0)),"") -> 187629.6835 | H23: =IFERROR(INDEX('New data sheet'!$F:$K,MATCH($D23&H$9,'New data sheet'!$L:$L,0),MATCH($E$7,'New data sheet'!$F$6:$K$6,0)),"") -> 187179.7504 | I23: =IFERROR(INDEX('New data sheet'!$F:$K,MATCH($D23&I$9,'New data sheet'!$L:$L,0),MATCH($E$7,'New data sheet'!$F$6:$K$6,0)),"") -> 185093.7098 | J23: =IFERROR(INDEX('New data sheet'!$F:$K,MATCH($D23&J$9,'New data sheet'!$L:$L,0),MATCH($E$7,'New data sheet'!$F$6:$K$6,0)),"") -> 181765.9955 | K23: =IFERROR(INDEX('New data sheet'!$F:$K,MATCH($D23&K$9,'New data sheet'!$L:$L,0),MATCH($E$7,'New data sheet'!$F$6:$K$6,0)),"") -> 179217.0829 | L23: =IFERROR(INDEX('New data sheet'!$F:$K,MATCH($D23&L$9,'New data sheet'!$L:$L,0),MATCH($E$7,'New data sheet'!$F$6:$K$6,0)),"") -> 174799.61 | M23: =IFERROR(INDEX('New data sheet'!$F:$K,MATCH($D23&M$9,'New data sheet'!$L:$L,0),MATCH($E$7,'New data sheet'!$F$6:$K$6,0)),"") -> 170562.8549 | N23: =IFERROR(INDEX('New data sheet'!$F:$K,MATCH($D23&N$9,'New data sheet'!$L:$L,0),MATCH($E$7,'New data sheet'!$F$6:$K$6,0)),"") -> 173326.2486 | O23: =IFERROR(INDEX('New data sheet'!$F:$K,MATCH($D23&O$9,'New data sheet'!$L:$L,0),MATCH($E$7,'New data sheet'!$F$6:$K$6,0)),"") -> 177091.9191 | P23: =IFERROR(INDEX('New data sheet'!$F:$K,MATCH($D23&P$9,'New data sheet'!$L:$L,0),MATCH($E$7,'New data sheet'!$F$6:$K$6,0)),"") -> 177372.3798 | Q23: =IFERROR(INDEX('New data sheet'!$F:$K,MATCH($D23&Q$9,'New data sheet'!$L:$L,0),MATCH($E$7,'New data sheet'!$F$6:$K$6,0)),"") -> 177652.726 | R23: =IFERROR(INDEX('New data sheet'!$F:$K,MATCH($D23&R$9,'New data sheet'!$L:$L,0),MATCH($E$7,'New data sheet'!$F$6:$K$6,0)),"") -> 173893.6109 | S23: =IFERROR(INDEX('New data sheet'!$F:$K,MATCH($D23&S$9,'New data sheet'!$L:$L,0),MATCH($E$7,'New data sheet'!$F$6:$K$6,0)),"") -> 170294.0713 | T23: =IFERROR(INDEX('New data sheet'!$F:$K,MATCH($D23&T$9,'New data sheet'!$L:$L,0),MATCH($E$7,'New data sheet'!$F$6:$K$6,0)),"") -> 168026.7632 | U23: =IFERROR(INDEX('New data sheet'!$F:$K,MATCH($D23&U$9,'New data sheet'!$L:$L,0),MATCH($E$7,'New data sheet'!$F$6:$K$6,0)),"") -> 170660.9991
D24: Circuit length | E24: =IFERROR(INDEX('New data sheet'!$F:$K,MATCH($D24&E$9,'New data sheet'!$L:$L,0),MATCH($E$7,'New data sheet'!$F$6:$K$6,0)),"") -> 39972.87 | F24: =IFERROR(INDEX('New data sheet'!$F:$K,MATCH($D24&F$9,'New data sheet'!$L:$L,0),MATCH($E$7,'New data sheet'!$F$6:$K$6,0)),"") -> 40133.263 | G24: =IFERROR(INDEX('New data sheet'!$F:$K,MATCH($D24&G$9,'New data sheet'!$L:$L,0),MATCH($E$7,'New data sheet'!$F$6:$K$6,0)),"") -> 40666.283 | H24: =IFERROR(INDEX('New data sheet'!$F:$K,MATCH($D24&H$9,'New data sheet'!$L:$L,0),MATCH($E$7,'New data sheet'!$F$6:$K$6,0)),"") -> 40985.418 | I24: =IFERROR(INDEX('New data sheet'!$F:$K,MATCH($D24&I$9,'New data sheet'!$L:$L,0),MATCH($E$7,'New data sheet'!$F$6:$K$6,0)),"") -> 41559.528 | J24: =IFERROR(INDEX('New data sheet'!$F:$K,MATCH($D24&J$9,'New data sheet'!$L:$L,0),MATCH($E$7,'New data sheet'!$F$6:$K$6,0)),"") -> 41991.232 | K24: =IFERROR(INDEX('New data sheet'!$F:$K,MATCH($D24&K$9,'New data sheet'!$L:$L,0),MATCH($E$7,'New data sheet'!$F$6:$K$6,0)),"") -> 41991.976 | L24: =IFERROR(INDEX('New data sheet'!$F:$K,MATCH($D24&L$9,'New data sheet'!$L:$L,0),MATCH($E$7,'New data sheet'!$F$6:$K$6,0)),"") -> 42810.656 | M24: =IFERROR(INDEX('New data sheet'!$F:$K,MATCH($D24&M$9,'New data sheet'!$L:$L,0),MATCH($E$7,'New data sheet'!$F$6:$K$6,0)),"") -> 43308.36905 | N24: =IFERROR(INDEX('New data sheet'!$F:$K,MATCH($D24&N$9,'New data sheet'!$L:$L,0),MATCH($E$7,'New data sheet'!$F$6:$K$6,0)),"") -> 43437.5137 | O24: =IFERROR(INDEX('New data sheet'!$F:$K,MATCH($D24&O$9,'New data sheet'!$L:$L,0),MATCH($E$7,'New data sheet'!$F$6:$K$6,0)),"") -> 43441.58876 | P24: =IFERROR(INDEX('New data sheet'!$F:$K,MATCH($D24&P$9,'New data sheet'!$L:$L,0),MATCH($E$7,'New data sheet'!$F$6:$K$6,0)),"") -> 43253.85448 | Q24: =IFERROR(INDEX('New data sheet'!$F:$K,MATCH($D24&Q$9,'New data sheet'!$L:$L,0),MATCH($E$7,'New data sheet'!$F$6:$K$6,0)),"") -> 43308.0837 | R24: =IFERROR(INDEX('New data sheet'!$F:$K,MATCH($D24&R$9,'New data sheet'!$L:$L,0),MATCH($E$7,'New data sheet'!$F$6:$K$6,0)),"") -> 43264.21422 | S24: =IFERROR(INDEX('New data sheet'!$F:$K,MATCH($D24&S$9,'New data sheet'!$L:$L,0),MATCH($E$7,'New data sheet'!$F$6:$K$6,0)),"") -> 43181.87869 | T24: =IFERROR(INDEX('New data sheet'!$F:$K,MATCH($D24&T$9,'New data sheet'!$L:$L,0),MATCH($E$7,'New data sheet'!$F$6:$K$6,0)),"") -> 43172.047 | U24: =IFERROR(INDEX('New data sheet'!$F:$K,MATCH($D24&U$9,'New data sheet'!$L:$L,0),MATCH($E$7,'New data sheet'!$F$6:$K$6,0)),"") -> 43117.574
D25: Circuit length - overhead | E25: =IFERROR(INDEX('New data sheet'!$F:$K,MATCH($D25&E$9,'New data sheet'!$L:$L,0),MATCH($E$7,'New data sheet'!$F$6:$K$6,0)),"") -> 39876.073 | F25: =IFERROR(INDEX('New data sheet'!$F:$K,MATCH($D25&F$9,'New data sheet'!$L:$L,0),MATCH($E$7,'New data sheet'!$F$6:$K$6,0)),"") -> 40036.466 | G25: =IFERROR(INDEX('New data sheet'!$F:$K,MATCH($D25&G$9,'New data sheet'!$L:$L,0),MATCH($E$7,'New data sheet'!$F$6:$K$6,0)),"") -> 40569.486 | H25: =IFERROR(INDEX('New data sheet'!$F:$K,MATCH($D25&H$9,'New data sheet'!$L:$L,0),MATCH($E$7,'New data sheet'!$F$6:$K$6,0)),"") -> 40887.321 | I25: =IFERROR(INDEX('New data sheet'!$F:$K,MATCH($D25&I$9,'New data sheet'!$L:$L,0),MATCH($E$7,'New data sheet'!$F$6:$K$6,0)),"") -> 41461.431 | J25: =IFERROR(INDEX('New data sheet'!$F:$K,MATCH($D25&J$9,'New data sheet'!$L:$L,0),MATCH($E$7,'New data sheet'!$F$6:$K$6,0)),"") -> 41888.835 | K25: =IFERROR(INDEX('New data sheet'!$F:$K,MATCH($D25&K$9,'New data sheet'!$L:$L,0),MATCH($E$7,'New data sheet'!$F$6:$K$6,0)),"") -> 41871.179 | L25: =IFERROR(INDEX('New data sheet'!$F:$K,MATCH($D25&L$9,'New data sheet'!$L:$L,0),MATCH($E$7,'New data sheet'!$F$6:$K$6,0)),"") -> 42679.869 | M25: =IFERROR(INDEX('New data sheet'!$F:$K,MATCH($D25&M$9,'New data sheet'!$L:$L,0),MATCH($E$7,'New data sheet'!$F$6:$K$6,0)),"") -> 43173.44305 | N25: =IFERROR(INDEX('New data sheet'!$F:$K,MATCH($D25&N$9,'New data sheet'!$L:$L,0),MATCH($E$7,'New data sheet'!$F$6:$K$6,0)),"") -> 43271.6007 | O25: =IFERROR(INDEX('New data sheet'!$F:$K,MATCH($D25&O$9,'New data sheet'!$L:$L,0),MATCH($E$7,'New data sheet'!$F$6:$K$6,0)),"") -> 43275.65976 | P25: =IFERROR(INDEX('New data sheet'!$F:$K,MATCH($D25&P$9,'New data sheet'!$L:$L,0),MATCH($E$7,'New data sheet'!$F$6:$K$6,0)),"") -> 43091.23211 | Q25: =IFERROR(INDEX('New data sheet'!$F:$K,MATCH($D25&Q$9,'New data sheet'!$L:$L,0),MATCH($E$7,'New data sheet'!$F$6:$K$6,0)),"") -> 43145.4047 | R25: =IFERROR(INDEX('New data sheet'!$F:$K,MATCH($D25&R$9,'New data sheet'!$L:$L,0),MATCH($E$7,'New data sheet'!$F$6:$K$6,0)),"") -> 43099.06722 | S25: =IFERROR(INDEX('New data sheet'!$F:$K,MATCH($D25&S$9,'New data sheet'!$L:$L,0),MATCH($E$7,'New data sheet'!$F$6:$K$6,0)),"") -> 43016.06769 | T25: =IFERROR(INDEX('New data sheet'!$F:$K,MATCH($D25&T$9,'New data sheet'!$L:$L,0),MATCH($E$7,'New data sheet'!$F$6:$K$6,0)),"") -> 43006.236 | U25: =IFERROR(INDEX('New data sheet'!$F:$K,MATCH($D25&U$9,'New data sheet'!$L:$L,0),MATCH($E$7,'New data sheet'!$F$6:$K$6,0)),"") -> 42931.143
D26: Circuit length - underground | E26: =IFERROR(INDEX('New data sheet'!$F:$K,MATCH($D26&E$9,'New data sheet'!$L:$L,0),MATCH($E$7,'New data sheet'!$F$6:$K$6,0)),"") -> 96.797 | F26: =IFERROR(INDEX('New data sheet'!$F:$K,MATCH($D26&F$9,'New data sheet'!$L:$L,0),MATCH($E$7,'New data sheet'!$F$6:$K$6,0)),"") -> 96.797 | G26: =IFERROR(INDEX('New data sheet'!$F:$K,MATCH($D26&G$9,'New data sheet'!$L:$L,0),MATCH($E$7,'New data sheet'!$F$6:$K$6,0)),"") -> 96.797 | H26: =IFERROR(INDEX('New data sheet'!$F:$K,MATCH($D26&H$9,'New data sheet'!$L:$L,0),MATCH($E$7,'New data sheet'!$F$6:$K$6,0)),"") -> 98.097 | I26: =IFERROR(INDEX('New data sheet'!$F:$K,MATCH($D26&I$9,'New data sheet'!$L:$L,0),MATCH($E$7,'New data sheet'!$F$6:$K$6,0)),"") -> 98.097 | J26: =IFERROR(INDEX('New data sheet'!$F:$K,MATCH($D26&J$9,'New data sheet'!$L:$L,0),MATCH($E$7,'New data sheet'!$F$6:$K$6,0)),"") -> 102.397 | K26: =IFERROR(INDEX('New data sheet'!$F:$K,MATCH($D26&K$9,'New data sheet'!$L:$L,0),MATCH($E$7,'New data sheet'!$F$6:$K$6,0)),"") -> 120.797 | L26: =IFERROR(INDEX('New data sheet'!$F:$K,MATCH($D26&L$9,'New data sheet'!$L:$L,0),MATCH($E$7,'New data sheet'!$F$6:$K$6,0)),"") -> 130.787 | M26: =IFERROR(INDEX('New data sheet'!$F:$K,MATCH($D26&M$9,'New data sheet'!$L:$L,0),MATCH($E$7,'New data sheet'!$F$6:$K$6,0)),"") -> 134.926 | N26: =IFERROR(INDEX('New data sheet'!$F:$K,MATCH($D26&N$9,'New data sheet'!$L:$L,0),MATCH($E$7,'New data sheet'!$F$6:$K$6,0)),"") -> 165.913 | O26: =IFERROR(INDEX('New data sheet'!$F:$K,MATCH($D26&O$9,'New data sheet'!$L:$L,0),MATCH($E$7,'New data sheet'!$F$6:$K$6,0)),"") -> 165.929 | P26: =IFERROR(INDEX('New data sheet'!$F:$K,MATCH($D26&P$9,'New data sheet'!$L:$L,0),MATCH($E$7,'New data sheet'!$F$6:$K$6,0)),"") -> 162.6223703 | Q26: =IFERROR(INDEX('New data sheet'!$F:$K,MATCH($D26&Q$9,'New data sheet'!$L:$L,0),MATCH($E$7,'New data sheet'!$F$6:$K$6,0)),"") -> 162.679 | R26: =IFERROR(INDEX('New data sheet'!$F:$K,MATCH($D26&R$9,'New data sheet'!$L:$L,0),MATCH($E$7,'New data sheet'!$F$6:$K$6,0)),"") -> 165.147 | S26: =IFERROR(INDEX('New data sheet'!$F:$K,MATCH($D26&S$9,'New data sheet'!$L:$L,0),MATCH($E$7,'New data sheet'!$F$6:$K$6,0)),"") -> 165.811 | T26: =IFERROR(INDEX('New data sheet'!$F:$K,MATCH($D26&T$9,'New data sheet'!$L:$L,0),MATCH($E$7,'New data sheet'!$F$6:$K$6,0)),"") -> 165.811 | U26: =IFERROR(INDEX('New data sheet'!$F:$K,MATCH($D26&U$9,'New data sheet'!$L:$L,0),MATCH($E$7,'New data sheet'!$F$6:$K$6,0)),"") -> 186.431
D27: Return on assets, including incentive scheme penalties or rewards | E27: =INDEX('New data sheet'!$F:$K,MATCH($D27&E$9,'New data sheet'!$L:$L,0),MATCH($E$7,'New data sheet'!$F$6:$K$6,0)) ->  | F27: =INDEX('New data sheet'!$F:$K,MATCH($D27&F$9,'New data sheet'!$L:$L,0),MATCH($E$7,'New data sheet'!$F$6:$K$6,0)) ->  | G27: =INDEX('New data sheet'!$F:$K,MATCH($D27&G$9,'New data sheet'!$L:$L,0),MATCH($E$7,'New data sheet'!$F$6:$K$6,0)) ->  | H27: =INDEX('New data sheet'!$F:$K,MATCH($D27&H$9,'New data sheet'!$L:$L,0),MATCH($E$7,'New data sheet'!$F$6:$K$6,0)) ->  | I27: =INDEX('New data sheet'!$F:$K,MATCH($D27&I$9,'New data sheet'!$L:$L,0),MATCH($E$7,'New data sheet'!$F$6:$K$6,0)) ->  | J27: =INDEX('New data sheet'!$F:$K,MATCH($D27&J$9,'New data sheet'!$L:$L,0),MATCH($E$7,'New data sheet'!$F$6:$K$6,0)) ->  | K27: =INDEX('New data sheet'!$F:$K,MATCH($D27&K$9,'New data sheet'!$L:$L,0),MATCH($E$7,'New data sheet'!$F$6:$K$6,0)) ->  | L27: =INDEX('New data sheet'!$F:$K,MATCH($D27&L$9,'New data sheet'!$L:$L,0),MATCH($E$7,'New data sheet'!$F$6:$K$6,0)) ->  | M27: =INDEX('New data sheet'!$F:$K,MATCH($D27&M$9,'New data sheet'!$L:$L,0),MATCH($E$7,'New data sheet'!$F$6:$K$6,0)) ->  | N27: =INDEX('New data sheet'!$F:$K,MATCH($D27&N$9,'New data sheet'!$L:$L,0),MATCH($E$7,'New data sheet'!$F$6:$K$6,0)) ->  | O27: =INDEX('New data sheet'!$F:$K,MATCH($D27&O$9,'New data sheet'!$L:$L,0),MATCH($E$7,'New data sheet'!$F$6:$K$6,0)) ->  | P27: =INDEX('New data sheet'!$F:$K,MATCH($D27&P$9,'New data sheet'!$L:$L,0),MATCH($E$7,'New data sheet'!$F$6:$K$6,0)) ->  | Q27: =INDEX('New data sheet'!$F:$K,MATCH($D27&Q$9,'New data sheet'!$L:$L,0),MATCH($E$7,'New data sheet'!$F$6:$K$6,0)) ->  | R27: =INDEX('New data sheet'!$F:$K,MATCH($D27&R$9,'New data sheet'!$L:$L,0),MATCH($E$7,'New data sheet'!$F$6:$K$6,0)) ->  | S27: =INDEX('New data sheet'!$F:$K,MATCH($D27&S$9,'New data sheet'!$L:$L,0),MATCH($E$7,'New data sheet'!$F$6:$K$6,0)) ->  | T27: =INDEX('New data sheet'!$F:$K,MATCH($D27&T$9,'New data sheet'!$L:$L,0),MATCH($E$7,'New data sheet'!$F$6:$K$6,0)) ->  | U27: =INDEX('New data sheet'!$F:$K,MATCH($D27&U$9,'New data sheet'!$L:$L,0),MATCH($E$7,'New data sheet'!$F$6:$K$6,0)) -> 
D28: Return on assets, excluding incentive scheme penalties or rewards | E28: =INDEX('New data sheet'!$F:$K,MATCH($D28&E$9,'New data sheet'!$L:$L,0),MATCH($E$7,'New data sheet'!$F$6:$K$6,0)) ->  | F28: =INDEX('New data sheet'!$F:$K,MATCH($D28&F$9,'New data sheet'!$L:$L,0),MATCH($E$7,'New data sheet'!$F$6:$K$6,0)) ->  | G28: =INDEX('New data sheet'!$F:$K,MATCH($D28&G$9,'New data sheet'!$L:$L,0),MATCH($E$7,'New data sheet'!$F$6:$K$6,0)) ->  | H28: =INDEX('New data sheet'!$F:$K,MATCH($D28&H$9,'New data sheet'!$L:$L,0),MATCH($E$7,'New data sheet'!$F$6:$K$6,0)) ->  | I28: =INDEX('New data sheet'!$F:$K,MATCH($D28&I$9,'New data sheet'!$L:$L,0),MATCH($E$7,'New data sheet'!$F$6:$K$6,0)) ->  | J28: =INDEX('New data sheet'!$F:$K,MATCH($D28&J$9,'New data sheet'!$L:$L,0),MATCH($E$7,'New data sheet'!$F$6:$K$6,0)) ->  | K28: =INDEX('New data sheet'!$F:$K,MATCH($D28&K$9,'New data sheet'!$L:$L,0),MATCH($E$7,'New data sheet'!$F$6:$K$6,0)) ->  | L28: =INDEX('New data sheet'!$F:$K,MATCH($D28&L$9,'New data sheet'!$L:$L,0),MATCH($E$7,'New data sheet'!$F$6:$K$6,0)) ->  | M28: =INDEX('New data sheet'!$F:$K,MATCH($D28&M$9,'New data sheet'!$L:$L,0),MATCH($E$7,'New data sheet'!$F$6:$K$6,0)) ->  | N28: =INDEX('New data sheet'!$F:$K,MATCH($D28&N$9,'New data sheet'!$L:$L,0),MATCH($E$7,'New data sheet'!$F$6:$K$6,0)) ->  | O28: =INDEX('New data sheet'!$F:$K,MATCH($D28&O$9,'New data sheet'!$L:$L,0),MATCH($E$7,'New data sheet'!$F$6:$K$6,0)) ->  | P28: =INDEX('New data sheet'!$F:$K,MATCH($D28&P$9,'New data sheet'!$L:$L,0),MATCH($E$7,'New data sheet'!$F$6:$K$6,0)) ->  | Q28: =INDEX('New data sheet'!$F:$K,MATCH($D28&Q$9,'New data sheet'!$L:$L,0),MATCH($E$7,'New data sheet'!$F$6:$K$6,0)) ->  | R28: =INDEX('New data sheet'!$F:$K,MATCH($D28&R$9,'New data sheet'!$L:$L,0),MATCH($E$7,'New data sheet'!$F$6:$K$6,0)) ->  | S28: =INDEX('New data sheet'!$F:$K,MATCH($D28&S$9,'New data sheet'!$L:$L,0),MATCH($E$7,'New data sheet'!$F$6:$K$6,0)) ->  | T28: =INDEX('New data sheet'!$F:$K,MATCH($D28&T$9,'New data sheet'!$L:$L,0),MATCH($E$7,'New data sheet'!$F$6:$K$6,0)) ->  | U28: =INDEX('New data sheet'!$F:$K,MATCH($D28&U$9,'New data sheet'!$L:$L,0),MATCH($E$7,'New data sheet'!$F$6:$K$6,0)) -> 
D29: Real pre-tax WACC | E29: =INDEX('New data sheet'!$F:$K,MATCH($D29&E$9,'New data sheet'!$L:$L,0),MATCH($E$7,'New data sheet'!$F$6:$K$6,0)) ->  | F29: =INDEX('New data sheet'!$F:$K,MATCH($D29&F$9,'New data sheet'!$L:$L,0),MATCH($E$7,'New data sheet'!$F$6:$K$6,0)) ->  | G29: =INDEX('New data sheet'!$F:$K,MATCH($D29&G$9,'New data sheet'!$L:$L,0),MATCH($E$7,'New data sheet'!$F$6:$K$6,0)) ->  | H29: =INDEX('New data sheet'!$F:$K,MATCH($D29&H$9,'New data sheet'!$L:$L,0),MATCH($E$7,'New data sheet'!$F$6:$K$6,0)) ->  | I29: =INDEX('New data sheet'!$F:$K,MATCH($D29&I$9,'New data sheet'!$L:$L,0),MATCH($E$7,'New data sheet'!$F$6:$K$6,0)) ->  | J29: =INDEX('New data sheet'!$F:$K,MATCH($D29&J$9,'New data sheet'!$L:$L,0),MATCH($E$7,'New data sheet'!$F$6:$K$6,0)) ->  | K29: =INDEX('New data sheet'!$F:$K,MATCH($D29&K$9,'New data sheet'!$L:$L,0),MATCH($E$7,'New data sheet'!$F$6:$K$6,0)) ->  | L29: =INDEX('New data sheet'!$F:$K,MATCH($D29&L$9,'New data sheet'!$L:$L,0),MATCH($E$7,'New data sheet'!$F$6:$K$6,0)) ->  | M29: =INDEX('New data sheet'!$F:$K,MATCH($D29&M$9,'New data sheet'!$L:$L,0),MATCH($E$7,'New data sheet'!$F$6:$K$6,0)) ->  | N29: =INDEX('New data sheet'!$F:$K,MATCH($D29&N$9,'New data sheet'!$L:$L,0),MATCH($E$7,'New data sheet'!$F$6:$K$6,0)) ->  | O29: =INDEX('New data sheet'!$F:$K,MATCH($D29&O$9,'New data sheet'!$L:$L,0),MATCH($E$7,'New data sheet'!$F$6:$K$6,0)) ->  | P29: =INDEX('New data sheet'!$F:$K,MATCH($D29&P$9,'New data sheet'!$L:$L,0),MATCH($E$7,'New data sheet'!$F$6:$K$6,0)) ->  | Q29: =INDEX('New data sheet'!$F:$K,MATCH($D29&Q$9,'New data sheet'!$L:$L,0),MATCH($E$7,'New data sheet'!$F$6:$K$6,0)) ->  | R29: =INDEX('New data sheet'!$F:$K,MATCH($D29&R$9,'New data sheet'!$L:$L,0),MATCH($E$7,'New data sheet'!$F$6:$K$6,0)) ->  | S29: =INDEX('New data sheet'!$F:$K,MATCH($D29&S$9,'New data sheet'!$L:$L,0),MATCH($E$7,'New data sheet'!$F$6:$K$6,0)) ->  | T29: =INDEX('New data sheet'!$F:$K,MATCH($D29&T$9,'New data sheet'!$L:$L,0),MATCH($E$7,'New data sheet'!$F$6:$K$6,0)) ->  | U29: =INDEX('New data sheet'!$F:$K,MATCH($D29&U$9,'New data sheet'!$L:$L,0),MATCH($E$7,'New data sheet'!$F$6:$K$6,0)) -> 
E31: 2009 | F31: 2010 | G31: 2011 | H31: 2012 | I31: 2013 | J31: 2014 | K31: 2015 | L31: 2016 | M31: 2017 | N31: 2018 | O31: 2019 | P31: 2020 | Q31: 2021 | R31: 2022
D32: augmentation expenditure | E32: =IF($E$7="Transmission total", '4. Capex by Driver'!D41, IF($E$7="Powerlink",'4. Capex by Driver'!D57, IF($E$7="Transgrid",'4. Capex by Driver'!D65, IF($E$7="AusNet (T)",'4. Capex by Driver'!D73, IF($E$7="ElectraNet", '4. Capex by Driver'!D84, IF($E$7='4. Capex by Driver'!$B$90,'4. Capex by Driver'!D92, "#N/A")))))) -> 1173.801027 | F32: =IF($E$7="Transmission total", '4. Capex by Driver'!E41, IF($E$7="Powerlink",'4. Capex by Driver'!E57, IF($E$7="Transgrid",'4. Capex by Driver'!E65, IF($E$7="AusNet (T)",'4. Capex by Driver'!E73, IF($E$7="ElectraNet", '4. Capex by Driver'!E84, IF($E$7='4. Capex by Driver'!$B$90,'4. Capex by Driver'!E92, "#N/A")))))) -> 728.1319816 | G32: =IF($E$7="Transmission total", '4. Capex by Driver'!F41, IF($E$7="Powerlink",'4. Capex by Driver'!F57, IF($E$7="Transgrid",'4. Capex by Driver'!F65, IF($E$7="AusNet (T)",'4. Capex by Driver'!F73, IF($E$7="ElectraNet", '4. Capex by Driver'!F84, IF($E$7='4. Capex by Driver'!$B$90,'4. Capex by Driver'!F92, "#N/A")))))) -> 812.6259979 | H32: =IF($E$7="Transmission total", '4. Capex by Driver'!G41, IF($E$7="Powerlink",'4. Capex by Driver'!G57, IF($E$7="Transgrid",'4. Capex by Driver'!G65, IF($E$7="AusNet (T)",'4. Capex by Driver'!G73, IF($E$7="ElectraNet", '4. Capex by Driver'!G84, IF($E$7='4. Capex by Driver'!$B$90,'4. Capex by Driver'!G92, "#N/A")))))) -> 588.9728233 | I32: =IF($E$7="Transmission total", '4. Capex by Driver'!H41, IF($E$7="Powerlink",'4. Capex by Driver'!H57, IF($E$7="Transgrid",'4. Capex by Driver'!H65, IF($E$7="AusNet (T)",'4. Capex by Driver'!H73, IF($E$7="ElectraNet", '4. Capex by Driver'!H84, IF($E$7='4. Capex by Driver'!$B$90,'4. Capex by Driver'!H92, "#N/A")))))) -> 635.4934466 | J32: =IF($E$7="Transmission total", '4. Capex by Driver'!I41, IF($E$7="Powerlink",'4. Capex by Driver'!I57, IF($E$7="Transgrid",'4. Capex by Driver'!I65, IF($E$7="AusNet (T)",'4. Capex by Driver'!I73, IF($E$7="ElectraNet", '4. Capex by Driver'!I84, IF($E$7='4. Capex by Driver'!$B$90,'4. Capex by Driver'!I92, "#N/A")))))) -> 603.7340963 | K32: =IF($E$7="Transmission total", '4. Capex by Driver'!J41, IF($E$7="Powerlink",'4. Capex by Driver'!J57, IF($E$7="Transgrid",'4. Capex by Driver'!J65, IF($E$7="AusNet (T)",'4. Capex by Driver'!J73, IF($E$7="ElectraNet", '4. Capex by Driver'!J84, IF($E$7='4. Capex by Driver'!$B$90,'4. Capex by Driver'!J92, "#N/A")))))) -> 54.3537676 | L32: =IF($E$7="Transmission total", '4. Capex by Driver'!K41, IF($E$7="Powerlink",'4. Capex by Driver'!K57, IF($E$7="Transgrid",'4. Capex by Driver'!K65, IF($E$7="AusNet (T)",'4. Capex by Driver'!K73, IF($E$7="ElectraNet", '4. Capex by Driver'!K84, IF($E$7='4. Capex by Driver'!$B$90,'4. Capex by Driver'!K92, "#N/A")))))) -> 126.558479 | M32: =IF($E$7="Transmission total", '4. Capex by Driver'!L41, IF($E$7="Powerlink",'4. Capex by Driver'!L57, IF($E$7="Transgrid",'4. Capex by Driver'!L65, IF($E$7="AusNet (T)",'4. Capex by Driver'!L73, IF($E$7="ElectraNet", '4. Capex by Driver'!L84, IF($E$7='4. Capex by Driver'!$B$90,'4. Capex by Driver'!L92, "#N/A")))))) -> 28.11995995 | N32: =IF($E$7="Transmission total", '4. Capex by Driver'!M41, IF($E$7="Powerlink",'4. Capex by Driver'!M57, IF($E$7="Transgrid",'4. Capex by Driver'!M65, IF($E$7="AusNet (T)",'4. Capex by Driver'!M73, IF($E$7="ElectraNet", '4. Capex by Driver'!M84, IF($E$7='4. Capex by Driver'!$B$90,'4. Capex by Driver'!M92, "#N/A")))))) -> 34.81878449 | O32: =IF($E$7="Transmission total", '4. Capex by Driver'!N41, IF($E$7="Powerlink",'4. Capex by Driver'!N57, IF($E$7="Transgrid",'4. Capex by Driver'!N65, IF($E$7="AusNet (T)",'4. Capex by Driver'!N73, IF($E$7="ElectraNet", '4. Capex by Driver'!N84, IF($E$7='4. Capex by Driver'!$B$90,'4. Capex by Driver'!N92, "#N/A")))))) -> 62.49014011 | P32: =IF($E$7="Transmission total", '4. Capex by Driver'!O41, IF($E$7="Powerlink",'4. Capex by Driver'!O57, IF($E$7="Transgrid",'4. Capex by Driver'!O65, IF($E$7="AusNet (T)",'4. Capex by Driver'!O73, IF($E$7="ElectraNet", '4. Capex by Driver'!O84, IF($E$7='4. Capex by Driver'!$B$90,'4. Capex by Driver'!O92, "#N/A")))))) -> 200.8996893 | Q32: =IF($E$7="Transmission total", '4. Capex by Driver'!P41, IF($E$7="Powerlink",'4. Capex by Driver'!P57, IF($E$7="Transgrid",'4. Capex by Driver'!P65, IF($E$7="AusNet (T)",'4. Capex by Driver'!P73, IF($E$7="ElectraNet", '4. Capex by Driver'!P84, IF($E$7='4. Capex by Driver'!$B$90,'4. Capex by Driver'!P92, "#N/A")))))) -> 690.807491 | R32: =IF($E$7="Transmission total", '4. Capex by Driver'!Q41, IF($E$7="Powerlink",'4. Capex by Driver'!Q57, IF($E$7="Transgrid",'4. Capex by Driver'!Q65, IF($E$7="AusNet (T)",'4. Capex by Driver'!Q73, IF($E$7="ElectraNet", '4. Capex by Driver'!Q84, IF($E$7='4. Capex by Driver'!$B$90,'4. Capex by Driver'!Q92, "#N/A")))))) -> 414.0413795
D33: overheads | E33: =IF($E$7="Transmission total", '4. Capex by Driver'!D42, IF($E$7="Powerlink",'4. Capex by Driver'!D58, IF($E$7="Transgrid",'4. Capex by Driver'!D66, IF($E$7="AusNet (T)",'4. Capex by Driver'!D74, IF($E$7="ElectraNet", '4. Capex by Driver'!D85, IF($E$7='4. Capex by Driver'!$B$90,'4. Capex by Driver'!D93, "#N/A")))))) -> 96.30747819 | F33: =IF($E$7="Transmission total", '4. Capex by Driver'!E42, IF($E$7="Powerlink",'4. Capex by Driver'!E58, IF($E$7="Transgrid",'4. Capex by Driver'!E66, IF($E$7="AusNet (T)",'4. Capex by Driver'!E74, IF($E$7="ElectraNet", '4. Capex by Driver'!E85, IF($E$7='4. Capex by Driver'!$B$90,'4. Capex by Driver'!E93, "#N/A")))))) -> 109.9197992 | G33: =IF($E$7="Transmission total", '4. Capex by Driver'!F42, IF($E$7="Powerlink",'4. Capex by Driver'!F58, IF($E$7="Transgrid",'4. Capex by Driver'!F66, IF($E$7="AusNet (T)",'4. Capex by Driver'!F74, IF($E$7="ElectraNet", '4. Capex by Driver'!F85, IF($E$7='4. Capex by Driver'!$B$90,'4. Capex by Driver'!F93, "#N/A")))))) -> 100.1152546 | H33: =IF($E$7="Transmission total", '4. Capex by Driver'!G42, IF($E$7="Powerlink",'4. Capex by Driver'!G58, IF($E$7="Transgrid",'4. Capex by Driver'!G66, IF($E$7="AusNet (T)",'4. Capex by Driver'!G74, IF($E$7="ElectraNet", '4. Capex by Driver'!G85, IF($E$7='4. Capex by Driver'!$B$90,'4. Capex by Driver'!G93, "#N/A")))))) -> 105.7261789 | I33: =IF($E$7="Transmission total", '4. Capex by Driver'!H42, IF($E$7="Powerlink",'4. Capex by Driver'!H58, IF($E$7="Transgrid",'4. Capex by Driver'!H66, IF($E$7="AusNet (T)",'4. Capex by Driver'!H74, IF($E$7="ElectraNet", '4. Capex by Driver'!H85, IF($E$7='4. Capex by Driver'!$B$90,'4. Capex by Driver'!H93, "#N/A")))))) -> 110.3154735 | J33: =IF($E$7="Transmission total", '4. Capex by Driver'!I42, IF($E$7="Powerlink",'4. Capex by Driver'!I58, IF($E$7="Transgrid",'4. Capex by Driver'!I66, IF($E$7="AusNet (T)",'4. Capex by Driver'!I74, IF($E$7="ElectraNet", '4. Capex by Driver'!I85, IF($E$7='4. Capex by Driver'!$B$90,'4. Capex by Driver'!I93, "#N/A")))))) -> 92.79790471 | K33: =IF($E$7="Transmission total", '4. Capex by Driver'!J42, IF($E$7="Powerlink",'4. Capex by Driver'!J58, IF($E$7="Transgrid",'4. Capex by Driver'!J66, IF($E$7="AusNet (T)",'4. Capex by Driver'!J74, IF($E$7="ElectraNet", '4. Capex by Driver'!J85, IF($E$7='4. Capex by Driver'!$B$90,'4. Capex by Driver'!J93, "#N/A")))))) -> 82.13621284 | L33: =IF($E$7="Transmission total", '4. Capex by Driver'!K42, IF($E$7="Powerlink",'4. Capex by Driver'!K58, IF($E$7="Transgrid",'4. Capex by Driver'!K66, IF($E$7="AusNet (T)",'4. Capex by Driver'!K74, IF($E$7="ElectraNet", '4. Capex by Driver'!K85, IF($E$7='4. Capex by Driver'!$B$90,'4. Capex by Driver'!K93, "#N/A")))))) -> 76.30498843 | M33: =IF($E$7="Transmission total", '4. Capex by Driver'!L42, IF($E$7="Powerlink",'4. Capex by Driver'!L58, IF($E$7="Transgrid",'4. Capex by Driver'!L66, IF($E$7="AusNet (T)",'4. Capex by Driver'!L74, IF($E$7="ElectraNet", '4. Capex by Driver'!L85, IF($E$7='4. Capex by Driver'!$B$90,'4. Capex by Driver'!L93, "#N/A")))))) -> 85.52217394 | N33: =IF($E$7="Transmission total", '4. Capex by Driver'!M42, IF($E$7="Powerlink",'4. Capex by Driver'!M58, IF($E$7="Transgrid",'4. Capex by Driver'!M66, IF($E$7="AusNet (T)",'4. Capex by Driver'!M74, IF($E$7="ElectraNet", '4. Capex by Driver'!M85, IF($E$7='4. Capex by Driver'!$B$90,'4. Capex by Driver'!M93, "#N/A")))))) -> 82.3768076 | O33: =IF($E$7="Transmission total", '4. Capex by Driver'!N42, IF($E$7="Powerlink",'4. Capex by Driver'!N58, IF($E$7="Transgrid",'4. Capex by Driver'!N66, IF($E$7="AusNet (T)",'4. Capex by Driver'!N74, IF($E$7="ElectraNet", '4. Capex by Driver'!N85, IF($E$7='4. Capex by Driver'!$B$90,'4. Capex by Driver'!N93, "#N/A")))))) -> 74.68605035 | P33: =IF($E$7="Transmission total", '4. Capex by Driver'!O42, IF($E$7="Powerlink",'4. Capex by Driver'!O58, IF($E$7="Transgrid",'4. Capex by Driver'!O66, IF($E$7="AusNet (T)",'4. Capex by Driver'!O74, IF($E$7="ElectraNet", '4. Capex by Driver'!O85, IF($E$7='4. Capex by Driver'!$B$90,'4. Capex by Driver'!O93, "#N/A")))))) -> 71.63142092 | Q33: =IF($E$7="Transmission total", '4. Capex by Driver'!P42, IF($E$7="Powerlink",'4. Capex by Driver'!P58, IF($E$7="Transgrid",'4. Capex by Driver'!P66, IF($E$7="AusNet (T)",'4. Capex by Driver'!P74, IF($E$7="ElectraNet", '4. Capex by Driver'!P85, IF($E$7='4. Capex by Driver'!$B$90,'4. Capex by Driver'!P93, "#N/A")))))) -> 76.46663419 | R33: =IF($E$7="Transmission total", '4. Capex by Driver'!Q42, IF($E$7="Powerlink",'4. Capex by Driver'!Q58, IF($E$7="Transgrid",'4. Capex by Driver'!Q66, IF($E$7="AusNet (T)",'4. Capex by Driver'!Q74, IF($E$7="ElectraNet", '4. Capex by Driver'!Q85, IF($E$7='4. Capex by Driver'!$B$90,'4. Capex by Driver'!Q93, "#N/A")))))) -> 87.570014
D34: connections | E34: =IF($E$7="Transmission total", '4. Capex by Driver'!D43, IF($E$7="Powerlink",'4. Capex by Driver'!D59, IF($E$7="Transgrid",'4. Capex by Driver'!D67, IF($E$7="AusNet (T)",'4. Capex by Driver'!D75, IF($E$7="ElectraNet", '4. Capex by Driver'!D86, IF($E$7='4. Capex by Driver'!$B$90,'4. Capex by Driver'!D94, "#N/A")))))) -> 46.57981127 | F34: =IF($E$7="Transmission total", '4. Capex by Driver'!E43, IF($E$7="Powerlink",'4. Capex by Driver'!E59, IF($E$7="Transgrid",'4. Capex by Driver'!E67, IF($E$7="AusNet (T)",'4. Capex by Driver'!E75, IF($E$7="ElectraNet", '4. Capex by Driver'!E86, IF($E$7='4. Capex by Driver'!$B$90,'4. Capex by Driver'!E94, "#N/A")))))) -> 68.45448557 | G34: =IF($E$7="Transmission total", '4. Capex by Driver'!F43, IF($E$7="Powerlink",'4. Capex by Driver'!F59, IF($E$7="Transgrid",'4. Capex by Driver'!F67, IF($E$7="AusNet (T)",'4. Capex by Driver'!F75, IF($E$7="ElectraNet", '4. Capex by Driver'!F86, IF($E$7='4. Capex by Driver'!$B$90,'4. Capex by Driver'!F94, "#N/A")))))) -> 74.3451986 | H34: =IF($E$7="Transmission total", '4. Capex by Driver'!G43, IF($E$7="Powerlink",'4. Capex by Driver'!G59, IF($E$7="Transgrid",'4. Capex by Driver'!G67, IF($E$7="AusNet (T)",'4. Capex by Driver'!G75, IF($E$7="ElectraNet", '4. Capex by Driver'!G86, IF($E$7='4. Capex by Driver'!$B$90,'4. Capex by Driver'!G94, "#N/A")))))) -> 58.25721568 | I34: =IF($E$7="Transmission total", '4. Capex by Driver'!H43, IF($E$7="Powerlink",'4. Capex by Driver'!H59, IF($E$7="Transgrid",'4. Capex by Driver'!H67, IF($E$7="AusNet (T)",'4. Capex by Driver'!H75, IF($E$7="ElectraNet", '4. Capex by Driver'!H86, IF($E$7='4. Capex by Driver'!$B$90,'4. Capex by Driver'!H94, "#N/A")))))) -> 38.65960197 | J34: =IF($E$7="Transmission total", '4. Capex by Driver'!I43, IF($E$7="Powerlink",'4. Capex by Driver'!I59, IF($E$7="Transgrid",'4. Capex by Driver'!I67, IF($E$7="AusNet (T)",'4. Capex by Driver'!I75, IF($E$7="ElectraNet", '4. Capex by Driver'!I86, IF($E$7='4. Capex by Driver'!$B$90,'4. Capex by Driver'!I94, "#N/A")))))) -> 92.61678988 | K34: =IF($E$7="Transmission total", '4. Capex by Driver'!J43, IF($E$7="Powerlink",'4. Capex by Driver'!J59, IF($E$7="Transgrid",'4. Capex by Driver'!J67, IF($E$7="AusNet (T)",'4. Capex by Driver'!J75, IF($E$7="ElectraNet", '4. Capex by Driver'!J86, IF($E$7='4. Capex by Driver'!$B$90,'4. Capex by Driver'!J94, "#N/A")))))) -> 61.54668648 | L34: =IF($E$7="Transmission total", '4. Capex by Driver'!K43, IF($E$7="Powerlink",'4. Capex by Driver'!K59, IF($E$7="Transgrid",'4. Capex by Driver'!K67, IF($E$7="AusNet (T)",'4. Capex by Driver'!K75, IF($E$7="ElectraNet", '4. Capex by Driver'!K86, IF($E$7='4. Capex by Driver'!$B$90,'4. Capex by Driver'!K94, "#N/A")))))) -> 84.6871122 | M34: =IF($E$7="Transmission total", '4. Capex by Driver'!L43, IF($E$7="Powerlink",'4. Capex by Driver'!L59, IF($E$7="Transgrid",'4. Capex by Driver'!L67, IF($E$7="AusNet (T)",'4. Capex by Driver'!L75, IF($E$7="ElectraNet", '4. Capex by Driver'!L86, IF($E$7='4. Capex by Driver'!$B$90,'4. Capex by Driver'!L94, "#N/A")))))) -> 44.10824654 | N34: =IF($E$7="Transmission total", '4. Capex by Driver'!M43, IF($E$7="Powerlink",'4. Capex by Driver'!M59, IF($E$7="Transgrid",'4. Capex by Driver'!M67, IF($E$7="AusNet (T)",'4. Capex by Driver'!M75, IF($E$7="ElectraNet", '4. Capex by Driver'!M86, IF($E$7='4. Capex by Driver'!$B$90,'4. Capex by Driver'!M94, "#N/A")))))) -> 21.10735274 | O34: =IF($E$7="Transmission total", '4. Capex by Driver'!N43, IF($E$7="Powerlink",'4. Capex by Driver'!N59, IF($E$7="Transgrid",'4. Capex by Driver'!N67, IF($E$7="AusNet (T)",'4. Capex by Driver'!N75, IF($E$7="ElectraNet", '4. Capex by Driver'!N86, IF($E$7='4. Capex by Driver'!$B$90,'4. Capex by Driver'!N94, "#N/A")))))) -> 26.71110712 | P34: =IF($E$7="Transmission total", '4. Capex by Driver'!O43, IF($E$7="Powerlink",'4. Capex by Driver'!O59, IF($E$7="Transgrid",'4. Capex by Driver'!O67, IF($E$7="AusNet (T)",'4. Capex by Driver'!O75, IF($E$7="ElectraNet", '4. Capex by Driver'!O86, IF($E$7='4. Capex by Driver'!$B$90,'4. Capex by Driver'!O94, "#N/A")))))) -> 20.7804395 | Q34: =IF($E$7="Transmission total", '4. Capex by Driver'!P43, IF($E$7="Powerlink",'4. Capex by Driver'!P59, IF($E$7="Transgrid",'4. Capex by Driver'!P67, IF($E$7="AusNet (T)",'4. Capex by Driver'!P75, IF($E$7="ElectraNet", '4. Capex by Driver'!P86, IF($E$7='4. Capex by Driver'!$B$90,'4. Capex by Driver'!P94, "#N/A")))))) -> 36.81161153 | R34: =IF($E$7="Transmission total", '4. Capex by Driver'!Q43, IF($E$7="Powerlink",'4. Capex by Driver'!Q59, IF($E$7="Transgrid",'4. Capex by Driver'!Q67, IF($E$7="AusNet (T)",'4. Capex by Driver'!Q75, IF($E$7="ElectraNet", '4. Capex by Driver'!Q86, IF($E$7='4. Capex by Driver'!$B$90,'4. Capex by Driver'!Q94, "#N/A")))))) -> 7.279793309
D35: non-network | E35: =IF($E$7="Transmission total", '4. Capex by Driver'!D44, IF($E$7="Powerlink",'4. Capex by Driver'!D60, IF($E$7="Transgrid",'4. Capex by Driver'!D68, IF($E$7="AusNet (T)",'4. Capex by Driver'!D76, IF($E$7="ElectraNet", '4. Capex by Driver'!D87, IF($E$7='4. Capex by Driver'!$B$90,'4. Capex by Driver'!D95, "#N/A")))))) -> 111.7905768 | F35: =IF($E$7="Transmission total", '4. Capex by Driver'!E44, IF($E$7="Powerlink",'4. Capex by Driver'!E60, IF($E$7="Transgrid",'4. Capex by Driver'!E68, IF($E$7="AusNet (T)",'4. Capex by Driver'!E76, IF($E$7="ElectraNet", '4. Capex by Driver'!E87, IF($E$7='4. Capex by Driver'!$B$90,'4. Capex by Driver'!E95, "#N/A")))))) -> 104.2365334 | G35: =IF($E$7="Transmission total", '4. Capex by Driver'!F44, IF($E$7="Powerlink",'4. Capex by Driver'!F60, IF($E$7="Transgrid",'4. Capex by Driver'!F68, IF($E$7="AusNet (T)",'4. Capex by Driver'!F76, IF($E$7="ElectraNet", '4. Capex by Driver'!F87, IF($E$7='4. Capex by Driver'!$B$90,'4. Capex by Driver'!F95, "#N/A")))))) -> 128.5932855 | H35: =IF($E$7="Transmission total", '4. Capex by Driver'!G44, IF($E$7="Powerlink",'4. Capex by Driver'!G60, IF($E$7="Transgrid",'4. Capex by Driver'!G68, IF($E$7="AusNet (T)",'4. Capex by Driver'!G76, IF($E$7="ElectraNet", '4. Capex by Driver'!G87, IF($E$7='4. Capex by Driver'!$B$90,'4. Capex by Driver'!G95, "#N/A")))))) -> 115.4114068 | I35: =IF($E$7="Transmission total", '4. Capex by Driver'!H44, IF($E$7="Powerlink",'4. Capex by Driver'!H60, IF($E$7="Transgrid",'4. Capex by Driver'!H68, IF($E$7="AusNet (T)",'4. Capex by Driver'!H76, IF($E$7="ElectraNet", '4. Capex by Driver'!H87, IF($E$7='4. Capex by Driver'!$B$90,'4. Capex by Driver'!H95, "#N/A")))))) -> 138.7781519 | J35: =IF($E$7="Transmission total", '4. Capex by Driver'!I44, IF($E$7="Powerlink",'4. Capex by Driver'!I60, IF($E$7="Transgrid",'4. Capex by Driver'!I68, IF($E$7="AusNet (T)",'4. Capex by Driver'!I76, IF($E$7="ElectraNet", '4. Capex by Driver'!I87, IF($E$7='4. Capex by Driver'!$B$90,'4. Capex by Driver'!I95, "#N/A")))))) -> 137.9626422 | K35: =IF($E$7="Transmission total", '4. Capex by Driver'!J44, IF($E$7="Powerlink",'4. Capex by Driver'!J60, IF($E$7="Transgrid",'4. Capex by Driver'!J68, IF($E$7="AusNet (T)",'4. Capex by Driver'!J76, IF($E$7="ElectraNet", '4. Capex by Driver'!J87, IF($E$7='4. Capex by Driver'!$B$90,'4. Capex by Driver'!J95, "#N/A")))))) -> 83.35495189 | L35: =IF($E$7="Transmission total", '4. Capex by Driver'!K44, IF($E$7="Powerlink",'4. Capex by Driver'!K60, IF($E$7="Transgrid",'4. Capex by Driver'!K68, IF($E$7="AusNet (T)",'4. Capex by Driver'!K76, IF($E$7="ElectraNet", '4. Capex by Driver'!K87, IF($E$7='4. Capex by Driver'!$B$90,'4. Capex by Driver'!K95, "#N/A")))))) -> 63.26460518 | M35: =IF($E$7="Transmission total", '4. Capex by Driver'!L44, IF($E$7="Powerlink",'4. Capex by Driver'!L60, IF($E$7="Transgrid",'4. Capex by Driver'!L68, IF($E$7="AusNet (T)",'4. Capex by Driver'!L76, IF($E$7="ElectraNet", '4. Capex by Driver'!L87, IF($E$7='4. Capex by Driver'!$B$90,'4. Capex by Driver'!L95, "#N/A")))))) -> 78.263564 | N35: =IF($E$7="Transmission total", '4. Capex by Driver'!M44, IF($E$7="Powerlink",'4. Capex by Driver'!M60, IF($E$7="Transgrid",'4. Capex by Driver'!M68, IF($E$7="AusNet (T)",'4. Capex by Driver'!M76, IF($E$7="ElectraNet", '4. Capex by Driver'!M87, IF($E$7='4. Capex by Driver'!$B$90,'4. Capex by Driver'!M95, "#N/A")))))) -> 123.6070233 | O35: =IF($E$7="Transmission total", '4. Capex by Driver'!N44, IF($E$7="Powerlink",'4. Capex by Driver'!N60, IF($E$7="Transgrid",'4. Capex by Driver'!N68, IF($E$7="AusNet (T)",'4. Capex by Driver'!N76, IF($E$7="ElectraNet", '4. Capex by Driver'!N87, IF($E$7='4. Capex by Driver'!$B$90,'4. Capex by Driver'!N95, "#N/A")))))) -> 96.56880374 | P35: =IF($E$7="Transmission total", '4. Capex by Driver'!O44, IF($E$7="Powerlink",'4. Capex by Driver'!O60, IF($E$7="Transgrid",'4. Capex by Driver'!O68, IF($E$7="AusNet (T)",'4. Capex by Driver'!O76, IF($E$7="ElectraNet", '4. Capex by Driver'!O87, IF($E$7='4. Capex by Driver'!$B$90,'4. Capex by Driver'!O95, "#N/A")))))) -> 138.9523777 | Q35: =IF($E$7="Transmission total", '4. Capex by Driver'!P44, IF($E$7="Powerlink",'4. Capex by Driver'!P60, IF($E$7="Transgrid",'4. Capex by Driver'!P68, IF($E$7="AusNet (T)",'4. Capex by Driver'!P76, IF($E$7="ElectraNet", '4. Capex by Driver'!P87, IF($E$7='4. Capex by Driver'!$B$90,'4. Capex by Driver'!P95, "#N/A")))))) -> 93.9313708 | R35: =IF($E$7="Transmission total", '4. Capex by Driver'!Q44, IF($E$7="Powerlink",'4. Capex by Driver'!Q60, IF($E$7="Transgrid",'4. Capex by Driver'!Q68, IF($E$7="AusNet (T)",'4. Capex by Driver'!Q76, IF($E$7="ElectraNet", '4. Capex by Driver'!Q87, IF($E$7='4. Capex by Driver'!$B$90,'4. Capex by Driver'!Q95, "#N/A")))))) -> 79.54658768
D36: replacement expenditure | E36: =IF($E$7="Transmission total", '4. Capex by Driver'!D45, IF($E$7="Powerlink",'4. Capex by Driver'!D61, IF($E$7="Transgrid",'4. Capex by Driver'!D69, IF($E$7="AusNet (T)",'4. Capex by Driver'!D77, IF($E$7="ElectraNet", '4. Capex by Driver'!D88, IF($E$7='4. Capex by Driver'!$B$90,'4. Capex by Driver'!D96, "#N/A")))))) -> 520.6658586 | F36: =IF($E$7="Transmission total", '4. Capex by Driver'!E45, IF($E$7="Powerlink",'4. Capex by Driver'!E61, IF($E$7="Transgrid",'4. Capex by Driver'!E69, IF($E$7="AusNet (T)",'4. Capex by Driver'!E77, IF($E$7="ElectraNet", '4. Capex by Driver'!E88, IF($E$7='4. Capex by Driver'!$B$90,'4. Capex by Driver'!E96, "#N/A")))))) -> 493.6540741 | G36: =IF($E$7="Transmission total", '4. Capex by Driver'!F45, IF($E$7="Powerlink",'4. Capex by Driver'!F61, IF($E$7="Transgrid",'4. Capex by Driver'!F69, IF($E$7="AusNet (T)",'4. Capex by Driver'!F77, IF($E$7="ElectraNet", '4. Capex by Driver'!F88, IF($E$7='4. Capex by Driver'!$B$90,'4. Capex by Driver'!F96, "#N/A")))))) -> 432.4290899 | H36: =IF($E$7="Transmission total", '4. Capex by Driver'!G45, IF($E$7="Powerlink",'4. Capex by Driver'!G61, IF($E$7="Transgrid",'4. Capex by Driver'!G69, IF($E$7="AusNet (T)",'4. Capex by Driver'!G77, IF($E$7="ElectraNet", '4. Capex by Driver'!G88, IF($E$7='4. Capex by Driver'!$B$90,'4. Capex by Driver'!G96, "#N/A")))))) -> 622.0910207 | I36: =IF($E$7="Transmission total", '4. Capex by Driver'!H45, IF($E$7="Powerlink",'4. Capex by Driver'!H61, IF($E$7="Transgrid",'4. Capex by Driver'!H69, IF($E$7="AusNet (T)",'4. Capex by Driver'!H77, IF($E$7="ElectraNet", '4. Capex by Driver'!H88, IF($E$7='4. Capex by Driver'!$B$90,'4. Capex by Driver'!H96, "#N/A")))))) -> 801.2484971 | J36: =IF($E$7="Transmission total", '4. Capex by Driver'!I45, IF($E$7="Powerlink",'4. Capex by Driver'!I61, IF($E$7="Transgrid",'4. Capex by Driver'!I69, IF($E$7="AusNet (T)",'4. Capex by Driver'!I77, IF($E$7="ElectraNet", '4. Capex by Driver'!I88, IF($E$7='4. Capex by Driver'!$B$90,'4. Capex by Driver'!I96, "#N/A")))))) -> 740.4248923 | K36: =IF($E$7="Transmission total", '4. Capex by Driver'!J45, IF($E$7="Powerlink",'4. Capex by Driver'!J61, IF($E$7="Transgrid",'4. Capex by Driver'!J69, IF($E$7="AusNet (T)",'4. Capex by Driver'!J77, IF($E$7="ElectraNet", '4. Capex by Driver'!J88, IF($E$7='4. Capex by Driver'!$B$90,'4. Capex by Driver'!J96, "#N/A")))))) -> 575.4724625 | L36: =IF($E$7="Transmission total", '4. Capex by Driver'!K45, IF($E$7="Powerlink",'4. Capex by Driver'!K61, IF($E$7="Transgrid",'4. Capex by Driver'!K69, IF($E$7="AusNet (T)",'4. Capex by Driver'!K77, IF($E$7="ElectraNet", '4. Capex by Driver'!K88, IF($E$7='4. Capex by Driver'!$B$90,'4. Capex by Driver'!K96, "#N/A")))))) -> 478.1939654 | M36: =IF($E$7="Transmission total", '4. Capex by Driver'!L45, IF($E$7="Powerlink",'4. Capex by Driver'!L61, IF($E$7="Transgrid",'4. Capex by Driver'!L69, IF($E$7="AusNet (T)",'4. Capex by Driver'!L77, IF($E$7="ElectraNet", '4. Capex by Driver'!L88, IF($E$7='4. Capex by Driver'!$B$90,'4. Capex by Driver'!L96, "#N/A")))))) -> 535.4190729 | N36: =IF($E$7="Transmission total", '4. Capex by Driver'!M45, IF($E$7="Powerlink",'4. Capex by Driver'!M61, IF($E$7="Transgrid",'4. Capex by Driver'!M69, IF($E$7="AusNet (T)",'4. Capex by Driver'!M77, IF($E$7="ElectraNet", '4. Capex by Driver'!M88, IF($E$7='4. Capex by Driver'!$B$90,'4. Capex by Driver'!M96, "#N/A")))))) -> 532.2116067 | O36: =IF($E$7="Transmission total", '4. Capex by Driver'!N45, IF($E$7="Powerlink",'4. Capex by Driver'!N61, IF($E$7="Transgrid",'4. Capex by Driver'!N69, IF($E$7="AusNet (T)",'4. Capex by Driver'!N77, IF($E$7="ElectraNet", '4. Capex by Driver'!N88, IF($E$7='4. Capex by Driver'!$B$90,'4. Capex by Driver'!N96, "#N/A")))))) -> 525.5115068 | P36: =IF($E$7="Transmission total", '4. Capex by Driver'!O45, IF($E$7="Powerlink",'4. Capex by Driver'!O61, IF($E$7="Transgrid",'4. Capex by Driver'!O69, IF($E$7="AusNet (T)",'4. Capex by Driver'!O77, IF($E$7="ElectraNet", '4. Capex by Driver'!O88, IF($E$7='4. Capex by Driver'!$B$90,'4. Capex by Driver'!O96, "#N/A")))))) -> 427.1999191 | Q36: =IF($E$7="Transmission total", '4. Capex by Driver'!P45, IF($E$7="Powerlink",'4. Capex by Driver'!P61, IF($E$7="Transgrid",'4. Capex by Driver'!P69, IF($E$7="AusNet (T)",'4. Capex by Driver'!P77, IF($E$7="ElectraNet", '4. Capex by Driver'!P88, IF($E$7='4. Capex by Driver'!$B$90,'4. Capex by Driver'!P96, "#N/A")))))) -> 516.2696015 | R36: =IF($E$7="Transmission total", '4. Capex by Driver'!Q45, IF($E$7="Powerlink",'4. Capex by Driver'!Q61, IF($E$7="Transgrid",'4. Capex by Driver'!Q69, IF($E$7="AusNet (T)",'4. Capex by Driver'!Q77, IF($E$7="ElectraNet", '4. Capex by Driver'!Q88, IF($E$7='4. Capex by Driver'!$B$90,'4. Capex by Driver'!Q96, "#N/A")))))) -> 550.615944

Sheet New data sheet (hidden)
D1: This sheet contains the data, as reported in the tables on worksheets 1-12, reformatted for presentation on the Dashboard.
D4: Raw data
D6: Category | E6: Year | F6: Powerlink | G6: Transgrid | H6: AusNet (T) | I6: ElectraNet | J6: TasNetworks (T) | K6: Transmission total | L6: =D6&E6 -> CategoryYear
D7: Actual revenue from customers | E7: 2006 | F7: 557.5240247 | G7: 470.048236 | H7: 481.9660412 | I7: 217.5979534 | J7: 171.7312127 | K7: 1898.867468 | L7: =D7&E7 -> Actual revenue from customers2006
D8: Actual revenue from customers | E8: 2007 | F8: 591.9473831 | G8: 455.9308263 | H8: 528.8880831 | I8: 239.2391336 | J8: 147.7365534 | K8: 1963.741979 | L8: =D8&E8 -> Actual revenue from customers2007
D9: Actual revenue from customers | E9: 2008 | F9: 640.3363078 | G9: 469.1281138 | H9: 527.6471 | I9: 246.5738077 | J9: 161.3881822 | K9: 2045.073511 | L9: Actual revenue from customers2008
D10: Actual revenue from customers | E10: 2009 | F10: 667.5933088 | G10: 576.5941974 | H10: 499.4619116 | I10: 275.9760025 | J10: 173.6450486 | K10: 2193.270469 | L10: Actual revenue from customers2009
D11: Actual revenue from customers | E11: 2010 | F11: 751.9946487 | G11: 702.2010967 | H11: 594.4721476 | I11: 266.9768038 | J11: 204.2217973 | K11: 2519.866494 | L11: Actual revenue from customers2010
D12: Actual revenue from customers | E12: 2011 | F12: 855.2401967 | G12: 793.793552 | H12: 589.5404619 | I12: 308.8274305 | J12: 243.4782849 | K12: 2790.879926 | L12: Actual revenue from customers2011
D13: Actual revenue from customers | E13: 2012 | F13: 946.2004684 | G13: 817.3430555 | H13: 615.9577263 | I13: 356.8272226 | J13: 255.5362224 | K13: 2991.864695 | L13: Actual revenue from customers2012
D14: Actual revenue from customers | E14: 2013 | F14: 935.4938745 | G14: 855.4970644 | H14: 691.3132457 | I14: 369.4247977 | J14: 252.8605855 | K14: 3104.589568 | L14: Actual revenue from customers2013
D15: Actual revenue from customers | E15: 2014 | F15: 961.0600379 | G15: 801.1467644 | H15: 600.2327154 | I15: 318.1199574 | J15: 248.0091684 | K15: 2928.568644 | L15: Actual revenue from customers2014
D16: Actual revenue from customers | E16: 2015 | F16: 939.8998305 | G16: 813.541148 | H16: 632.6507301 | I16: 330.3539193 | J16: 212.9725508 | K16: 2929.418179 | L16: Actual revenue from customers2015
D17: Actual revenue from customers | E17: 2016 | F17: 1052.334967 | G17: 798.3012934 | H17: 545.3489605 | I17: 316.8445085 | J17: 195.2258598 | K17: 2908.05559 | L17: Actual revenue from customers2016
D18: Actual revenue from customers | E18: 2017 | F18: 1174.599645 | G18: 693.238931 | H18: 592.243004 | I18: 296.39373 | J18: 179.6186084 | K18: 2936.093919 | L18: Actual revenue from customers2017
D19: Actual revenue from customers | E19: 2018 | F19: 779.2829429 | G19: 643.7619674 | H19: 565.2135453 | I19: 284.4188053 | J19: 176.026066 | K19: 2448.703327 | L19: Actual revenue from customers2018
D20: Actual revenue from customers | E20: 2019 | F20: 719.0886459 | G20: 569.7784382 | H20: 545.3469905 | I20: 280.8751236 | J20: 163.9157515 | K20: 2279.00495 | L20: Actual revenue from customers2019
D21: Actual revenue from customers | E21: 2020 | F21: 716.2610112 | G21: 555.5787677 | H21: 628.8031138 | I21: 288.9473631 | J21: 148.1189944 | K21: 2337.70925 | L21: Actual revenue from customers2020
D22: Actual revenue from customers | E22: 2021 | F22: 716.3246867 | G22: 574.7558423 | H22: 663.3950592 | I22: 306.2381981 | J22: 137.407701 | K22: 2398.121487 | L22: Actual revenue from customers2021
D23: Actual revenue from customers | E23: 2022 | F23: 735.681005 | G23: 622.1301829 | H23: 662.3061235 | I23: 310.65531 | J23: 128.024236 | K23: 2458.796857 | L23: Actual revenue from customers2022
D24: Budgeted revenue from Customers | E24: 2015 | F24: 952.5211972 | G24: 912.1402102 | H24: 634.9053356 | I24: 337.4135653 | J24: 190.7872451 | K24: 3027.767553 | L24: Budgeted revenue from Customers2015
D25: Budgeted revenue from Customers | E25: 2016 | F25: 1078.834698 | G25: 898.6929836 | H25: 634.1371632 | I25: 323.8244348 | J25: 173.0408857 | K25: 3108.530165 | L25: Budgeted revenue from Customers2016
D26: Budgeted revenue from Customers | E26: 2017 | F26: 1183.614378 | G26: 808.4550928 | H26: 604.9512548 | I26: 303.959347 | J26: 170.9293956 | K26: 3071.909468 | L26: Budgeted revenue from Customers2017
D27: Budgeted revenue from Customers | E27: 2018 | F27: 787.3889075 | G27: 740.6665505 | H27: 569.6401679 | I27: 291.6137194 | J27: 162.0062057 | K27: 2551.315551 | L27: Budgeted revenue from Customers2018
D28: Budgeted revenue from Customers | E28: 2019 | F28: 722.0587053 | G28: 591.4984223 | H28: 546.9168151 | I28: 288.1138434 | J28: 163.2922983 | K28: 2311.880084 | L28: Budgeted revenue from Customers2019
D29: Budgeted revenue from Customers | E29: 2020 | F29: 716.7173263 | G29: 679.4016177 | H29: 628.7937006 | I29: 288.6126459 | J29: 147.9834348 | K29: 2461.508725 | L29: Budgeted revenue from Customers2020
D30: Budgeted revenue from Customers | E30: 2021 | F30: 719.9239298 | G30: 705.2698084 | H30: 663.395059 | I30: 312.5412631 | J30: 137.9301512 | K30: 2539.060212 | L30: Budgeted revenue from Customers2021
D31: Budgeted revenue from Customers | E31: 2022 | F31: 743.2054948 | G31: 732.5126651 | H31: 662.2978425 | I31: 317.3357499 | J31: 128.5520093 | K31: 2583.903762 | L31: Budgeted revenue from Customers2022
D32: Actual Closing RAB | E32: 2006 | F32: 4334.923502 | G32: 4659.38246 | H32: 2739.832291 | I32: 1483.67292 | J32: 1063.913007 | K32: 14281.72418 | L32: Actual Closing RAB2006
D33: Actual Closing RAB | E33: 2007 | F33: 5280.547948 | G33: 4786.732816 | H33: 2727.746325 | I33: 1523.589015 | J33: 1143.045417 | K33: 15461.66152 | L33: Actual Closing RAB2007
D34: Actual Closing RAB | E34: 2008 | F34: 6004.167904 | G34: 5047.94734 | H34: 2967.598872 | I34: 1770.586674 | J34: 1149.353035 | K34: 16939.65383 | L34: Actual Closing RAB2008
D35: Actual Closing RAB | E35: 2009 | F35: 6607.827814 | G35: 5562.415439 | H35: 2952.255815 | I35: 1831.800483 | J35: 1254.849378 | K35: 18209.14893 | L35: Actual Closing RAB2009
D36: Actual Closing RAB | E36: 2010 | F36: 6951.807551 | G36: 5869.473103 | H36: 2954.722201 | I36: 1912.137239 | J36: 1369.57751 | K36: 19057.7176 | L36: Actual Closing RAB2010
D37: Actual Closing RAB | E37: 2011 | F37: 7236.629768 | G37: 6110.761333 | H37: 2947.827214 | I37: 2135.814903 | J37: 1452.244488 | K37: 19883.27771 | L37: Actual Closing RAB2011
D38: Actual Closing RAB | E38: 2012 | F38: 7841.402735 | G38: 6319.054381 | H38: 2963.738859 | I38: 2276.264735 | J38: 1551.545958 | K38: 20952.00667 | L38: Actual Closing RAB2012
D39: Actual Closing RAB | E39: 2013 | F39: 8148.687219 | G39: 6680.178528 | H39: 3020.754108 | I39: 2462.436843 | J39: 1590.508332 | K39: 21902.56503 | L39: Actual Closing RAB2013
D40: Actual Closing RAB | E40: 2014 | F40: 8264.800637 | G40: 7032.430314 | H40: 3310.215433 | I40: 2529.12912 | J40: 1632.341574 | K40: 22768.91708 | L40: Actual Closing RAB2014
D41: Actual Closing RAB | E41: 2015 | F41: 8160.52283 | G41: 7044.285732 | H41: 3316.637769 | I41: 2558.172278 | J41: 1601.300381 | K41: 22680.91899 | L41: Actual Closing RAB2015
D42: Actual Closing RAB | E42: 2016 | F42: 8007.391898 | G42: 7032.849024 | H42: 3308.402965 | I42: 2632.178429 | J42: 1565.774052 | K42: 22546.59637 | L42: Actual Closing RAB2016
D43: Actual Closing RAB | E43: 2017 | F43: 7795.632311 | G43: 6931.716818 | H43: 3468.737414 | I43: 2688.799706 | J43: 1555.84357 | K43: 22440.72982 | L43: Actual Closing RAB2017
D44: Actual Closing RAB | E44: 2018 | F44: 7676.718367 | G44: 6894.109029 | H44: 3425.63548 | I44: 2771.731787 | J44: 1547.453641 | K44: 22315.6483 | L44: Actual Closing RAB2018
D45: Actual Closing RAB | E45: 2019 | F45: 7553.865559 | G45: 6871.822109 | H45: 3397.417826 | I45: 2827.055238 | J45: 1546.532581 | K45: 22196.69331 | L45: Actual Closing RAB2019
D46: Actual Closing RAB | E46: 2020 | F46: 7414.96164 | G46: 6930.083136 | H46: 3370.250688 | I46: 2884.868479 | J46: 1536.233432 | K46: 22136.39737 | L46: Actual Closing RAB2020
D47: Actual Closing RAB | E47: 2021 | F47: 7275.992365 | G47: 7453.019386 | H47: 3327.181244 | I47: 2973.254247 | J47: 1523.047087 | K47: 22552.49433 | L47: Actual Closing RAB2021
D48: Actual Closing RAB | E48: 2022 | F48: 7161.783314 | G48: 7646.280977 | H48: 3297.113568 | I48: 3211.981957 | J48: 1510.538203 | K48: 22827.69802 | L48: Actual Closing RAB2022
D49: Forecast Closing RAB | E49: 2006 | F49: 4321.64356 | G49: 4767.947512 | H49: 2856.717882 | I49: 1537.743536 | J49: 1061.910344 | K49: 14545.96283 | L49: Forecast Closing RAB2006
D50: Forecast Closing RAB | E50: 2007 | F50: 4253.38199 | G50: 4929.987289 | H50: 2842.132624 | I50: 1558.638229 | J50: 1141.3952 | K50: 14725.53533 | L50: Forecast Closing RAB2007
D51: Forecast Closing RAB | E51: 2008 | F51: 6087.796544 | G51: 5286.731385 | H51: 2824.996614 | I51: 1528.682073 | J51: 1147.842604 | K51: 16876.04922 | L51: Forecast Closing RAB2008
D52: Forecast Closing RAB | E52: 2009 | F52: 6774.093184 | G52: 5538.87751 | H52: 2986.64541 | I52: 1881.429894 | J52: 1143.604922 | K52: 18324.65092 | L52: Forecast Closing RAB2009
D53: Forecast Closing RAB | E53: 2010 | F53: 7133.283327 | G53: 6057.876948 | H53: 2990.676829 | I53: 2057.930839 | J53: 1407.852457 | K53: 19647.6204 | L53: Forecast Closing RAB2010
D54: Forecast Closing RAB | E54: 2011 | F54: 7541.542193 | G54: 6434.461574 | H54: 3017.870037 | I54: 2296.311631 | J54: 1553.782567 | K54: 20843.968 | L54: Forecast Closing RAB2011
D55: Forecast Closing RAB | E55: 2012 | F55: 7838.830359 | G55: 6958.224007 | H55: 3050.171192 | I55: 2457.835884 | J55: 1616.499262 | K55: 21921.5607 | L55: Forecast Closing RAB2012
D56: Forecast Closing RAB | E56: 2013 | F56: 8436.072392 | G56: 7398.791429 | H56: 3054.197514 | I56: 2477.552749 | J56: 1679.455303 | K56: 23046.06939 | L56: Forecast Closing RAB2013
D57: Forecast Closing RAB | E57: 2014 | F57: 8854.760765 | G57: 7643.313427 | H57: 3105.376093 | I57: 2626.27463 | J57: 1737.332945 | K57: 23967.05786 | L57: Forecast Closing RAB2014
D58: Forecast Closing RAB | E58: 2015 | F58: 9037.511065 | G58: 7056.224199 | H58: 3324.099005 | I58: 2710.136962 | J58: 1632.22894 | K58: 23760.20017 | L58: Forecast Closing RAB2015
D59: Forecast Closing RAB | E59: 2016 | F59: 9253.577437 | G59: 7123.518671 | H59: 3369.973777 | I59: 2818.835929 | J59: 1645.032198 | K59: 24210.93801 | L59: Forecast Closing RAB2016
D60: Forecast Closing RAB | E60: 2017 | F60: 9529.38581 | G60: 7094.271873 | H60: 3409.789516 | I60: 2854.345484 | J60: 1640.615427 | K60: 24528.40811 | L60: Forecast Closing RAB2017
D61: Forecast Closing RAB | E61: 2018 | F61: 7697.581165 | G61: 7066.675421 | H61: 3484.601561 | I61: 2809.717333 | J61: 1627.344767 | K61: 22685.92025 | L61: Forecast Closing RAB2018
D62: Forecast Closing RAB | E62: 2019 | F62: 7579.098473 | G62: 6881.861082 | H62: 3474.743164 | I62: 2788.60321 | J62: 1601.414886 | K62: 22325.72081 | L62: Forecast Closing RAB2019
D63: Forecast Closing RAB | E63: 2020 | F63: 7451.550577 | G63: 6987.83018 | H63: 3447.259188 | I63: 2891.86003 | J63: 1543.523006 | K63: 22322.02298 | L63: Forecast Closing RAB2020
D64: Forecast Closing RAB | E64: 2021 | F64: 7325.515912 | G64: 7349.483451 | H64: 3423.249981 | I64: 2985.734842 | J64: 1542.455643 | K64: 22626.43983 | L64: Forecast Closing RAB2021
D65: Forecast Closing RAB | E65: 2022 | F65: 7186.28591 | G65: 8415.530025 | H65: 3371.723282 | I65: 3302.155328 | J65: 1535.599876 | K65: 23811.29442 | L65: Forecast Closing RAB2022
D66: Actual annual capex | E66: 2006 | F66: 391.0176655 | G66: 227.1727359 | H66: 148.7600767 | I66: 99.66488854 | J66: 103.3200849 | K66: 969.9354515 | L66: Actual annual capex2006
D67: Actual annual capex | E67: 2007 | F67: 350.0524466 | G67: 308.7990057 | H67: 151.9321729 | I67: 114.815756 | J67: 143.9417291 | K67: 1069.54111 | L67: Actual annual capex2007
D68: Actual annual capex | E68: 2008 | F68: 913.5772275 | G68: 441.8192322 | H68: 149.8040146 | I68: 231.2780024 | J68: 85.80255523 | K68: 1822.281032 | L68: Actual annual capex2008
D69: Actual annual capex | E69: 2009 | F69: 827.9347177 | G69: 759.4437067 | H69: 121.3514019 | I69: 128.737149 | J69: 89.34871092 | K69: 1926.815686 | L69: Actual annual capex2009
D70: Actual annual capex | E70: 2010 | F70: 576.5574449 | G70: 526.1256162 | H70: 142.0157826 | I70: 151.398529 | J70: 172.3967813 | K70: 1568.494154 | L70: Actual annual capex2010
D71: Actual annual capex | E71: 2011 | F71: 533.7993976 | G71: 456.6958617 | H71: 137.3499343 | I71: 292.6778361 | J71: 145.6282602 | K71: 1566.15129 | L71: Actual annual capex2011
D72: Actual annual capex | E72: 2012 | F72: 775.4352795 | G72: 431.3751362 | H72: 161.1650481 | I72: 213.6360784 | J72: 154.4344629 | K72: 1736.046005 | L72: =D72&E72 -> Actual annual capex2012
D73: Actual annual capex | E73: 2013 | F73: 539.0902593 | G73: 583.3869541 | H73: 205.8456638 | I73: 269.9121696 | J73: 102.6518087 | K73: 1700.886855 | L73: Actual annual capex2013
D74: Actual annual capex | E74: 2014 | F74: 370.930779 | G74: 561.9179716 | H74: 169.3360652 | I74: 154.2381397 | J74: 90.38924905 | K74: 1346.812204 | L74: Actual annual capex2014
D75: Actual annual capex | E75: 2015 | F75: 183.1664236 | G75: 289.465853 | H75: 174.2796965 | I75: 130.3976891 | J75: 29.01401169 | K75: 806.3236738 | L75: Actual annual capex2015
D76: Actual annual capex | E76: 2016 | F76: 150.0743904 | G76: 279.0165157 | H76: 156.7951828 | I76: 188.5445862 | J76: 27.95753195 | K76: 802.3882071 | L76: Actual annual capex2016
D77: Actual annual capex | E77: 2017 | F77: 191.4339745 | G77: 205.2300506 | H77: 144.7224511 | I77: 167.4690949 | J77: 56.62915374 | K77: 765.4847248 | L77: Actual annual capex2017
D78: Actual annual capex | E78: 2018 | F78: 163.6199789 | G78: 248.4893502 | H78: 144.9910799 | I78: 190.8516013 | J78: 57.01352748 | K78: 804.9655377 | L78: Actual annual capex2018
D79: Actual annual capex | E79: 2019 | F79: 179.1040774 | G79: 249.47368 | H79: 153.7898804 | I79: 168.1691793 | J79: 64.66296446 | K79: 815.1997815 | L79: Actual annual capex2019
D80: Actual annual capex | E80: 2020 | F80: 176.4489676 | G80: 341.2182676 | H80: 162.4035143 | I80: 194.1193989 | J80: 52.99878434 | K80: 927.1889328 | L80: Actual annual capex2020
D81: Actual annual capex | E81: 2021 | F81: 187.2303861 | G81: 812.3469668 | H81: 146.4582019 | I81: 228.3702874 | J81: 46.53994308 | K81: 1420.945785 | L81: Actual annual capex2021
D82: Actual annual capex | E82: 2022 | F82: 205.6633978 | G82: 486.2952177 | H82: 135.9495125 | I82: 375.6348965 | J82: 46.33831713 | K82: 1249.881342 | L82: Actual annual capex2022
D83: Forecast annual capex | E83: 2006 | F83: 293.525006 | G83: 275.7550333 | H83: 80.96223126 | I83: 125.900291 | J83: 76.39269322 | K83: 852.5352548 | L83: Forecast annual capex2006
D84: Forecast annual capex | E84: 2007 | F84: 131.4623543 | G84: 332.4557255 | H84: 109.7775711 | I84: 109.8544426 | J84: 126.0876461 | K84: 809.6377397 | L84: Forecast annual capex2007
D85: Forecast annual capex | E85: 2008 | F85: 996.1708558 | G85: 525.2246399 | H85: 111.1725712 | I85: 72.81212396 | J85: 59.55344364 | K85: 1764.933635 | L85: Forecast annual capex2008
D86: Forecast annual capex | E86: 2009 | F86: 908.7319315 | G86: 439.7835547 | H86: 157.7582453 | I86: 175.3437903 | J86: 49.69632194 | K86: 1731.313844 | L86: Forecast annual capex2009
D87: Forecast annual capex | E87: 2010 | F87: 602.2506929 | G87: 708.8907441 | H87: 151.0114482 | I87: 240.2483996 | J87: 209.5925659 | K87: 1911.993851 | L87: Forecast annual capex2010
D88: Forecast annual capex | E88: 2011 | F88: 664.870714 | G88: 604.2306198 | H88: 178.7075602 | I88: 306.9283424 | J88: 207.1948207 | K88: 1961.932057 | L88: Forecast annual capex2011
D89: Forecast annual capex | E89: 2012 | F89: 566.5254507 | G89: 742.9042554 | H89: 188.7848392 | I89: 236.8916771 | J89: 123.6999968 | K89: 1858.806219 | L89: Forecast annual capex2012
D90: Forecast annual capex | E90: 2013 | F90: 819.1691079 | G90: 682.782379 | H90: 165.6149503 | I90: 105.3602308 | J90: 130.0474147 | K90: 1902.974083 | L90: Forecast annual capex2013
D91: Forecast annual capex | E91: 2014 | F91: 676.3886216 | G91: 513.1858635 | H91: 202.3988377 | I91: 249.3979366 | J91: 129.7396149 | K91: 1771.110874 | L91: Forecast annual capex2014
D92: Forecast annual capex | E92: 2015 | F92: 481.7111764 | G92: 295.4802255 | H92: 173.2972001 | I92: 180.6587042 | J92: 58.60415013 | K92: 1189.751456 | L92: Forecast annual capex2015
D93: Forecast annual capex | E93: 2016 | F93: 535.5782571 | G93: 352.5635727 | H93: 209.2040836 | I93: 219.2288695 | J93: 74.60879271 | K93: 1391.183576 | L93: Forecast annual capex2016
D94: Forecast annual capex | E94: 2017 | F94: 606.4300269 | G94: 272.380509 | H94: 208.0990029 | I94: 157.354575 | J94: 61.07545893 | K94: 1305.339573 | L94: Forecast annual capex2017
D95: Forecast annual capex | E95: 2018 | F95: 181.3651332 | G95: 254.3876635 | H95: 197.457515 | I95: 80.36575831 | J95: 51.54077893 | K95: 765.1168489 | L95: Forecast annual capex2018
D96: Forecast annual capex | E96: 2019 | F96: 182.1009028 | G96: 257.2813683 | H96: 172.4255086 | I96: 129.5599736 | J96: 39.3663024 | K96: 780.7340557 | L96: Forecast annual capex2019
D97: Forecast annual capex | E97: 2020 | F97: 185.5029029 | G97: 388.332501 | H97: 168.0838148 | I97: 231.7570291 | J97: 59.68524743 | K97: 1033.361495 | L97: Forecast annual capex2020
D98: Forecast annual capex | E98: 2021 | F98: 193.0140266 | G98: 649.6887892 | H98: 156.4375335 | I98: 225.0875229 | J98: 57.3563255 | K98: 1281.584198 | L98: Forecast annual capex2021
D99: Forecast annual capex | E99: 2022 | F99: 180.4776175 | G99: 1342.584561 | H99: 117.6169292 | I99: 452.993513 | J99: 53.86339262 | K99: 2147.536013 | L99: Forecast annual capex2022
D100: Actual annual opex | E100: 2006 | F100: 173.7406486 | G100: 176.7988343 | H100: 90.16178325 | I100: 70.83388839 | J100: 51.87843942 | K100: 563.413594 | L100: Actual annual opex2006
D101: Actual annual opex | E101: 2007 | F101: 182.6643689 | G101: 175.5004289 | H101: 87.58876597 | I101: 75.37212405 | J101: 53.69041891 | K101: 574.8161067 | L101: Actual annual opex2007
D102: Actual annual opex | E102: 2008 | F102: 198.6091636 | G102: 165.1730937 | H102: 80.07438034 | I102: 68.13676437 | J102: 63.93075714 | K102: 575.9241592 | L102: Actual annual opex2008
D103: Actual annual opex | E103: 2009 | F103: 190.4164508 | G103: 165.7333467 | H103: 103.1983566 | I103: 73.13950111 | J103: 62.27034791 | K103: 594.758003 | L103: Actual annual opex2009
D104: Actual annual opex | E104: 2010 | F104: 197.2782858 | G104: 186.2472381 | H104: 103.4925459 | I104: 74.75712244 | J104: 62.12511451 | K104: 623.9003067 | L104: Actual annual opex2010
D105: Actual annual opex | E105: 2011 | F105: 190.2275328 | G105: 173.7310411 | H105: 94.8157934 | I105: 81.06991593 | J105: 58.7101437 | K105: 598.554427 | L105: Actual annual opex2011
D106: Actual annual opex | E106: 2012 | F106: 197.1695739 | G106: 187.2174643 | H106: 89.27147501 | I106: 89.224257 | J106: 57.75314766 | K106: 620.6359179 | L106: Actual annual opex2012
D107: Actual annual opex | E107: 2013 | F107: 201.6485015 | G107: 172.5421752 | H107: 91.01469007 | I107: 84.96034495 | J107: 54.24926574 | K107: 604.4149775 | L107: Actual annual opex2013
D108: Actual annual opex | E108: 2014 | F108: 212.3176735 | G108: 206.2473269 | H108: 96.52210735 | I108: 86.97465204 | J108: 53.54459519 | K108: 655.606355 | L108: Actual annual opex2014
D109: Actual annual opex | E109: 2015 | F109: 242.6295988 | G109: 193.0640426 | H109: 96.31808895 | I109: 91.41818956 | J109: 39.82929213 | K109: 663.259212 | L109: Actual annual opex2015
D110: Actual annual opex | E110: 2016 | F110: 246.7242044 | G110: 191.3046889 | H110: 99.81633054 | I110: 96.46410127 | J110: 42.43211398 | K110: 676.741439 | L110: Actual annual opex2016
D111: Actual annual opex | E111: 2017 | F111: 252.1422434 | G111: 189.2494152 | H111: 96.51326905 | I111: 99.88467921 | J111: 35.60027417 | K111: 673.389881 | L111: Actual annual opex2017
D112: Actual annual opex | E112: 2018 | F112: 204.9403328 | G112: 167.7375925 | H112: 88.70044996 | I112: 101.7233901 | J112: 31.65070726 | K112: 594.7524726 | L112: Actual annual opex2018
D113: Actual annual opex | E113: 2019 | F113: 213.8298528 | G113: 165.6521305 | H113: 92.51717109 | I113: 100.1139016 | J113: 33.37255389 | K113: 605.4856099 | L113: Actual annual opex2019
D114: Actual annual opex | E114: 2020 | F114: 212.9038793 | G114: 170.0818475 | H114: 83.27888167 | I114: 105.2107859 | J114: 28.67770099 | K114: 600.1530953 | L114: Actual annual opex2020
D115: Actual annual opex | E115: 2021 | F115: 218.9748856 | G115: 175.1870437 | H115: 74.58364498 | I115: 103.6774426 | J115: 31.93787665 | K115: 604.3608936 | L115: Actual annual opex2021
D116: Actual annual opex | E116: 2022 | F116: 209.9921347 | G116: 188.7815633 | H116: 83.49671721 | I116: 101.9004609 | J116: 32.61925979 | K116: 616.7901359 | L116: Actual annual opex2022
D117: Forecast annual opex | E117: 2006 | F117: 132.7051537 | G117: 177.2213129 | H117: 111.8754754 | I117: 75.6305492 | J117: 47.83750116 | K117: 545.2699923 | L117: Forecast annual opex2006
D118: Forecast annual opex | E118: 2007 | F118: 132.7103066 | G118: 176.6584834 | H118: 111.8754754 | I118: 75.6305492 | J118: 46.06083242 | K118: 542.935647 | L118: Forecast annual opex2007
D119: Forecast annual opex | E119: 2008 | F119: 196.8843627 | G119: 176.2051775 | H119: 111.8754754 | I119: 75.6305492 | J119: 42.18520386 | K119: 602.7807686 | L119: Forecast annual opex2008
D120: Forecast annual opex | E120: 2009 | F120: 197.7575713 | G120: 175.9283262 | H120: 111.0507192 | I120: 75.36301118 | J120: 42.05227128 | K120: 602.1518991 | L120: Forecast annual opex2009
D121: Forecast annual opex | E121: 2010 | F121: 212.5142085 | G121: 208.6834059 | H121: 110.1773676 | I121: 77.72540575 | J121: 65.48571736 | K121: 674.5861051 | L121: Forecast annual opex2010
D122: Forecast annual opex | E122: 2011 | F122: 203.1745987 | G122: 201.388886 | H122: 110.1486667 | I122: 80.41431455 | J122: 66.40477666 | K122: 661.5312426 | L122: Forecast annual opex2011
D123: Forecast annual opex | E123: 2012 | F123: 209.2605477 | G123: 206.5252608 | H123: 108.7992824 | I123: 84.23936211 | J123: 65.90587618 | K123: 674.7303292 | L123: Forecast annual opex2012
D124: Forecast annual opex | E124: 2013 | F124: 216.1626571 | G124: 218.228396 | H124: 108.2121687 | I124: 87.43879493 | J124: 69.0177042 | K124: 699.0597209 | L124: Forecast annual opex2013
D125: Forecast annual opex | E125: 2014 | F125: 224.3843195 | G125: 220.4320551 | H125: 106.7451843 | I125: 94.94639998 | J125: 68.60142653 | K125: 715.1093854 | L125: Forecast annual opex2014
D126: Forecast annual opex | E126: 2015 | F126: 230.0949045 | G126: 196.9134163 | H126: 96.92952211 | I126: 98.5528608 | J126: 50.93581329 | K126: 673.426517 | L126: Forecast annual opex2015
D127: Forecast annual opex | E127: 2016 | F127: 238.7107577 | G127: 195.5783907 | H127: 99.40613933 | I127: 100.3433312 | J127: 50.24060019 | K127: 684.2792192 | L127: Forecast annual opex2016
D128: Forecast annual opex | E128: 2017 | F128: 245.6304751 | G128: 200.8124603 | H128: 100.2332873 | I128: 105.7403074 | J128: 50.51159759 | K128: 702.9281278 | L128: Forecast annual opex2017
D129: Forecast annual opex | E129: 2018 | F129: 217.1209343 | G129: 193.2702349 | H129: 100.5658226 | I129: 106.153302 | J129: 50.77451312 | K129: 667.8848068 | L129: Forecast annual opex2018
D130: Forecast annual opex | E130: 2019 | F130: 216.1750391 | G130: 189.9672608 | H130: 101.0998516 | I130: 97.79298648 | J130: 50.2127651 | K130: 655.2479032 | L130: Forecast annual opex2019
D131: Forecast annual opex | E131: 2020 | F131: 215.1570199 | G131: 193.3840726 | H131: 102.1876631 | I131: 98.31436173 | J131: 31.95392289 | K131: 640.9970402 | L131: Forecast annual opex2020
D132: Forecast annual opex | E132: 2021 | F132: 214.36688 | G132: 197.9943787 | H132: 102.3201156 | I132: 100.1200874 | J132: 32.06289372 | K132: 646.8643554 | L132: Forecast annual opex2021
D133: Forecast annual opex | E133: 2022 | F133: 214.2295999 | G133: 207.2182969 | H133: 102.8299108 | I133: 101.3872664 | J133: 32.22235856 | K133: 657.8874325 | L133: Forecast annual opex2022
D134: Loss of supply events | E134: 2006 | F134: 2 | G134: 2 | H134: 5 | I134: 4 | J134: 16 | K134: 29 | L134: Loss of supply events2006
D135: Loss of supply events | E135: 2007 | F135: 2 | G135: 5 | H135: 2 | I135: 1 | J135: 10 | K135: 20 | L135: Loss of supply events2007
D136: Loss of supply events | E136: 2008 | F136: 2 | G136: 2 | H136: 1 | I136: 4 | J136: 6 | K136: 15 | L136: =D136&E136 -> Loss of supply events2008
D137: Loss of supply events | E137: 2009 | F137: 2 | G137: 3 | H137: 6 | I137: 4 | J137: 8 | K137: 23 | L137: Loss of supply events2009
D138: Loss of supply events | E138: 2010 | F138: 0 | G138: 3 | H138: 1 | I138: 12 | J138: 9 | K138: 25 | L138: Loss of supply events2010
D139: Loss of supply events | E139: 2011 | F139: 4 | G139: 3 | H139: 0 | I139: 7 | J139: 11 | K139: 25 | L139: Loss of supply events2011
D140: Loss of supply events | E140: 2012 | F140: 1 | G140: 3 | H140: 2 | I140: 7 | J140: 10 | K140: 23 | L140: Loss of supply events2012
D141: Loss of supply events | E141: 2013 | F141: 0 | G141: 7 | H141: 5 | I141: 5 | J141: 10 | K141: 27 | L141: Loss of supply events2013
D142: Loss of supply events | E142: 2014 | F142: 5 | G142: 3 | H142: 3 | I142: 4 | J142: 5 | K142: 20 | L142: Loss of supply events2014
D143: Loss of supply events | E143: 2015 | F143: 2 | G143: 4 | H143: 2 | I143: 1 | J143: 4 | K143: 13 | L143: Loss of supply events2015
D144: Loss of supply events | E144: 2016 | F144: 1 | G144: 2 | H144: 3 | I144: 5 | J144: 2 | K144: 13 | L144: Loss of supply events2016
D145: Loss of supply events | E145: 2017 | F145: 6 | G145: 1 | H145: 0 | I145: 4 | J145: 4 | K145: 15 | L145: Loss of supply events2017
D146: Loss of supply events | E146: 2018 | F146: 2 | G146: 1 | H146: 0 | I146: 3 | J146: 2 | K146: 8 | L146: Loss of supply events2018
D147: Loss of supply events | E147: 2019 | F147: 0 | G147: 3 | H147: 1 | I147: 4 | J147: 2 | K147: 10 | L147: Loss of supply events2019
D148: Loss of supply events | E148: 2020 | F148: 0 | G148: 1 | H148: 3 | I148: 1 | J148: 8 | K148: 13 | L148: Loss of supply events2020
D149: Loss of supply events | E149: 2021 | F149: 3 | G149: 0 | H149: 0 | I149: 0 | J149: 2 | K149: 5 | L149: Loss of supply events2021
D150: Average outage duration | E150: 2006 | F150: 39.03476969 | G150: 64.84 | H150: 61.9 | I150: 88.46 | J150: 53.84615 | L150: Average outage duration2006
D151: Average outage duration | E151: 2007 | F151: 1249.943388 | G151: 125.4 | H151: 27.6 | I151: 269.94 | J151: 142.7619 | L151: Average outage duration2007
D152: Average outage duration | E152: 2008 | F152: 35.28963807 | G152: 34.28 | H152: 71.5 | I152: 200.2 | J152: 112.9 | L152: Average outage duration2008
D153: Average outage duration | E153: 2009 | F153: 62.27619752 | G153: 84.96 | H153: 103.1 | I153: 161.27 | J153: 67.15789 | L153: Average outage duration2009
D154: Average outage duration | E154: 2010 | F154: 16.62000159 | G154: 225.83 | H154: 92.5 | I154: 126.85 | J154: 127.7692 | L154: Average outage duration2010
D155: Average outage duration | E155: 2011 | F155: 86.76942158 | G155: 137.11 | H155: 4 | I155: 242.28 | J155: 90.86667 | L155: Average outage duration2011
D156: Average outage duration | E156: 2012 | F156: 26.08666667 | G156: 94.23 | H156: 230 | I156: 124.76 | J156: 110.8846 | L156: Average outage duration2012
D157: Average outage duration | E157: 2013 | F157: 5.621428571 | G157: 178.69 | H157: 19.9 | I157: 154.17 | J157: 160.9412 | L157: Average outage duration2013
D158: Average outage duration | E158: 2014 | F158: 115.971 | G158: 71.14 | H158: 24 | I158: 130.71 | J158: 201 | L158: Average outage duration2014
D159: Average outage duration | E159: 2015 | F159: 236.2286666 | G159: 63.55 | H159: 97.5 | I159: 147 | J159: 74 | L159: Average outage duration2015
D160: Average outage duration | E160: 2016 | F160: 30.06 | G160: 169.1775079 | H160: 39.83333333 | I160: 250.5714286 | J160: 15 | L160: Average outage duration2016
D161: Average outage duration | E161: 2017 | F161: 27.451875 | G161: 35.6399999 | H161: 19 | I161: 97.4 | J161: 410.4545455 | L161: Average outage duration2017
D162: Average outage duration | E162: 2018 | F162: 36.23818182 | G162: 58.20000015 | H162: 24.5 | I162: 463 | J162: 45.90909091 | L162: Average outage duration2018
D163: Average outage duration | E163: 2019 | F163: 15 | G163: 69.82499979 | H163: 87 | I163: 192 | J163: 273 | L163: Average outage duration2019
D164: Average outage duration | E164: 2020 | F164: 36.20375 | G164: 45.17142873 | H164: 72.3 | I164: 205 | J164: 105 | L164: Average outage duration2020
D165: Average outage duration | E165: 2021 | F165: 51.06875 | G165: 72.23809506 | H165: 47.3 | I165: 199.875 | J165: 19 | L165: Average outage duration2021
D166: Market impact indicator | E166: 2006 | F166: 0.03737633181 | G166: 0.0258847032 | H166: 0.01152968037 | I166: 0.2700247336 | J166: 0.002949010654 | L166: Market impact indicator2006
D167: Market impact indicator | E167: 2007 | F167: 0.02527587519 | G167: 0.03258181126 | H167: 0.02546613394 | I167: 0.1040239726 | J167: 0.05666856925 | L167: Market impact indicator2007
D168: Market impact indicator | E168: 2008 | F168: 0.01248097412 | G168: 0.02813926941 | H168: 0.03142123288 | I168: 0.05277777778 | J168: 0.003196347032 | L168: Market impact indicator2008
D169: Market impact indicator | E169: 2009 | F169: 0.009874429224 | G169: 0.02398211568 | H169: 0.01442161339 | I169: 0.03537861492 | J169: 0.009912480974 | L169: Market impact indicator2009
D170: Market impact indicator | E170: 2010 | F170: 0.01483066971 | G170: 0.007420091324 | H170: 0.02091894977 | I170: 0.02148972603 | J170: 0.03777587519 | L170: Market impact indicator2010
D171: Market impact indicator | E171: 2011 | F171: 0.003177321157 | G171: 0.008295281583 | H171: 0.03160197869 | I171: 0.01685692542 | J171: 0.006934931507 | L171: Market impact indicator2011
D172: Market impact indicator | E172: 2012 | F172: 0.002235540335 | G172: 0.007011035008 | H172: 0.02480974125 | I172: 0.05065639269 | J172: 0.01337519026 | L172: Market impact indicator2012
D173: Market impact indicator | E173: 2013 | F173: 0.0009227549467 | G173: 0.005641171994 | H173: 0.01281392694 | I173: 0.02784436834 | J173: 0.01699961948 | L173: Market impact indicator2013
D174: Market impact indicator | E174: 2014 | F174: 0.03749048706 | G174: 0.007129946728 | H174: 0.008285768645 | I174: 0.0009132420091 | J174: 0.01546803653 | L174: Market impact indicator2014
D175: Market impact indicator | E175: 2015 | F175: 0.0006183409437 | G175: 0.01264269406 | H175: 0.00921803653 | I175: 0.1027111872 | J175: 0.002349695586 | L175: Market impact indicator2015
D176: Market impact indicator | E176: 2016 | F176: 0.000399543379 | G176: 0.02907153729 | H176: 0.06364155251 | I176: 0.1111539193 | J176: 0.02724505327 | L176: Market impact indicator2016
D177: Market impact indicator | E177: 2017 | F177: 0.0006944444444 | G177: 0.06477834855 | H177: 0.04276065449 | I177: 0.02214611872 | J177: 0.02570395738 | L177: Market impact indicator2017
D178: Market impact indicator | E178: 2018 | F178: 0.004242770167 | G178: 0.06732305936 | H178: 0.003025114155 | I178: 0.06868340944 | J178: 0.03927891933 | L178: Market impact indicator2018
D179: Market impact indicator | E179: 2019 | F179: 0.1325437595 | G179: 0.01362252664 | H179: 0.01887366819 | I179: 0.07472888128 | J179: 0.01669520548 | L179: Market impact indicator2019
D180: Market impact indicator | E180: 2020 | F180: 0.2368721461 | G180: 0.1590468037 | H180: 0.009199010654 | I180: 0.06873097412 | J180: 0.01326103501 | L180: Market impact indicator2020
D181: Market impact indicator | E181: 2021 | F181: 0.1109303653 | G181: 0.3274543379 | H181: 0.03573059361 | I181: 0.138108828 | J181: 0.01310882801 | L181: Market impact indicator2021
D182: Maximum demand (MW) | E182: 2006 | F182: 7336.8405 | G182: 12600 | H182: 6717.51 | I182: 2716.662362 | J182: 1949.873 | L182: Maximum demand (MW)2006
D183: Maximum demand (MW) | E183: 2007 | F183: 7758.26744 | G183: 12400 | H183: 7719 | I183: 2707.049284 | J183: 2329.506 | L183: Maximum demand (MW)2007
D184: Maximum demand (MW) | E184: 2008 | F184: 7281.0681 | G184: 13200 | H184: 8721.38 | I184: 2939.80442 | J184: 2245.082 | L184: Maximum demand (MW)2008
D185: Maximum demand (MW) | E185: 2009 | F185: 7848.614416 | G185: 13700 | H185: 9260.43 | I185: 3128.41975 | J185: 2154.23 | L185: Maximum demand (MW)2009
D186: Maximum demand (MW) | E186: 2010 | F186: 8002.824568 | G186: 13200 | H186: 8974.76 | I186: 3055.21236 | J186: 2267.071 | L186: Maximum demand (MW)2010
D187: Maximum demand (MW) | E187: 2011 | F187: 7797.450764 | G187: 13700 | H187: 8812.86 | I187: 3169.099066 | J187: 2238.723 | L187: Maximum demand (MW)2011
D188: Maximum demand (MW) | E188: 2012 | F188: 7740.007068 | G188: 11900 | H188: 8071.43 | I188: 2807.677388 | J188: 2264.047 | L188: Maximum demand (MW)2012
D189: Maximum demand (MW) | E189: 2013 | F189: 7681.438938 | G189: 12700 | H189: 8410.82 | I189: 2913.555964 | J189: 2184.59 | L189: Maximum demand (MW)2013
D190: Maximum demand (MW) | E190: 2014 | F190: 7637.8836 | G190: 12100 | H190: 9137.4 | I190: 3115.138214 | J190: 2132 | L190: Maximum demand (MW)2014
D191: Maximum demand (MW) | E191: 2015 | F191: 8105.0588 | G191: 10900 | H191: 7714.953 | I191: 2668.456524 | J191: 2143.157178 | L191: Maximum demand (MW)2015
D192: Maximum demand (MW) | E192: 2016 | F192: 8272.121872 | G192: 11900 | H192: 8780.009717 | I192: 2804.476644 | J192: 2218.9 | L192: Maximum demand (MW)2016
D193: Maximum demand (MW) | E193: 2017 | F193: 8547.985832 | G193: 13200 | H193: 7979.837 | I193: 2955.01515 | J193: 1963.69113 | L193: Maximum demand (MW)2017
D194: Maximum demand (MW) | E194: 2018 | F194: 8788.580608 | G194: 12200 | H194: 8393.988 | I194: 2812.003652 | J194: 2184.504756 | L194: Maximum demand (MW)2018
D195: Maximum demand (MW) | E195: 2019 | F195: 8968.972492 | G195: 13000 | H195: 8683.903 | I195: 3192.898416 | J195: 2147.102824 | L195: Maximum demand (MW)2019
D196: Maximum demand (MW) | E196: 2020 | F196: 8766.41304 | G196: 13500 | H196: 8947.7 | I196: 2922.511406 | J196: 2047.926794 | L196: Maximum demand (MW)2020
D197: Maximum demand (MW) | E197: 2021 | F197: 8478.98337 | G197: 11700 | H197: 7786.059 | I197: 2744.44597 | J197: 2040.752734 | L197: Maximum demand (MW)2021
D198: Maximum demand (MW) | E198: 2022 | F198: 9171.107078 | G198: 12000 | H198: 7969 | I198: 2501.107146 | J198: 2117.432396 | L198: Maximum demand (MW)2022
D199: Energy delivered (GWh) - excluding energy delivered to other transmission networks | E199: 2006 | K199: 182631.4989 | L199: Energy delivered (GWh) - excluding energy delivered to other transmission networks2006
D200: Energy delivered (GWh) - excluding energy delivered to other transmission networks | E200: 2007 | K200: 186176.6668 | L200: =D200&E200 -> Energy delivered (GWh) - excluding energy delivered to other transmission networks2007
D201: Energy delivered (GWh) - excluding energy delivered to other transmission networks | E201: 2008 | K201: 187629.6835 | L201: Energy delivered (GWh) - excluding energy delivered to other transmission networks2008
D202: Energy delivered (GWh) - excluding energy delivered to other transmission networks | E202: 2009 | K202: 187179.7504 | L202: Energy delivered (GWh) - excluding energy delivered to other transmission networks2009
D203: Energy delivered (GWh) - excluding energy delivered to other transmission networks | E203: 2010 | K203: 185093.7098 | L203: Energy delivered (GWh) - excluding energy delivered to other transmission networks2010
... 80 more rows

Sheet 1. Revenue
B4: Revenue
B32: Transmission businesses earn revenues for delivering prescribed transmission services. They earn some revenues directly from customers, and other revenue from sources such as inter-regional and intra-regional settlements residues or inter-regional settlements auction proceeds. The revenues shown in the chart only include the revenues budgetted (forecast) to be collected from customers and the actual revenues received from customers. Transmission businesses are regulated via a revenue cap, which limits the revenues that can be earned in any year.
B34: Actual revenue from customers
B35: $m 2022 | C35: State | D35: 2006 | E35: 2007 | F35: 2008 | G35: 2009 | H35: 2010 | I35: 2011 | J35: 2012 | K35: 2013 | L35: 2014 | M35: 2015 | N35: 2016 | O35: 2017 | P35: 2018 | Q35: 2019 | R35: 2020 | S35: 2021 | T35: 2022
B36: Powerlink | C36: QLD | D36: 557.5240247 | E36: 591.9473831 | F36: 640.3363078 | G36: 667.5933088 | H36: 751.9946487 | I36: 855.2401967 | J36: 946.2004684 | K36: 935.4938745 | L36: 961.0600379 | M36: 939.8998305 | N36: 1052.334967 | O36: 1174.599645 | P36: 779.2829429 | Q36: 719.0886459 | R36: 716.2610112 | S36: 716.3246867 | T36: 735.681005
B37: Transgrid | C37: NSW | D37: 470.048236 | E37: 455.9308263 | F37: 469.1281138 | G37: 576.5941974 | H37: 702.2010967 | I37: 793.793552 | J37: 817.3430555 | K37: 855.4970644 | L37: 801.1467644 | M37: 813.541148 | N37: 798.3012934 | O37: 693.238931 | P37: 643.7619674 | Q37: 569.7784382 | R37: 555.5787677 | S37: 574.7558423 | T37: 622.1301829
B38: AEMO/AusNet (T) | C38: VIC | D38: 481.9660412 | E38: 528.8880831 | F38: 527.6471 | G38: 499.4619116 | H38: 594.4721476 | I38: 589.5404619 | J38: 615.9577263 | K38: 691.3132457 | L38: 600.2327154 | M38: 632.6507301 | N38: 545.3489605 | O38: 592.243004 | P38: 565.2135453 | Q38: 545.3469905 | R38: 628.8031138 | S38: 663.3950592 | T38: 662.3061235
B39: ElectraNet | C39: SA | D39: 217.5979534 | E39: 239.2391336 | F39: 246.5738077 | G39: 275.9760025 | H39: 266.9768038 | I39: 308.8274305 | J39: 356.8272226 | K39: 369.4247977 | L39: 318.1199574 | M39: 330.3539193 | N39: 316.8445085 | O39: 296.39373 | P39: 284.4188053 | Q39: 280.8751236 | R39: 288.9473631 | S39: 306.2381981 | T39: 310.65531
B40: TasNetworks (T) | C40: TAS | D40: 171.7312127 | E40: 147.7365534 | F40: 161.3881822 | G40: 173.6450486 | H40: 204.2217973 | I40: 243.4782849 | J40: 255.5362224 | K40: 252.8605855 | L40: 248.0091684 | M40: 212.9725508 | N40: 195.2258598 | O40: 179.6186084 | P40: 176.026066 | Q40: 163.9157515 | R40: 148.1189944 | S40: 137.407701 | T40: 128.024236
B41: NEM Total | D41: 1898.867468 | E41: 1963.741979 | F41: 2045.073511 | G41: 2193.270469 | H41: 2519.866494 | I41: 2790.879926 | J41: 2991.864695 | K41: 3104.589568 | L41: 2928.568644 | M41: 2929.418179 | N41: 2908.05559 | O41: 2936.093919 | P41: 2448.703327 | Q41: 2279.00495 | R41: 2337.70925 | S41: 2398.121487 | T41: 2458.796857
B43: Sources:
B44: Economic Benchmarking RIN responses.
B47: Budgeted revenue from customers
B48: $m 2022 | C48: State | D48: 2006 | E48: 2007 | F48: 2008 | G48: 2009 | H48: 2010 | I48: 2011 | J48: 2012 | K48: 2013 | L48: 2014 | M48: 2015 | N48: 2016 | O48: 2017 | P48: 2018 | Q48: 2019 | R48: 2020 | S48: 2021 | T48: 2022
B49: Powerlink | C49: QLD | M49: 952.5211972 | N49: 1078.834698 | O49: 1183.614378 | P49: 787.3889075 | Q49: 722.0587053 | R49: 716.7173263 | S49: 719.9239298 | T49: 743.2054948
B50: Transgrid | C50: NSW | M50: 912.1402102 | N50: 898.6929836 | O50: 808.4550928 | P50: 740.6665505 | Q50: 591.4984223 | R50: 679.4016177 | S50: 705.2698084 | T50: 732.5126651
B51: AEMO/AusNet (T) | C51: VIC | M51: 634.9053356 | N51: 634.1371632 | O51: 604.9512548 | P51: 569.6401679 | Q51: 546.9168151 | R51: 628.7937006 | S51: 663.395059 | T51: 662.2978425
B52: ElectraNet | C52: SA | M52: 337.4135653 | N52: 323.8244348 | O52: 303.959347 | P52: 291.6137194 | Q52: 288.1138434 | R52: 288.6126459 | S52: 312.5412631 | T52: 317.3357499
B53: TasNetworks (T) | C53: TAS | M53: 190.7872451 | N53: 173.0408857 | O53: 170.9293956 | P53: 162.0062057 | Q53: 163.2922983 | R53: 147.9834348 | S53: 137.9301512 | T53: 128.5520093
B54: NEM Total | M54: 3027.767553 | N54: 3108.530165 | O54: 3071.909468 | P54: 2551.315551 | Q54: 2311.880084 | R54: 2461.508725 | S54: 2539.060212 | T54: 2583.903762
B56: Sources:
B57: Information requests: All TNSPs 2015 to 2022 (information request issued annually from February 2020).
B59: Note: The AER has not collected budgeted revenues from customers for the years prior to 2015.

Sheet 2. RAB - Closing
B4: Regulatory Asset Base
B32: The regulatory asset base (RAB) represents the value of the network at a given point in time. The value of the network changes each year due to capital expenditures, depreciation, and disposal of assets.
B34: Actual Closing RAB
B35: $m 2022 | C35: State | D35: 2006 | E35: 2007 | F35: 2008 | G35: 2009 | H35: 2010 | I35: 2011 | J35: 2012 | K35: 2013 | L35: 2014 | M35: 2015 | N35: 2016 | O35: 2017 | P35: 2018 | Q35: 2019 | R35: 2020 | S35: 2021 | T35: 2022
B36: Powerlink | C36: QLD | D36: 4334.923502 | E36: 5280.547948 | F36: 6004.167904 | G36: 6607.827814 | H36: 6951.807551 | I36: 7236.629768 | J36: 7841.402735 | K36: 8148.687219 | L36: 8264.800637 | M36: 8160.52283 | N36: 8007.391898 | O36: 7795.632311 | P36: 7676.718367 | Q36: 7553.865559 | R36: 7414.96164 | S36: 7275.992365 | T36: 7161.783314
B37: Transgrid | C37: NSW | D37: 4659.38246 | E37: 4786.732816 | F37: 5047.94734 | G37: 5562.415439 | H37: 5869.473103 | I37: 6110.761333 | J37: 6319.054381 | K37: 6680.178528 | L37: 7032.430314 | M37: 7044.285732 | N37: 7032.849024 | O37: 6931.716818 | P37: 6894.109029 | Q37: 6871.822109 | R37: 6930.083136 | S37: 7453.019386 | T37: 7646.280977
B38: AusNet (T)* | C38: VIC | D38: 2739.832291 | E38: 2727.746325 | F38: 2967.598872 | G38: 2952.255815 | H38: 2954.722201 | I38: 2947.827214 | J38: 2963.738859 | K38: 3020.754108 | L38: 3310.215433 | M38: 3316.637769 | N38: 3308.402965 | O38: 3468.737414 | P38: 3425.63548 | Q38: 3397.417826 | R38: 3370.250688 | S38: 3327.181244 | T38: 3297.113568
B39: ElectraNet | C39: SA | D39: 1483.67292 | E39: 1523.589015 | F39: 1770.586674 | G39: 1831.800483 | H39: 1912.137239 | I39: 2135.814903 | J39: 2276.264735 | K39: 2462.436843 | L39: 2529.12912 | M39: 2558.172278 | N39: 2632.178429 | O39: 2688.799706 | P39: 2771.731787 | Q39: 2827.055238 | R39: 2884.868479 | S39: 2973.254247 | T39: 3211.981957
B40: TasNetworks (T) | C40: TAS | D40: 1063.913007 | E40: 1143.045417 | F40: 1149.353035 | G40: 1254.849378 | H40: 1369.57751 | I40: 1452.244488 | J40: 1551.545958 | K40: 1590.508332 | L40: 1632.341574 | M40: 1601.300381 | N40: 1565.774052 | O40: 1555.84357 | P40: 1547.453641 | Q40: 1546.532581 | R40: 1536.233432 | S40: 1523.047087 | T40: 1510.538203
B41: Total | D41: 14281.72418 | E41: 15461.66152 | F41: 16939.65383 | G41: 18209.14893 | H41: 19057.7176 | I41: 19883.27771 | J41: 20952.00667 | K41: 21902.56503 | L41: 22768.91708 | M41: 22680.91899 | N41: 22546.59637 | O41: 22440.72982 | P41: 22315.6483 | Q41: 22196.69331 | R41: 22136.39737 | S41: 22552.49433 | T41: 22827.69802
B43: Sources:
B44: Actual closing RAB has been taken from Roll forward models developed as part of final regulatory decisions, as made by the AER or jurisdictional regulators, and as updated by the Australian Competition Tribunal. Where a final decision for a regulatory period is not yet available, draft decisions or regulatory proposals have been used. If no RFM is available we have used the forecast RAB data from the Post Tax Revenue Models.
B48: Forecast Closing RAB
B49: $m 2022 | C49: State | D49: 2006 | E49: 2007 | F49: 2008 | G49: 2009 | H49: 2010 | I49: 2011 | J49: 2012 | K49: 2013 | L49: 2014 | M49: 2015 | N49: 2016 | O49: 2017 | P49: 2018 | Q49: 2019 | R49: 2020 | S49: 2021 | T49: 2022
B50: Powerlink | C50: QLD | D50: 4321.64356 | E50: 4253.38199 | F50: 6087.796544 | G50: 6774.093184 | H50: 7133.283327 | I50: 7541.542193 | J50: 7838.830359 | K50: 8436.072392 | L50: 8854.760765 | M50: 9037.511065 | N50: 9253.577437 | O50: 9529.38581 | P50: 7697.581165 | Q50: 7579.098473 | R50: 7451.550577 | S50: 7325.515912 | T50: 7186.28591
B51: Transgrid | C51: NSW | D51: 4767.947512 | E51: 4929.987289 | F51: 5286.731385 | G51: 5538.87751 | H51: 6057.876948 | I51: 6434.461574 | J51: 6958.224007 | K51: 7398.791429 | L51: 7643.313427 | M51: 7056.224199 | N51: 7123.518671 | O51: 7094.271873 | P51: 7066.675421 | Q51: 6881.861082 | R51: 6987.83018 | S51: 7349.483451 | T51: 8415.530025
B52: AusNet (T)* | C52: VIC | D52: 2856.717882 | E52: 2842.132624 | F52: 2824.996614 | G52: 2986.64541 | H52: 2990.676829 | I52: 3017.870037 | J52: 3050.171192 | K52: 3054.197514 | L52: 3105.376093 | M52: 3324.099005 | N52: 3369.973777 | O52: 3409.789516 | P52: 3484.601561 | Q52: 3474.743164 | R52: 3447.259188 | S52: 3423.249981 | T52: 3371.723282
B53: ElectraNet | C53: SA | D53: 1537.743536 | E53: 1558.638229 | F53: 1528.682073 | G53: 1881.429894 | H53: 2057.930839 | I53: 2296.311631 | J53: 2457.835884 | K53: 2477.552749 | L53: 2626.27463 | M53: 2710.136962 | N53: 2818.835929 | O53: 2854.345484 | P53: 2809.717333 | Q53: 2788.60321 | R53: 2891.86003 | S53: 2985.734842 | T53: 3302.155328
B54: TasNetworks (T) | C54: TAS | D54: 1061.910344 | E54: 1141.3952 | F54: 1147.842604 | G54: 1143.604922 | H54: 1407.852457 | I54: 1553.782567 | J54: 1616.499262 | K54: 1679.455303 | L54: 1737.332945 | M54: 1632.22894 | N54: 1645.032198 | O54: 1640.615427 | P54: 1627.344767 | Q54: 1601.414886 | R54: 1543.523006 | S54: 1542.455643 | T54: 1535.599876
B55: Total | D55: 14545.96283 | E55: 14725.53533 | F55: 16876.04922 | G55: 18324.65092 | H55: 19647.6204 | I55: 20843.968 | J55: 21921.5607 | K55: 23046.06939 | L55: 23967.05786 | M55: 23760.20017 | N55: 24210.93801 | O55: 24528.40811 | P55: 22685.92025 | Q55: 22325.72081 | R55: 22322.02298 | S55: 22626.43983 | T55: 23811.29442
B57: Sources:
B58: Forecast closing RAB is sourced from post tax revenue models determined as part of final regulatory decisions, as made by the AER or jurisdictional regulators, and as adjusted by the Australian Competition Tribunal. Updates to the model are also taken into account.
B60: Notes:
B61: AusNet (T) - differences between actual and forecast closing RAB arise due to the treatment of augmentation capital works (Group 3 assets). These assets are included in Actual RAB data, but are not included in forecasts. The AER's Final decision* on AusNet (T)'s RAB explains the issue and advises: During a regulatory control period, AEMO or a distribution business may request AusNet Services to provide augmentations to the transmission network or distribution connection services. While the assets constructed due to these requests provide prescribed transmission services, the forecast capex associated with these assets sit outside of the revenue determination. This is because AusNet Services is not responsible for the planning of these capex. AusNet Services and AEMO refer to the assets that provide these services as ‘Group 3’ assets. Group 3 assets sit outside of the RAB and are governed by commercial contracts until such time as they are rolled into the RAB, usually at the next revenue reset. * AER, Final decision: AusNet Services transmission determination 2017–22, Attachment 2 – Regulatory asset base, pp. 2-6.

Sheet 3. Capex
B4: Capital expenditure
B32: Capital expenditure (capex) measures the new investments in the transmission networks. This includes expenditure for augmentation of the network, replacement of assets, new connections, improving network reliability and non-network investments (e.g. buildings). All data is reported on an as-incurred basis.
B34: Actual annual capex
B35: $m 2022 | C35: State | D35: 2006 | E35: 2007 | F35: 2008 | G35: 2009 | H35: 2010 | I35: 2011 | J35: 2012 | K35: 2013 | L35: 2014 | M35: 2015 | N35: 2016 | O35: 2017 | P35: 2018 | Q35: 2019 | R35: 2020 | S35: 2021 | T35: 2022
B36: Powerlink | C36: QLD | D36: 391.0176655 | E36: 350.0524466 | F36: 913.5772275 | G36: 827.9347177 | H36: 576.5574449 | I36: 533.7993976 | J36: 775.4352795 | K36: 539.0902593 | L36: 370.930779 | M36: 183.1664236 | N36: 150.0743904 | O36: 191.4339745 | P36: 163.6199789 | Q36: 179.1040774 | R36: 176.4489676 | S36: 187.2303861 | T36: 205.6633978 | Z36: =Q49-Q37 -> 7.807688263 | AA36: =R49-R37 -> 47.11423334 | AB36: -162.6581776 | AC36: 856.2893434
B37: Transgrid | C37: NSW | D37: 227.1727359 | E37: 308.7990057 | F37: 441.8192322 | G37: 759.4437067 | H37: 526.1256162 | I37: 456.6958617 | J37: 431.3751362 | K37: 583.3869541 | L37: 561.9179716 | M37: 289.465853 | N37: 279.0165157 | O37: 205.2300506 | P37: 248.4893502 | Q37: 249.47368 | R37: 341.2182676 | S37: 812.3469668 | T37: 486.2952177
B38: AusNet (T) | C38: VIC | D38: 148.7600767 | E38: 151.9321729 | F38: 149.8040146 | G38: 121.3514019 | H38: 142.0157826 | I38: 137.3499343 | J38: 161.1650481 | K38: 205.8456638 | L38: 169.3360652 | M38: 174.2796965 | N38: 156.7951828 | O38: 144.7224511 | P38: 144.9910799 | Q38: 153.7898804 | R38: 162.4035143 | S38: 146.4582019 | T38: 135.9495125
B39: ElectraNet | C39: SA | D39: 99.66488854 | E39: 114.815756 | F39: 231.2780024 | G39: 128.737149 | H39: 151.398529 | I39: 292.6778361 | J39: 213.6360784 | K39: 269.9121696 | L39: 154.2381397 | M39: 130.3976891 | N39: 188.5445862 | O39: 167.4690949 | P39: 190.8516013 | Q39: 168.1691793 | R39: 194.1193989 | S39: 228.3702874 | T39: 375.6348965
B40: TasNetworks (T) | C40: TAS | D40: 103.3200849 | E40: 143.9417291 | F40: 85.80255523 | G40: 89.34871092 | H40: 172.3967813 | I40: 145.6282602 | J40: 154.4344629 | K40: 102.6518087 | L40: 90.38924905 | M40: 29.01401169 | N40: 27.95753195 | O40: 56.62915374 | P40: 57.01352748 | Q40: 64.66296446 | R40: 52.99878434 | S40: 46.53994308 | T40: 46.33831713
B41: Total | D41: 969.9354515 | E41: 1069.54111 | F41: 1822.281032 | G41: 1926.815686 | H41: 1568.494154 | I41: 1566.15129 | J41: 1736.046005 | K41: 1700.886855 | L41: 1346.812204 | M41: 806.3236738 | N41: 802.3882071 | O41: 765.4847248 | P41: 804.9655377 | Q41: 815.1997815 | R41: 927.1889328 | S41: 1420.945785 | T41: 1249.881342
B43: Sources:
B44: Actual capex has been taken from Roll forward models developed as part of final regulatory decisions, as made by the AER or jurisdictional regulators, and as updated by the Australian Competition Tribunal. The latest available RFM has been used, and if no RFM data is available, Category analysis RIN responses are used.
B46: Forecast annual capex
B47: $m 2022 | C47: State | D47: 2006 | E47: 2007 | F47: 2008 | G47: 2009 | H47: 2010 | I47: 2011 | J47: 2012 | K47: 2013 | L47: 2014 | M47: 2015 | N47: 2016 | O47: 2017 | P47: 2018 | Q47: 2019 | R47: 2020 | S47: 2021 | T47: 2022
B48: Powerlink | C48: QLD | D48: 293.525006 | E48: 131.4623543 | F48: 996.1708558 | G48: 908.7319315 | H48: 602.2506929 | I48: 664.870714 | J48: 566.5254507 | K48: 819.1691079 | L48: 676.3886216 | M48: 481.7111764 | N48: 535.5782571 | O48: 606.4300269 | P48: 181.3651332 | Q48: 182.1009028 | R48: 185.5029029 | S48: 193.0140266 | T48: 180.4776175
B49: Transgrid | C49: NSW | D49: 275.7550333 | E49: 332.4557255 | F49: 525.2246399 | G49: 439.7835547 | H49: 708.8907441 | I49: 604.2306198 | J49: 742.9042554 | K49: 682.782379 | L49: 513.1858635 | M49: 295.4802255 | N49: 352.5635727 | O49: 272.380509 | P49: 254.3876635 | Q49: 257.2813683 | R49: 388.332501 | S49: 649.6887892 | T49: 1342.584561
B50: AusNet (T) | C50: VIC | D50: 80.96223126 | E50: 109.7775711 | F50: 111.1725712 | G50: 157.7582453 | H50: 151.0114482 | I50: 178.7075602 | J50: 188.7848392 | K50: 165.6149503 | L50: 202.3988377 | M50: 173.2972001 | N50: 209.2040836 | O50: 208.0990029 | P50: 197.457515 | Q50: 172.4255086 | R50: 168.0838148 | S50: 156.4375335 | T50: 117.6169292
B51: ElectraNet | C51: SA | D51: 125.900291 | E51: 109.8544426 | F51: 72.81212396 | G51: 175.3437903 | H51: 240.2483996 | I51: 306.9283424 | J51: 236.8916771 | K51: 105.3602308 | L51: 249.3979366 | M51: 180.6587042 | N51: 219.2288695 | O51: 157.354575 | P51: 80.36575831 | Q51: 129.5599736 | R51: 231.7570291 | S51: 225.0875229 | T51: 452.993513
B52: TasNetworks (T) | C52: TAS | D52: 76.39269322 | E52: 126.0876461 | F52: 59.55344364 | G52: 49.69632194 | H52: 209.5925659 | I52: 207.1948207 | J52: 123.6999968 | K52: 130.0474147 | L52: 129.7396149 | M52: 58.60415013 | N52: 74.60879271 | O52: 61.07545893 | P52: 51.54077893 | Q52: 39.3663024 | R52: 59.68524743 | S52: 57.3563255 | T52: 53.86339262
B53: Total | D53: 852.5352548 | E53: 809.6377397 | F53: 1764.933635 | G53: 1731.313844 | H53: 1911.993851 | I53: 1961.932057 | J53: 1858.806219 | K53: 1902.974083 | L53: 1771.110874 | M53: 1189.751456 | N53: 1391.183576 | O53: 1305.339573 | P53: 765.1168489 | Q53: 780.7340557 | R53: 1033.361495 | S53: 1281.584198 | T53: 2147.536013
B55: Sources:
B56: Forecast capex is sourced from post tax revenue models (PTRMs) determined as part of final regulatory decisions, as made by the AER or jurisdictional regulators, and as adjusted by the Australian Competition Tribunal. Updates to the models are also taken into account. We reported Transgrid's forecast capex based on the AER's determination of 18 May 2018 inclusive of annual updates, but exclusive of the Humelink contingent project determination. We will update Transgrid's actual and forecast capex in our report in 2024 to include Humelink based on the AER's decision to update the Transgrid determination of 28 April 2023. For those readers interested in the Humelink determinations, please refer to our website: https://www.aer.gov.au/networks-pipelines/determinations-access-arrangements/contingent-projects/transgrid-humelink-contingent-project/final-decision

Sheet 4. Capex by Driver
B4: Capital expenditure by driver
B37: Transmission businesses are required to report their capital expenditure annually by driver. This shows how the transmission businesses investment's were split between the various drivers.
B39: Capex by Driver
C40: Reported Capex spent annually ($m 2022) | D40: 2009 | E40: 2010 | F40: 2011 | G40: 2012 | H40: 2013 | I40: 2014 | J40: 2015 | K40: 2016 | L40: 2017 | M40: 2018 | N40: 2019 | O40: 2020 | P40: 2021 | Q40: 2022
C41: augmentation expenditure* | D41: 1173.801027 | E41: 728.1319816 | F41: 812.6259979 | G41: 588.9728233 | H41: 635.4934466 | I41: 603.7340963 | J41: 54.3537676 | K41: 126.558479 | L41: 28.11995995 | M41: 34.81878449 | N41: 62.49014011 | O41: 200.8996893 | P41: 690.807491 | Q41: 414.0413795
C42: overheads | D42: 96.30747819 | E42: 109.9197992 | F42: 100.1152546 | G42: 105.7261789 | H42: 110.3154735 | I42: 92.79790471 | J42: 82.13621284 | K42: 76.30498843 | L42: 85.52217394 | M42: 82.3768076 | N42: 74.68605035 | O42: 71.63142092 | P42: 76.46663419 | Q42: 87.570014
C43: connections | D43: 46.57981127 | E43: 68.45448557 | F43: 74.3451986 | G43: 58.25721568 | H43: 38.65960197 | I43: 92.61678988 | J43: 61.54668648 | K43: 84.6871122 | L43: 44.10824654 | M43: 21.10735274 | N43: 26.71110712 | O43: 20.7804395 | P43: 36.81161153 | Q43: 7.279793309
C44: non-network | D44: 111.7905768 | E44: 104.2365334 | F44: 128.5932855 | G44: 115.4114068 | H44: 138.7781519 | I44: 137.9626422 | J44: 83.35495189 | K44: 63.26460518 | L44: 78.263564 | M44: 123.6070233 | N44: 96.56880374 | O44: 138.9523777 | P44: 93.9313708 | Q44: 79.54658768
C45: replacement expenditure | D45: 520.6658586 | E45: 493.6540741 | F45: 432.4290899 | G45: 622.0910207 | H45: 801.2484971 | I45: 740.4248923 | J45: 575.4724625 | K45: 478.1939654 | L45: 535.4190729 | M45: 532.2116067 | N45: 525.5115068 | O45: 427.1999191 | P45: 516.2696015 | Q45: 550.615944
B48: Notes:
B49: The Category Analysis RIN may result in some expenditures being classified into more than one driver. (For example, some connections capex may also be reported under augmentation capex). As such the total capex by driver may not reconcile with the total capex shown on 3. Capex.
B50: *Does not include Victorian augmentation expenditure
B52: Sources:
B53: Category Analysis RIN responses.
B55: Powerlink
C56: Reported Capex spent annually ($m 2022) | D56: 2009 | E56: 2010 | F56: 2011 | G56: 2012 | H56: 2013 | I56: 2014 | J56: 2015 | K56: 2016 | L56: 2017 | M56: 2018 | N56: 2019 | O56: 2020 | P56: 2021 | Q56: 2022
C57: augmentation expenditure | D57: 510.6656564 | E57: 246.1084391 | F57: 331.4622414 | G57: 229.3439275 | H57: 216.4461329 | I57: 297.7470916 | J57: 11.03154333 | K57: 13.18039844 | L57: 0 | M57: 2.382061638 | N57: 0 | O57: 9.402633513 | P57: 0 | Q57: 0
C58: overheads | D58: 38.60252188 | E58: 31.035898 | F58: 28.45221855 | G58: 27.61351371 | H58: 27.00664126 | I58: 22.41155027 | J58: 14.30512937 | K58: 7.997929561 | L58: 13.28660911 | M58: 9.124141649 | N58: 13.23156777 | O58: 4.741720569 | P58: 5.521767635 | Q58: 11.09638977
C59: connections | D59: 20.02521625 | E59: 4.995568391 | F59: 5.133871147 | G59: 6.949855978 | H59: 3.394749654 | I59: 5.794157843 | J59: 1.579461401 | K59: 0 | L59: 0 | M59: 0 | N59: 0 | O59: 0 | P59: 0 | Q59: 0
C60: non-network | D60: 32.63082392 | E60: 41.4826215 | F60: 41.61366704 | G60: 35.29085149 | H60: 38.33467051 | I60: 14.91376393 | J60: 8.696069721 | K60: 14.56918245 | L60: 19.28353234 | M60: 37.92328659 | N60: 23.15733362 | O60: 26.43285354 | P60: 25.28456545 | Q60: 21.11457569
C61: replacement expenditure | D61: 208.9925016 | E61: 171.4810852 | F61: 88.75062282 | G61: 222.8430553 | H61: 257.402064 | I61: 281.5462142 | J61: 164.5942667 | K61: 57.18944526 | L61: 127.5336223 | M61: 68.43348138 | N61: 136.3348678 | O61: 35.01346013 | P61: 83.88428772 | Q61: 154.1155893
B63: Transgrid
C64: Reported Capex spent annually ($m 2022) | D64: 2009 | E64: 2010 | F64: 2011 | G64: 2012 | H64: 2013 | I64: 2014 | J64: 2015 | K64: 2016 | L64: 2017 | M64: 2018 | N64: 2019 | O64: 2020 | P64: 2021 | Q64: 2022
C65: augmentation expenditure | D65: 573.6209479 | E65: 319.5985826 | F65: 237.793877 | G65: 203.8091656 | H65: 316.5157157 | I65: 264.8892947 | J65: 24.91023786 | K65: 59.91931143 | L65: 5.259873817 | M65: 4.83630696 | N65: 19.12836319 | O65: 83.40672252 | P65: 617.3478335 | Q65: 281.4158511
C66: overheads | D66: 32.23746324 | E66: 49.71572998 | F66: 35.87981189 | G66: 41.66630372 | H66: 45.56950326 | I66: 37.3653154 | J66: 37.30287182 | K66: 32.89527897 | L66: 34.29041929 | M66: 34.77041377 | N66: 27.06015795 | O66: 31.44890079 | P66: 41.4472028 | Q66: 46.55771365
C67: connections | D67: 0 | E67: 0 | F67: 0 | G67: 0 | H67: 0 | I67: 3.246103378 | J67: 2.783890014 | K67: 1.987331498 | L67: 0.8679011415 | M67: 0.3652324942 | N67: 0.836619948 | O67: 1.190254776 | P67: 1.959025454 | Q67: 6.879466092
C68: non-network | D68: 43.5490964 | E68: 28.11569731 | F68: 33.07538018 | G68: 48.9220275 | H68: 60.49533376 | I68: 79.99385661 | J68: 39.77821601 | K68: 23.35347528 | L68: 25.48269532 | M68: 32.3237879 | N68: 30.89323649 | O68: 30.45399507 | P68: 31.10248843 | Q68: 39.49288485
C69: replacement expenditure | D69: 107.5669371 | E69: 129.2996477 | F69: 152.1369428 | G69: 143.8914983 | H69: 161.9279276 | I69: 177.2603136 | J69: 185.383288 | K69: 154.1905696 | L69: 133.4261185 | M69: 175.0723558 | N69: 140.82759 | O69: 162.1011829 | P69: 154.443436 | Q69: 149.8826531
B71: AusNet (T)
C72: Reported Capex spent annually ($m 2022) | D72: 2009 | E72: 2010 | F72: 2011 | G72: 2012 | H72: 2013 | I72: 2014 | J72: 2015 | K72: 2016 | L72: 2017 | M72: 2018 | N72: 2019 | O72: 2020 | P72: 2021 | Q72: 2022
C73: augmentation expenditure* | D73: 0 | E73: 0 | F73: 0 | G73: 0 | H73: 0 | I73: 0 | J73: 0 | K73: 0 | L73: 0 | M73: 0 | N73: 0 | O73: 0 | P73: 0 | Q73: 0
C74: overheads | D74: 13.36298759 | E74: 14.30914245 | F74: 15.4183106 | G74: 16.67953205 | H74: 19.02770906 | I74: 16.60854757 | J74: 14.76588269 | K74: 19.48532575 | L74: 14.71572795 | M74: 10.64620355 | N74: 7.698071219 | O74: 7.51672872 | P74: 6.213654016 | Q74: 7.185718492
C75: connections | D75: 10.02654776 | E75: 29.92188533 | F75: 6.995526623 | G75: 4.532029144 | H75: 18.17794911 | I75: 66.27010983 | J75: 35.76740598 | K75: 80.13946998 | L75: 39.40708568 | M75: 20.42197522 | N75: 22.86899686 | O75: 19.07775593 | P75: 32.77229338 | Q75: 42.7730408
C76: non-network | D76: 14.66710615 | E76: 11.78983274 | F76: 17.38277077 | G76: 14.33541726 | H76: 19.64454789 | I76: 24.74142303 | J76: 24.39081979 | K76: 11.27577416 | L76: 8.982128384 | M76: 12.03005328 | N76: 14.06892975 | O76: 63.58725613 | P76: 16.14298294 | Q76: 10.85027846
C77: replacement expenditure | D77: 95.79878729 | E77: 116.5132237 | F77: 105.3765358 | G77: 133.4653549 | H77: 169.391636 | I77: 129.8207356 | J77: 134.9815548 | K77: 135.7176446 | L77: 125.3680755 | M77: 119.9165194 | N77: 133.0610633 | O77: 138.0635484 | P77: 123.2055286 | Q77: 94.22490316
B79: Notes:
B80: *Augmentation of Vic transmission networks is carried out by AEMO, hence $0 expenditure reported by AusNet (T)
B82: ElectraNet
C83: Reported Capex spent annually ($m 2022) | D83: 2009 | E83: 2010 | F83: 2011 | G83: 2012 | H83: 2013 | I83: 2014 | J83: 2015 | K83: 2016 | L83: 2017 | M83: 2018 | N83: 2019 | O83: 2020 | P83: 2021 | Q83: 2022
C84: augmentation expenditure | D84: 15.69272645 | E84: 50.07850382 | F84: 197.9302023 | G84: 96.55409781 | H84: 90.63879243 | I84: 36.04245575 | J84: 18.25028973 | K84: 53.18033689 | L84: 21.48958791 | M84: 24.06437915 | N84: 39.6129151 | O84: 106.4142991 | P84: 71.8818138 | Q84: 128.7239234
C85: overheads | D85: 7.975069706 | E85: 10.55817902 | F85: 15.51954889 | G85: 16.10202695 | H85: 15.58632084 | I85: 13.44494345 | J85: 12.61259123 | K85: 11.03882303 | L85: 11.38341134 | M85: 15.46922967 | N85: 11.90760127 | O85: 11.11269113 | P85: 11.63919623 | Q85: 12.03086355
C86: connections | D86: 15.90991822 | E86: 25.6081317 | F86: 33.97016252 | G86: 17.93392077 | H86: 14.74935175 | I86: 17.1760743 | J86: 21.4132313 | K86: 2.559227445 | L86: 3.833259713 | M86: 0.3201450273 | N86: 3.005490307 | O86: 0.1317750667 | P86: 0 | Q86: 0
C87: non-network | D87: 9.23685377 | E87: 10.78280102 | F87: 9.092921165 | G87: 8.579596268 | H87: 13.95038095 | I87: 12.21683138 | J87: 6.842518494 | K87: 8.068662021 | L87: 13.31651446 | M87: 30.86436845 | N87: 23.30427499 | O87: 11.26176924 | P87: 13.31893705 | Q87: 12.9388163
C88: replacement expenditure | D88: 80.13403173 | E88: 54.58749818 | F88: 36.28020763 | G88: 70.48785011 | H88: 132.3975838 | I88: 73.80814934 | J88: 71.37048959 | K88: 114.5817929 | L88: 117.4496592 | M88: 138.585667 | N88: 87.35405424 | O88: 65.19886439 | P88: 131.5303406 | Q88: 220.8316337
B90: TasNetworks (T)
C91: Reported Capex spent annually ($m 2022) | D91: 2009 | E91: 2010 | F91: 2011 | G91: 2012 | H91: 2013 | I91: 2014 | J91: 2015 | K91: 2016 | L91: 2017 | M91: 2018 | N91: 2019 | O91: 2020 | P91: 2021 | Q91: 2022
C92: augmentation expenditure | D92: 73.8216965 | E92: 112.346456 | F92: 45.43967725 | G92: 59.26563239 | H92: 11.89280565 | I92: 5.055254229 | J92: 0.1616966844 | K92: 0.2784321869 | L92: 1.370498219 | M92: 3.536036736 | N92: 3.748861831 | O92: 1.676034174 | P92: 1.577843711 | Q92: 3.901604893
C93: overheads | D93: 4.129435776 | E93: 4.300849723 | F93: 4.845364663 | G93: 3.664802481 | H93: 3.125299058 | I93: 2.967548008 | J93: 3.149737726 | K93: 4.887631123 | L93: 11.84600626 | M93: 12.36681897 | N93: 14.78865214 | O93: 16.81137971 | P93: 11.64481351 | Q93: 10.69932853
C94: connections | D94: 0.6181290439 | E94: 7.928900153 | F94: 28.24563831 | G94: 28.84140978 | H94: 2.337551454 | I94: 0.1303445341 | J94: 0.002697789139 | K94: 0.001083275174 | L94: 0 | M94: 0 | N94: 0 | O94: 0.3806537285 | P94: 2.080292692 | Q94: 0.4003272165
C95: non-network | D95: 11.70669656 | E95: 12.06558082 | F95: 27.42854631 | G95: 8.283514312 | H95: 6.353218795 | I95: 6.096767249 | J95: 3.647327877 | K95: 5.997511263 | L95: 11.19869349 | M95: 10.46552704 | N95: 5.145028896 | O95: 7.21650367 | P95: 8.082396939 | Q95: 6.000310842
C96: replacement expenditure | D96: 28.17360089 | E96: 21.77261939 | F96: 49.88478083 | G96: 51.40326199 | H96: 80.12928574 | I96: 77.98947958 | J96: 19.14286333 | K96: 16.51451311 | L96: 31.64159747 | M96: 30.20358304 | N96: 27.93393147 | O96: 26.82286329 | P96: 23.20600854 | Q96: 25.786068

Sheet 5. Opex
B4: Operating expenditure
S29: .
B32: Operating expenditure (opex) includes network operation, maintenance and other non-capital costs incurred by the transmission businesses. Easement taxes applicable to AusNet (T) have been removed.
B34: Actual annual opex
B35: $m 2022 | C35: State | D35: 2006 | E35: 2007 | F35: 2008 | G35: 2009 | H35: 2010 | I35: 2011 | J35: 2012 | K35: 2013 | L35: 2014 | M35: 2015 | N35: 2016 | O35: 2017 | P35: 2018 | Q35: 2019 | R35: 2020 | S35: 2021 | T35: 2022
B36: Powerlink | C36: QLD | D36: 173.7406486 | E36: 182.6643689 | F36: 198.6091636 | G36: 190.4164508 | H36: 197.2782858 | I36: 190.2275328 | J36: 197.1695739 | K36: 201.6485015 | L36: 212.3176735 | M36: 242.6295988 | N36: 246.7242044 | O36: 252.1422434 | P36: 204.9403328 | Q36: 213.8298528 | R36: 212.9038793 | S36: 218.9748856 | T36: 209.9921347
B37: Transgrid | C37: NSW | D37: 176.7988343 | E37: 175.5004289 | F37: 165.1730937 | G37: 165.7333467 | H37: 186.2472381 | I37: 173.7310411 | J37: 187.2174643 | K37: 172.5421752 | L37: 206.2473269 | M37: 193.0640426 | N37: 191.3046889 | O37: 189.2494152 | P37: 167.7375925 | Q37: 165.6521305 | R37: 170.0818475 | S37: 175.1870437 | T37: 188.7815633
B38: AusNet (T) | C38: VIC | D38: 90.16178325 | E38: 87.58876597 | F38: 80.07438034 | G38: 103.1983566 | H38: 103.4925459 | I38: 94.8157934 | J38: 89.27147501 | K38: 91.01469007 | L38: 96.52210735 | M38: 96.31808895 | N38: 99.81633054 | O38: 96.51326905 | P38: 88.70044996 | Q38: 92.51717109 | R38: 83.27888167 | S38: 74.58364498 | T38: 83.49671721
B39: ElectraNet | C39: SA | D39: 70.83388839 | E39: 75.37212405 | F39: 68.13676437 | G39: 73.13950111 | H39: 74.75712244 | I39: 81.06991593 | J39: 89.224257 | K39: 84.96034495 | L39: 86.97465204 | M39: 91.41818956 | N39: 96.46410127 | O39: 99.88467921 | P39: 101.7233901 | Q39: 100.1139016 | R39: 105.2107859 | S39: 103.6774426 | T39: 101.9004609
B40: TasNetworks (T) | C40: TAS | D40: 51.87843942 | E40: 53.69041891 | F40: 63.93075714 | G40: 62.27034791 | H40: 62.12511451 | I40: 58.7101437 | J40: 57.75314766 | K40: 54.24926574 | L40: 53.54459519 | M40: 39.82929213 | N40: 42.43211398 | O40: 35.60027417 | P40: 31.65070726 | Q40: 33.37255389 | R40: 28.67770099 | S40: 31.93787665 | T40: 32.61925979
B41: NEM Total | D41: 563.413594 | E41: 574.8161067 | F41: 575.9241592 | G41: 594.758003 | H41: 623.9003067 | I41: 598.554427 | J41: 620.6359179 | K41: 604.4149775 | L41: 655.606355 | M41: 663.259212 | N41: 676.741439 | O41: 673.389881 | P41: 594.7524726 | Q41: 605.4856099 | R41: 600.1530953 | S41: 604.3608936 | T41: 616.7901359
B43: Sources:
B44: Economic Benchmarking RIN responses.
B47: Forecast annual opex
B48: $m 2022 | C48: State | D48: 2006 | E48: 2007 | F48: 2008 | G48: 2009 | H48: 2010 | I48: 2011 | J48: 2012 | K48: 2013 | L48: 2014 | M48: 2015 | N48: 2016 | O48: 2017 | P48: 2018 | Q48: 2019 | R48: 2020 | S48: 2021 | T48: 2022
B49: Powerlink | C49: QLD | D49: 132.7051537 | E49: 132.7103066 | F49: 196.8843627 | G49: 197.7575713 | H49: 212.5142085 | I49: 203.1745987 | J49: 209.2605477 | K49: 216.1626571 | L49: 224.3843195 | M49: 230.0949045 | N49: 238.7107577 | O49: 245.6304751 | P49: 217.1209343 | Q49: 216.1750391 | R49: 215.1570199 | S49: 214.36688 | T49: 214.2295999
B50: Transgrid | C50: NSW | D50: 177.2213129 | E50: 176.6584834 | F50: 176.2051775 | G50: 175.9283262 | H50: 208.6834059 | I50: 201.388886 | J50: 206.5252608 | K50: 218.228396 | L50: 220.4320551 | M50: 196.9134163 | N50: 195.5783907 | O50: 200.8124603 | P50: 193.2702349 | Q50: 189.9672608 | R50: 193.3840726 | S50: 197.9943787 | T50: 207.2182969
B51: AusNet (T) | C51: VIC | D51: 111.8754754 | E51: 111.8754754 | F51: 111.8754754 | G51: 111.0507192 | H51: 110.1773676 | I51: 110.1486667 | J51: 108.7992824 | K51: 108.2121687 | L51: 106.7451843 | M51: 96.92952211 | N51: 99.40613933 | O51: 100.2332873 | P51: 100.5658226 | Q51: 101.0998516 | R51: 102.1876631 | S51: 102.3201156 | T51: 102.8299108
B52: ElectraNet | C52: SA | D52: 75.6305492 | E52: 75.6305492 | F52: 75.6305492 | G52: 75.36301118 | H52: 77.72540575 | I52: 80.41431455 | J52: 84.23936211 | K52: 87.43879493 | L52: 94.94639998 | M52: 98.5528608 | N52: 100.3433312 | O52: 105.7403074 | P52: 106.153302 | Q52: 97.79298648 | R52: 98.31436173 | S52: 100.1200874 | T52: 101.3872664
B53: TasNetworks (T) | C53: TAS | D53: 47.83750116 | E53: 46.06083242 | F53: 42.18520386 | G53: 42.05227128 | H53: 65.48571736 | I53: 66.40477666 | J53: 65.90587618 | K53: 69.0177042 | L53: 68.60142653 | M53: 50.93581329 | N53: 50.24060019 | O53: 50.51159759 | P53: 50.77451312 | Q53: 50.2127651 | R53: 31.95392289 | S53: 32.06289372 | T53: 32.22235856
B54: NEM Total | D54: 545.2699923 | E54: 542.935647 | F54: 602.7807686 | G54: 602.1518991 | H54: 674.5861051 | I54: 661.5312426 | J54: 674.7303292 | K54: 699.0597209 | L54: 715.1093854 | M54: 673.426517 | N54: 684.2792192 | O54: 702.9281278 | P54: 667.8848068 | Q54: 655.2479032 | R54: 640.9970402 | S54: 646.8643554 | T54: 657.8874325
B56: Sources:
B57: Forecast capex is sourced from post tax revenue models (PTRMs) determined as part of final regulatory decisions, as made by the AER or jurisdictional regulators, and as adjusted by the Australian Competition Tribunal. Updates to the models are also taken into account. The forecast opex excludes efficiency carryovers, capex efficiencies items and easement tax.

Sheet 6. Reliability - outage events
B4: Network Reliability - Outage events
B29: Reliability is an important component of network performance. Network performance measures form part of the service target performance incentive scheme (STPIS) relevant to the transmission businesses. Loss of supply events measure the number of times energy is not available for set periods of times to transmission network customers. These thresholds vary for each business between between 0.05 and 1.0 system minutes, as outlined in published AER STPIS decisions.
B35: Loss of supply events
C36: State | D36: 2006 | E36: 2007 | F36: 2008 | G36: 2009 | H36: 2010 | I36: 2011 | J36: 2012 | K36: 2013 | L36: 2014 | M36: 2015 | N36: 2016 | O36: 2017 | P36: 2018 | Q36: 2019 | R36: 2020 | S36: 2021
B37: Powerlink | C37: QLD | D37: 2 | E37: 2 | F37: 2 | G37: 2 | H37: 0 | I37: 4 | J37: 1 | K37: 0 | L37: 5 | M37: 2 | N37: 1 | O37: 6 | P37: 2 | Q37: 0 | R37: 0 | S37: 3
B38: TransGrid | C38: NSW | D38: 2 | E38: 5 | F38: 2 | G38: 3 | H38: 3 | I38: 3 | J38: 3 | K38: 7 | L38: 3 | M38: 4 | N38: 2 | O38: 1 | P38: 1 | Q38: 3 | R38: 1 | S38: 0
B39: AusNet (T) | C39: VIC | D39: 5 | E39: 2 | F39: 1 | G39: 6 | H39: 1 | I39: 0 | J39: 2 | K39: 5 | L39: 3 | M39: 2 | N39: 3 | O39: 0 | P39: 0 | Q39: 1 | R39: 3 | S39: 0
B40: ElectraNet | C40: SA | D40: 4 | E40: 1 | F40: 4 | G40: 4 | H40: 12 | I40: 7 | J40: 7 | K40: 5 | L40: 4 | M40: 1 | N40: 5 | O40: 4 | P40: 3 | Q40: 4 | R40: 1 | S40: 0
B41: TasNetworks (T) | C41: TAS | D41: 16 | E41: 10 | F41: 6 | G41: 8 | H41: 9 | I41: 11 | J41: 10 | K41: 10 | L41: 5 | M41: 4 | N41: 2 | O41: 4 | P41: 2 | Q41: 2 | R41: 8 | S41: 2
B42: Total loss of supply events (LHS) | D42: 29 | E42: 20 | F42: 15 | G42: 23 | H42: 25 | I42: 25 | J42: 23 | K42: 27 | L42: 20 | M42: 13 | N42: 13 | O42: 15 | P42: 8 | Q42: 10 | R42: 13 | S42: 5
B44: Sources:
B45: Economic Benchmarking RIN responses: 2006-13.
B46: AER analysis: 2014 to 2021.

Sheet 7. Reliability -outage duration
B4: Network Reliability - Outage Duration
B29: Reliability is an important component of network performance. Network performance measures form part of the service target performance incentive scheme (STPIS) relevant to the transmission businesses. Average outage duration shows the average length of time of unplanned outages on the transmission network that resulted in a loss of supply event. This includes emergency and extreme events and outages with less than 24 hours notice to affected customers. Outages caused by third party systems, at the direction of emergency services/AEMO, planned outages or transient interruptions of less than a minute are not included in this data. Average outage duration is calculated as the total duration of outages divided by the number of events for each network.
B37: Average outage duration
C38: State | D38: 2006 | E38: 2007 | F38: 2008 | G38: 2009 | H38: 2010 | I38: 2011 | J38: 2012 | K38: 2013 | L38: 2014 | M38: 2015 | N38: 2016 | O38: 2017 | P38: 2018 | Q38: 2019 | R38: 2020 | S38: 2021
B39: Powerlink | C39: QLD | D39: 39.03476969 | E39: 1249.943388 | F39: 35.28963807 | G39: 62.27619752 | H39: 16.62000159 | I39: 86.76942158 | J39: 26.08666667 | K39: 5.621428571 | L39: 115.971 | M39: 236.2286666 | N39: 30.06 | O39: 27.451875 | P39: 36.23818182 | Q39: 15 | R39: 36.20375 | S39: 51.06875
B40: TransGrid | C40: NSW | D40: 64.84 | E40: 125.4 | F40: 34.28 | G40: 84.96 | H40: 225.83 | I40: 137.11 | J40: 94.23 | K40: 178.69 | L40: 71.14 | M40: 63.55 | N40: 169.1775079 | O40: 35.6399999 | P40: 58.20000015 | Q40: 69.82499979 | R40: 45.17142873 | S40: 72.23809506
B41: AusNet (T) | C41: VIC | D41: 61.9 | E41: 27.6 | F41: 71.5 | G41: 103.1 | H41: 92.5 | I41: 4 | J41: 230 | K41: 19.9 | L41: 24 | M41: 97.5 | N41: 39.83333333 | O41: 19 | P41: 24.5 | Q41: 87 | R41: 72.3 | S41: 47.3
B42: ElectraNet | C42: SA | D42: 88.46 | E42: 269.94 | F42: 200.2 | G42: 161.27 | H42: 126.85 | I42: 242.28 | J42: 124.76 | K42: 154.17 | L42: 130.71 | M42: 147 | N42: 250.5714286 | O42: 97.4 | P42: 463 | Q42: 192 | R42: 205 | S42: 199.875
B43: TasNetworks (T) | C43: TAS | D43: 53.84615 | E43: 142.7619 | F43: 112.9 | G43: 67.15789 | H43: 127.7692 | I43: 90.86667 | J43: 110.8846 | K43: 160.9412 | L43: 201 | M43: 74 | N43: 15 | O43: 410.4545455 | P43: 45.90909091 | Q43: 273 | R43: 105 | S43: 19
B45: Sources:
B46: Economic Benchmarking RIN responses: 2006-13.
B47: AER analysis: 2014 to 2021.

Sheet 8. Market impact
B4: Quality of Services - Market impact
B30: Market impact measures the relative disruption of outages on customers. The relative disruption is determined by estimating the impact on energy price in the NEM - if an outage increases the energy price by more than $10/MWh it is counted in the market impact measure. The chart shows the percentage of dispatch intervals where a transmission outage impacted on the energy price. The data excludes outages caused by force majeure events, resulting from third party systems, required to maintain personal safety or security, and other specific exclusions.
B32: Market impact indicator
C33: State | D33: 2006 | E33: 2007 | F33: 2008 | G33: 2009 | H33: 2010 | I33: 2011 | J33: 2012 | K33: 2013 | L33: 2014 | M33: 2015 | N33: 2016 | O33: 2017 | P33: 2018 | Q33: 2019 | R33: 2020 | S33: 2021
B34: Powerlink | C34: QLD | D34: 0.03737633181 | E34: 0.02527587519 | F34: 0.01248097412 | G34: 0.009874429224 | H34: 0.01483066971 | I34: 0.003177321157 | J34: 0.002235540335 | K34: 0.0009227549467 | L34: 0.03749048706 | M34: 0.0006183409437 | N34: 0.000399543379 | O34: 0.0006944444444 | P34: 0.004242770167 | Q34: 0.1325437595 | R34: 0.2368721461 | S34: 0.1109303653
B35: TransGrid | C35: NSW | D35: 0.0258847032 | E35: 0.03258181126 | F35: 0.02813926941 | G35: 0.02398211568 | H35: 0.007420091324 | I35: 0.008295281583 | J35: 0.007011035008 | K35: 0.005641171994 | L35: 0.007129946728 | M35: 0.01264269406 | N35: 0.02907153729 | O35: 0.06477834855 | P35: 0.06732305936 | Q35: 0.01362252664 | R35: 0.1590468037 | S35: 0.3274543379
B36: AusNet (T) | C36: VIC | D36: 0.01152968037 | E36: 0.02546613394 | F36: 0.03142123288 | G36: 0.01442161339 | H36: 0.02091894977 | I36: 0.03160197869 | J36: 0.02480974125 | K36: 0.01281392694 | L36: 0.008285768645 | M36: 0.00921803653 | N36: 0.06364155251 | O36: 0.04276065449 | P36: 0.003025114155 | Q36: 0.01887366819 | R36: 0.009199010654 | S36: 0.03573059361
B37: ElectraNet | C37: SA | D37: 0.2700247336 | E37: 0.1040239726 | F37: 0.05277777778 | G37: 0.03537861492 | H37: 0.02148972603 | I37: 0.01685692542 | J37: 0.05065639269 | K37: 0.02784436834 | L37: 0.0009132420091 | M37: 0.1027111872 | N37: 0.1111539193 | O37: 0.02214611872 | P37: 0.06868340944 | Q37: 0.07472888128 | R37: 0.06873097412 | S37: 0.138108828
B38: TasNetworks | C38: TAS | D38: 0.002949010654 | E38: 0.05666856925 | F38: 0.003196347032 | G38: 0.009912480974 | H38: 0.03777587519 | I38: 0.006934931507 | J38: 0.01337519026 | K38: 0.01699961948 | L38: 0.01546803653 | M38: 0.002349695586 | N38: 0.02724505327 | O38: 0.02570395738 | P38: 0.03927891933 | Q38: 0.01669520548 | R38: 0.01326103501 | S38: 0.01310882801
B40: Sources:
B41: Economic Benchmarking RIN responses: 2006-13.
B42: AER analysis: 2014 to 2021.

Sheet 9. Maximum demand
B4: Maximum demand
B27: Maximum demand is reported as the coincident maximum demand on each transmisison network. That is, the overall demand at the point in time when demand on the network was at its highest. Maximum demand information can be used to inform expenditure decisions, and is one of the indicators of demand that the AER uses to assess expenditure proposals.
B30: Maximum demand (MW)
C31: State | D31: 2006 | E31: 2007 | F31: 2008 | G31: 2009 | H31: 2010 | I31: 2011 | J31: 2012 | K31: 2013 | L31: 2014 | M31: 2015 | N31: 2016 | O31: 2017 | P31: 2018 | Q31: 2019 | R31: 2020 | S31: 2021 | T31: 2022
B32: Powerlink | C32: QLD | D32: 7336.8405 | E32: 7758.26744 | F32: 7281.0681 | G32: 7848.614416 | H32: 8002.824568 | I32: 7797.450764 | J32: 7740.007068 | K32: 7681.438938 | L32: 7637.8836 | M32: 8105.0588 | N32: 8272.121872 | O32: 8547.985832 | P32: 8788.580608 | Q32: 8968.972492 | R32: 8766.41304 | S32: 8478.98337 | T32: 9171.107078
B33: TransGrid | C33: NSW | D33: 12600 | E33: 12400 | F33: 13200 | G33: 13700 | H33: 13200 | I33: 13700 | J33: 11900 | K33: 12700 | L33: 12100 | M33: 10900 | N33: 11900 | O33: 13200 | P33: 12200 | Q33: 13000 | R33: 13500 | S33: 11700 | T33: 12000
B34: AEMO | C34: VIC | D34: 6717.51 | E34: 7719 | F34: 8721.38 | G34: 9260.43 | H34: 8974.76 | I34: 8812.86 | J34: 8071.43 | K34: 8410.82 | L34: 9137.4 | M34: 7714.953 | N34: 8780.009717 | O34: 7979.837 | P34: 8393.988 | Q34: 8683.903 | R34: 8947.7 | S34: 7786.059 | T34: 7969
B35: ElectraNet | C35: SA | D35: 2716.662362 | E35: 2707.049284 | F35: 2939.80442 | G35: 3128.41975 | H35: 3055.21236 | I35: 3169.099066 | J35: 2807.677388 | K35: 2913.555964 | L35: 3115.138214 | M35: 2668.456524 | N35: 2804.476644 | O35: 2955.01515 | P35: 2812.003652 | Q35: 3192.898416 | R35: 2922.511406 | S35: 2744.44597 | T35: 2501.107146
B36: TasNetworks (T) | C36: TAS | D36: 1949.873 | E36: 2329.506 | F36: 2245.082 | G36: 2154.23 | H36: 2267.071 | I36: 2238.723 | J36: 2264.047 | K36: 2184.59 | L36: 2132 | M36: 2143.157178 | N36: 2218.9 | O36: 1963.69113 | P36: 2184.504756 | Q36: 2147.102824 | R36: 2047.926794 | S36: 2040.752734 | T36: 2117.432396
B39: Notes:
B40: AEMO 2007 - this data is an average of the reported amounts in 2006 and 2008.
B42: Sources:
B43: Economic benchmarking RIN responses, 2006-13 and 2014 to 2022. AEMO responses to AER data request.

Sheet 10. Energy delivered
B4: Energy delivered
B27: Energy delivered is a measure of energy transported through the transmission networks in each year. The chart shows energy delivered to distribution networks and directly connected end users but excludes energy delivered to other transmisson networks.
B29: Energy delivered (GWh) - excluding energy delivered to other transmission networks
C30: State | D30: 2006 | E30: 2007 | F30: 2008 | G30: 2009 | H30: 2010 | I30: 2011 | J30: 2012 | K30: 2013 | L30: 2014 | M30: 2015 | N30: 2016 | O30: 2017 | P30: 2018 | Q30: 2019 | R30: 2020 | S30: 2021 | T30: 2022
B31: Transmission total | D31: 182631.4989 | E31: 186176.6668 | F31: 187629.6835 | G31: 187179.7504 | H31: 185093.7098 | I31: 181765.9955 | J31: 179217.0829 | K31: 174799.61 | L31: 170562.8549 | M31: 173326.2486 | N31: 177091.9191 | O31: 177372.3798 | P31: 177652.726 | Q31: 173893.6109 | R31: 170294.0713 | S31: 168026.7632 | T31: 170660.9991
B33: Energy delivered (GWh) - including energy delivered to other transmission networks
C34: State | D34: 2006 | E34: 2007 | F34: 2008 | G34: 2009 | H34: 2010 | I34: 2011 | J34: 2012 | K34: 2013 | L34: 2014 | M34: 2015 | N34: 2016 | O34: 2017 | P34: 2018 | Q34: 2019 | R34: 2020 | S34: 2021 | T34: 2022
B35: Powerlink | C35: QLD | D35: 51045.96344 | E35: 51964.46568 | F35: 51187.3276 | G35: 52191.94826 | H35: 52848.52063 | I35: 51917.07119 | J35: 50878.57698 | K35: 49333.93867 | L35: 47613.58142 | M35: 53087.56343 | N35: 52872.38758 | O35: 54253.30002 | P35: 54849.85804 | Q35: 53765.29422 | R35: 53076.36891 | S35: 51783.26392 | T35: 51131.76132
B36: TransGrid | C36: NSW | D36: 81538.36663 | E36: 83028.25736 | F36: 82531.57103 | G36: 81126.23803 | H36: 80626.11948 | I36: 79831.33442 | J36: 76646.15064 | K36: 71147.66818 | L36: 67800 | M36: 74400 | N36: 72200 | O36: 75000 | P36: 75700 | Q36: 74400 | R36: 72900 | S36: 71300 | T36: 68200
B37: AEMO | C37: VIC | D37: 45186.29968 | E37: 45956.43707 | F37: 45046.71803 | G37: 47419.17905 | H37: 48976.63624 | I37: 48047.97099 | J37: 47529.36126 | K37: 49056.42848 | L37: 48503.77156 | M37: 47967.07702 | N37: 47805.24582 | O37: 46829.30162 | P37: 41725 | Q37: 41479.994 | R37: 41527.84 | S37: 42258.7 | T37: 44066.71
B38: ElectraNet | C38: SA | D38: 15241.18699 | E38: 14809.02241 | F38: 14506.4318 | G38: 14847.61097 | H38: 15008.3794 | I38: 15262.88573 | J38: 15068.93276 | K38: 15061.13682 | L38: 14707.39394 | M38: 14485.73399 | N38: 15043.1491 | O38: 15106.16109 | P38: 14127.75806 | Q38: 13786.71469 | R38: 13856.51514 | S38: 13621.769 | T38: 13615.85709
B39: TasNetworks (T) | C39: TAS | D39: 10530.1088 | E39: 12828.493 | F39: 13500.337 | G39: 13412.711 | H39: 13030.212 | I39: 13108.443 | J39: 12589.843 | K39: 12866.188 | L39: 13359.9638 | M39: 13109.62408 | N39: 11654.5739 | O39: 12426.66332 | P39: 12434.32612 | Q39: 12884.56399 | R39: 12412.88866 | S39: 12909.20496 | T39: 13236.63158
B41: Sources:
B42: Economic Benchmarking RIN responses, 2006-13 and 2014 to 2022.

Sheet 11. Circuit length
B4: Circuit length
B27: The circuit length data is measured at the end of each regulatory year. It includes both overhead lines and underground cables. Circuit length is always greater than or equal to route length, for example a double circuit line that traverses 10 kms is counted as 20 km of circuit length.
B29: Circuit length
C30: State | D30: 2006 | E30: 2007 | F30: 2008 | G30: 2009 | H30: 2010 | I30: 2011 | J30: 2012 | K30: 2013 | L30: 2014 | M30: 2015 | N30: 2016 | O30: 2017 | P30: 2018 | Q30: 2019 | R30: 2020 | S30: 2021 | T30: 2022
B31: =B40 -> Powerlink | C31: QLD | D31: 11700.8 | E31: 11892.8 | F31: 12428.8 | G31: 12865.1 | H31: 13321.1 | I31: 13738.4 | J31: 13702.4 | K31: 14313.5 | L31: 14772.5 | M31: 14754.5 | N31: 14755.5 | O31: 14532.5 | P31: 14527.5 | Q31: 14526.2 | R31: 14528.2 | S31: 14534.2 | T31: 14535.2
B32: TransGrid | C32: NSW | D32: 12517.231 | E32: 12526.494 | F32: 12523.514 | G32: 12523.349 | H32: 12682.459 | I32: 12681.863 | J32: 12697.207 | K32: 12893.617 | L32: 12929.666 | M32: 13024.7647 | N32: 13039.195 | O32: 13078.1134 | P32: 13089.4947 | Q32: 13052.37522 | R32: 13052.45131 | S32: 13038.453 | T32: 13074.843
B33: AusNet (T) | C33: VIC | D33: 6573 | E33: 6573 | F33: 6573 | G33: 6573 | H33: 6573 | I33: 6573 | J33: 6573 | K33: 6573 | L33: 6573 | M33: 6573.2 | N33: 6558.844757 | O33: 6559.972081 | P33: 6623.72 | Q33: 6627.77 | R33: 6731.1112 | S33: 6734.02 | T33: 6628.545
B34: ElectraNet | C34: SA | D34: 5600.539 | E34: 5518.669 | F34: 5518.669 | G34: 5503.669 | H34: 5501.669 | I34: 5504.669 | J34: 5526.069 | K34: 5527.349 | L34: 5529.403054 | M34: 5521.349 | N34: 5524.349 | O34: 5519.569 | P34: 5522.169 | Q34: 5512.669 | R34: 5519.579 | S34: 5515.139 | T34: 5518.039
B35: TasNetworks (T) | C35: TAS | D35: 3581.3 | E35: 3622.3 | F35: 3622.3 | G35: 3520.3 | H35: 3481.3 | I35: 3493.3 | J35: 3493.3 | K35: 3503.19 | L35: 3503.8 | M35: 3563.7 | N35: 3563.7 | O35: 3563.7 | P35: 3545.2 | Q35: 3545.2 | R35: 3350.537182 | S35: 3350.235 | T35: 3360.947
B36: Total | D36: 39972.87 | E36: 40133.263 | F36: 40666.283 | G36: 40985.418 | H36: 41559.528 | I36: 41991.232 | J36: 41991.976 | K36: 42810.656 | L36: 43308.36905 | M36: 43437.5137 | N36: 43441.58876 | O36: 43253.85448 | P36: 43308.0837 | Q36: 43264.21422 | R36: 43181.87869 | S36: 43172.047 | T36: 43117.574
B38: Circuit length - overhead
C39: State | D39: 2006 | E39: 2007 | F39: 2008 | G39: 2009 | H39: 2010 | I39: 2011 | J39: 2012 | K39: 2013 | L39: 2014 | M39: 2015 | N39: 2016 | O39: 2017 | P39: 2018 | Q39: 2019 | R39: 2020 | S39: 2021 | T39: 2022
B40: Powerlink | C40: QLD | D40: 11685 | E40: 11877 | F40: 12413 | G40: 12848 | H40: 13304 | I40: 13717 | J40: 13681 | K40: 14292 | L40: 14751 | M40: 14733 | N40: 14734 | O40: 14511 | P40: 14506 | Q40: 14506 | R40: 14508 | S40: 14514 | T40: 14515
B41: TransGrid | C41: NSW | D41: 12469.323 | E41: 12478.586 | F41: 12475.606 | G41: 12475.441 | H41: 12634.551 | I41: 12633.955 | J41: 12649.299 | K41: 12845.709 | L41: 12878.229 | M41: 12942.5407 | N41: 12956.955 | O41: 12996.5324 | P41: 13007.8547 | Q41: 12966.96722 | R41: 12966.74331 | S41: 12952.745 | T41: 12968.515
B42: AusNet (T) | C42: VIC | D42: 6562 | E42: 6562 | F42: 6562 | G42: 6562 | H42: 6562 | I42: 6562 | J42: 6562 | K42: 6562 | L42: 6562 | M42: 6562 | N42: 6547.644757 | O42: 6551.429711 | P42: 6615.18 | Q42: 6619.23 | R42: 6722.5712 | S42: 6725.48 | T42: 6620.005
B43: ElectraNet | C43: SA | D43: 5591.75 | E43: 5509.88 | F43: 5509.88 | G43: 5494.88 | H43: 5492.88 | I43: 5495.88 | J43: 5498.88 | K43: 5500.16 | L43: 5502.214054 | M43: 5494.16 | N43: 5497.16 | O43: 5492.37 | P43: 5494.97 | Q43: 5485.47 | R43: 5492.38 | S43: 5487.94 | T43: 5490.84
B44: TasNetworks (T) | C44: TAS | D44: 3568 | E44: 3609 | F44: 3609 | G44: 3507 | H44: 3468 | I44: 3480 | J44: 3480 | K44: 3480 | L44: 3480 | M44: 3539.9 | N44: 3539.9 | O44: 3539.9 | P44: 3521.4 | Q44: 3521.4 | R44: 3326.373182 | S44: 3326.071 | T44: 3336.783
B45: Total | D45: 39876.073 | E45: 40036.466 | F45: 40569.486 | G45: 40887.321 | H45: 41461.431 | I45: 41888.835 | J45: 41871.179 | K45: 42679.869 | L45: 43173.44305 | M45: 43271.6007 | N45: 43275.65976 | O45: 43091.23211 | P45: 43145.4047 | Q45: 43099.06722 | R45: 43016.06769 | S45: 43006.236 | T45: 42931.143
B47: Circuit length - underground
C48: State | D48: 2006 | E48: 2007 | F48: 2008 | G48: 2009 | H48: 2010 | I48: 2011 | J48: 2012 | K48: 2013 | L48: 2014 | M48: 2015 | N48: 2016 | O48: 2017 | P48: 2018 | Q48: 2019 | R48: 2020 | S48: 2021 | T48: 2022
B49: =B40 -> Powerlink | C49: QLD | D49: 15.8 | E49: 15.8 | F49: 15.8 | G49: 17.1 | H49: 17.1 | I49: 21.4 | J49: 21.4 | K49: 21.5 | L49: 21.5 | M49: 21.5 | N49: 21.5 | O49: 21.5 | P49: 21.5 | Q49: 20.2 | R49: 20.2 | S49: 20.2 | T49: 20.2
B50: TransGrid | C50: NSW | D50: 47.908 | E50: 47.908 | F50: 47.908 | G50: 47.908 | H50: 47.908 | I50: 47.908 | J50: 47.908 | K50: 47.908 | L50: 51.437 | M50: 82.224 | N50: 82.24 | O50: 81.581 | P50: 81.64 | Q50: 85.408 | R50: 85.708 | S50: 85.708 | T50: 106.328
B51: AusNet (T) | C51: VIC | D51: 11 | E51: 11 | F51: 11 | G51: 11 | H51: 11 | I51: 11 | J51: 11 | K51: 11 | L51: 11 | M51: 11.2 | N51: 11.2 | O51: 8.542370333 | P51: 8.54 | Q51: 8.54 | R51: 8.54 | S51: 8.54 | T51: 8.54
B52: ElectraNet | C52: SA | D52: 8.789 | E52: 8.789 | F52: 8.789 | G52: 8.789 | H52: 8.789 | I52: 8.789 | J52: 27.189 | K52: 27.189 | L52: 27.189 | M52: 27.189 | N52: 27.189 | O52: 27.199 | P52: 27.199 | Q52: 27.199 | R52: 27.199 | S52: 27.199 | T52: 27.199
B53: TasNetworks (T) | C53: TAS | D53: 13.3 | E53: 13.3 | F53: 13.3 | G53: 13.3 | H53: 13.3 | I53: 13.3 | J53: 13.3 | K53: 23.19 | L53: 23.8 | M53: 23.8 | N53: 23.8 | O53: 23.8 | P53: 23.8 | Q53: 23.8 | R53: 24.164 | S53: 24.164 | T53: 24.164
B54: Total | D54: 96.797 | E54: 96.797 | F54: 96.797 | G54: 98.097 | H54: 98.097 | I54: 102.397 | J54: 120.797 | K54: 130.787 | L54: 134.926 | M54: 165.913 | N54: 165.929 | O54: 162.6223703 | P54: 162.679 | Q54: 165.147 | R54: 165.811 | S54: 165.811 | T54: 186.431
B56: Sources:
B57: Economic benchmarking RIN responses, 2006-13 and 2014 to 2022.
